Department Family,Entity,Date of Payment,Expense Type,Expense Area,Supplier,Voluntary & Community Sector,SME Class,Sole Trader,D-U-N-S Number,Transaction number,PSPES Level 2,Narrative,Postal Code,Amount in Sterling,Grant?
Communities & Local Government,DCLG,01/06/2015,Agency Staff,Finance & Corporate Services,ALLEN LANE FINANCIAL RECRUITMENT,,Medium,Yes,738603443,5106213097,Contingent Labour,Interim Accountant (Ext 02),,"3,036.86",
Communities & Local Government,DCLG,01/06/2015,Current (non AEF) Grants to Local Authorities,Neighbourhoods,KETTERING BC,,Public Bodies,,211271796,2100254958,,Garden Cities Capacity Funding,NN15 7QX,"300,000.00",Yes
Communities & Local Government,DCLG,01/06/2015,IT - Service Contracts,Finance & Corporate Services,DEPT FOR WORK & PENSIONS,,Public Bodies,,233591598,5106213126,IT Managed / Outsourced Services,Gateway Annual Cost 15/16 L Net 10125477,CF14 3UW,"6,000.00",
Communities & Local Government,DCLG,01/06/2015,IT - Service Contracts,Finance & Corporate Services,FUJITSU SERVICES LTD,,Large,,423375062,5106213124,IT Managed / Outsourced Services,NR     PAMU Office Move Project,WA3 9BD,"1,376.00",
Communities & Local Government,DCLG,01/06/2015,IT - Service Contracts,Finance & Corporate Services,FUJITSU SERVICES LTD,,Large,,423375062,5106213133,IT Managed / Outsourced Services,"FY14/15 Storage Charges (""S""TableCharge)",WA3 9BD,"17,044.76",
Communities & Local Government,DCLG,01/06/2015,IT - Service Contracts,Finance & Corporate Services,FUJITSU SERVICES LTD,,Large,,423375062,5106213134,IT Managed / Outsourced Services,"SIAM Charges (""M""Table Charges)",WA3 9BD,"43,248.00",
Communities & Local Government,DCLG,01/06/2015,IT - Service Contracts,Finance & Corporate Services,FUJITSU SERVICES LTD,,Large,,423375062,5106213135,IT Managed / Outsourced Services,"FY14/15 DRP Charges ""DRP1Table Charges",WA3 9BD,"15,001.56",
Communities & Local Government,DCLG,01/06/2015,IT - Service Contracts,Finance & Corporate Services,FUJITSU SERVICES LTD,,Large,,423375062,5106213168,IT Managed / Outsourced Services,"FY14/15 Desktop Charges ""D""Table Charges",WA3 9BD,"-3,748.29",
Communities & Local Government,DCLG,01/06/2015,IT - Service Contracts,Finance & Corporate Services,FUJITSU SERVICES LTD,,Large,,423375062,5106213169,IT Managed / Outsourced Services,"FY15/16 Desktop Charges ""D""Table Charges",WA3 9BD,"3,748.29",
Communities & Local Government,DCLG,01/06/2015,Legal Fees,Finance & Corporate Services,DAVITT JONES BOULD LTD (CLIENT ACC),,Medium,,,5106213132,Legal,Legal Advice,TA1 4EB,3.00,
Communities & Local Government,DCLG,01/06/2015,Legal Fees,Finance & Corporate Services,DAVITT JONES BOULD LTD (CLIENT ACC),,Medium,,,5106213132,Legal,Legal Advice,TA1 4EB,825.72,
Communities & Local Government,DCLG,01/06/2015,Legal Fees,Finance & Corporate Services,DAVITT JONES BOULD LTD (OFFICE ACC),,Medium,,,5106213138,Legal,Legal Advice,TA1 4EB,6.00,
Communities & Local Government,DCLG,01/06/2015,Legal Fees,Finance & Corporate Services,DAVITT JONES BOULD LTD (OFFICE ACC),,Medium,,,5106213138,Legal,Legal Advice,TA1 4EB,"1,380.96",
Communities & Local Government,DCLG,01/06/2015,Photocopying,Finance & Corporate Services,INTERSERVE (FACILITIES MANAGEMENT),,Large,,364834825,5106213116,Business Support,DfECC/0041Prov of repro equip (TQH)14-15,BS32 4NH,"6,892.04",
Communities & Local Government,DCLG,01/06/2015,Printers,Finance & Corporate Services,COMPUTACENTER (UK) LTD,,Large,,226023463,5106213115,Office machines,Printer HP P3015dn,AL10 9TW,"1,411.87",
Communities & Local Government,DCLG,01/06/2015,Professional services,Neighbourhoods,RICARDO-AEA LTD,,Large,,,5106213117,Technical Services,Aviation Safguarding Tool - STA extn,OX11 0QR,"4,804.80",
Communities & Local Government,DCLG,01/06/2015,Research,Finance & Corporate Services,NATIONAL CENTRE FOR SOCIAL RESEARCH,,Large,,424047426,5106213136,Research,Research - English Housing Survey,EC1V 0AX,"1,186.80",
Communities & Local Government,DCLG,01/06/2015,Research,Finance & Corporate Services,NATIONAL CENTRE FOR SOCIAL RESEARCH,,Large,,424047426,5106213136,Research,Research - English Housing Survey,EC1V 0AX,"69,071.32",
Communities & Local Government,DCLG,01/06/2015,Variable Maintenance < 15k,Finance & Corporate Services,INTERSERVE (FACILITIES MANAGEMENT),,Large,,364834825,5106213114,Transport,Hemel Hempstead Office Relocation,BS32 4NH,"127,100.24",
Communities & Local Government,DCLG,01/06/2015,Work In Progress Pre-Cert 40373 Spend,Neighbourhoods,GWE BUSINESS WEST LTD,,,,,7600012686,,Revenue Grant To Be Paid,BS8 3RA,"8,548.14",Yes
Communities & Local Government,DCLG,01/06/2015,Work In Progress Pre-Cert 40373 Spend,Neighbourhoods,NOTTINGHAM UNIVERSITY,,Large,,,7600012684,,Revenue Grant To Be Paid,NG7 2RD,"41,364.49",Yes
Communities & Local Government,DCLG,01/06/2015,Work In Progress Pre-Cert 40373 Spend,Neighbourhoods,SOUTH WEST SCREEN,,,,,7600012683,,Revenue Grant To Be Paid,BS1 5SP,"9,876.19",Yes
Communities & Local Government,DCLG,01/06/2015,Work In Progress Pre-Cert 40467 Spend,Neighbourhoods,PENDENNIS SHIPYARD LTD,,,,,7600012685,,Capital Grant To Be Paid,TR11 4NR,"209,987.70",Yes
Communities & Local Government,DCLG,02/06/2015,Advertising,"Strategy, Communications and Private Office",GEORGE & DRAGON,,Medium,,672098311,5106213163,Advertising,Fire Kills extension 14/15,W1F 9NB,"2,100.00",
Communities & Local Government,DCLG,02/06/2015,Agency Staff,Finance & Corporate Services,CAPITA BUS. SERV. LTD (CON LAB),,Large,,,5106213159,Contingent Labour,Interim and Specialist Contractor,DL1 9HB,"6,005.28",
Communities & Local Government,DCLG,02/06/2015,Agency Staff,Neighbourhoods,CAPITA BUS. SERV. LTD (CON LAB),,Large,,,5106213148,Contingent Labour,Official Travel and Subsistence,DL1 9HB,174.84,
Communities & Local Government,DCLG,02/06/2015,Agency Staff,Neighbourhoods,CAPITA BUS. SERV. LTD (CON LAB),,Large,,,5106213148,Contingent Labour,Interim Manager,DL1 9HB,"10,631.71",
Communities & Local Government,DCLG,02/06/2015,Agency Staff,Neighbourhoods,CAPITA BUS. SERV. LTD (CON LAB),,Large,,,5106213149,Contingent Labour,Interim Manager,DL1 9HB,"2,575.92",
Communities & Local Government,DCLG,02/06/2015,Agency Staff,Neighbourhoods,CAPITA BUS. SERV. LTD (CON LAB),,Large,,,5106213150,Contingent Labour,Interim Manager,DL1 9HB,517.75,
Communities & Local Government,DCLG,02/06/2015,Agency Staff,Neighbourhoods,CAPITA BUS. SERV. LTD (CON LAB),,Large,,,5106213151,Contingent Labour,Interim Manager,DL1 9HB,"5,725.54",
Communities & Local Government,DCLG,02/06/2015,Agency Staff,Neighbourhoods,CAPITA BUS. SERV. LTD (CON LAB),,Large,,,5106213152,Contingent Labour,Interim Manager,DL1 9HB,"5,818.82",
Communities & Local Government,DCLG,02/06/2015,Agency Staff,Neighbourhoods,CAPITA BUS. SERV. LTD (CON LAB),,Large,,,5106213153,Contingent Labour,Interim Manager,DL1 9HB,"-1,501.63",
Communities & Local Government,DCLG,02/06/2015,Agency Staff,Neighbourhoods,CAPITA BUS. SERV. LTD (CON LAB),,Large,,,5106213154,Contingent Labour,Interim Manager,DL1 9HB,"-1,877.04",
Communities & Local Government,DCLG,02/06/2015,Conferences and Meeting Facilities,Neighbourhoods,GEOLOGICAL SOCIETY,,,,235230039,5106213165,Business Travel Accommodation,Build to Rent Confeence for LAs,W1J OBG,"1,230.00",
Communities & Local Government,DCLG,02/06/2015,Conferences and Meeting Facilities,Neighbourhoods,GEOLOGICAL SOCIETY,,,,235230039,5106213165,Business Travel Accommodation,Build to Rent Conference for LAs,W1J OBG,790.50,
Communities & Local Government,DCLG,02/06/2015,Courier Services,Finance & Corporate Services,INTERSERVE (FACILITIES MANAGEMENT),,Large,,364834825,5106213155,Office Solutions,Rivergate Mail 2015-16,BS32 4NH,"1,519.43",
Communities & Local Government,DCLG,02/06/2015,Domestic Services,Finance & Corporate Services,INTERSERVE (FACILITIES MANAGEMENT),,Large,,364834825,5106213155,Building Operation,TQH Cleaning 2015-16,BS32 4NH,"9,032.52",
Communities & Local Government,DCLG,02/06/2015,Domestic Services,Finance & Corporate Services,INTERSERVE (FACILITIES MANAGEMENT),,Large,,364834825,5106213155,Building Operation,Hempstead House Cleaning 2015-16,BS32 4NH,"2,216.98",
Communities & Local Government,DCLG,02/06/2015,Domestic Services,Finance & Corporate Services,INTERSERVE (FACILITIES MANAGEMENT),,Large,,364834825,5106213155,Building Operation,Rivergate Cleaning 2015-16,BS32 4NH,"5,167.99",
Communities & Local Government,DCLG,02/06/2015,Domestic Services,Finance & Corporate Services,INTERSERVE (FACILITIES MANAGEMENT),,Large,,364834825,5106213155,Building Operation,Citygate Cleaning 2015-16,BS32 4NH,"3,090.56",
Communities & Local Government,DCLG,02/06/2015,Domestic Services,Finance & Corporate Services,INTERSERVE (FACILITIES MANAGEMENT),,Large,,364834825,5106213155,Building Operation,5SSP Cleaning 2015-16,BS32 4NH,"6,906.82",
Communities & Local Government,DCLG,02/06/2015,Facilities Management (ISD use only),Finance & Corporate Services,INTERSERVE (FACILITIES MANAGEMENT),,Large,,364834825,5106213155,Property Occupation,PQ Offsite Man fee subject to recalc,BS32 4NH,"2,378.47",
Communities & Local Government,DCLG,02/06/2015,Facilities Management (ISD use only),Finance & Corporate Services,INTERSERVE (FACILITIES MANAGEMENT),,Large,,364834825,5106213155,Property Occupation,TQH Off Site Management 2015-16,BS32 4NH,"11,188.06",
Communities & Local Government,DCLG,02/06/2015,Facilities Management (ISD use only),Finance & Corporate Services,INTERSERVE (FACILITIES MANAGEMENT),,Large,,364834825,5106213155,Property Occupation,TQH On Site Management,BS32 4NH,"3,181.33",
Communities & Local Government,DCLG,02/06/2015,Facilities Management (ISD use only),Finance & Corporate Services,INTERSERVE (FACILITIES MANAGEMENT),,Large,,364834825,5106213155,Property Occupation,TQH Reception 2015-16,BS32 4NH,"1,663.29",
Communities & Local Government,DCLG,02/06/2015,Facilities Management (ISD use only),Finance & Corporate Services,INTERSERVE (FACILITIES MANAGEMENT),,Large,,364834825,5106213155,Property Occupation,Hempstead House Off Site Mngmnt 2015-16,BS32 4NH,"1,247.30",
Communities & Local Government,DCLG,02/06/2015,Facilities Management (ISD use only),Finance & Corporate Services,INTERSERVE (FACILITIES MANAGEMENT),,Large,,364834825,5106213155,Property Occupation,Rivergate Off Site Mange 2015-16,BS32 4NH,"5,100.59",
Communities & Local Government,DCLG,02/06/2015,Facilities Management (ISD use only),Finance & Corporate Services,INTERSERVE (FACILITIES MANAGEMENT),,Large,,364834825,5106213155,Property Occupation,Rivergate Reception 2015-16,BS32 4NH,"1,653.74",
Communities & Local Government,DCLG,02/06/2015,Facilities Management (ISD use only),Finance & Corporate Services,INTERSERVE (FACILITIES MANAGEMENT),,Large,,364834825,5106213155,Property Occupation,Citygate Off Site Management 2015-16,BS32 4NH,"4,185.84",
Communities & Local Government,DCLG,02/06/2015,Facilities Management (ISD use only),Finance & Corporate Services,INTERSERVE (FACILITIES MANAGEMENT),,Large,,364834825,5106213155,Property Occupation,Citygate On Site Management 2015-16,BS32 4NH,"2,529.53",
Communities & Local Government,DCLG,02/06/2015,Facilities Management (ISD use only),Finance & Corporate Services,INTERSERVE (FACILITIES MANAGEMENT),,Large,,364834825,5106213155,Property Occupation,Citygate Reception 2015-16,BS32 4NH,"1,612.33",
Communities & Local Government,DCLG,02/06/2015,Facilities Management (ISD use only),Finance & Corporate Services,INTERSERVE (FACILITIES MANAGEMENT),,Large,,364834825,5106213155,Property Occupation,5SPP Reception 2015-16,BS32 4NH,"2,854.01",
Communities & Local Government,DCLG,02/06/2015,Facilities Management (ISD use only),Finance & Corporate Services,INTERSERVE (FACILITIES MANAGEMENT),,Large,,364834825,5106213155,Property Occupation,5SSP Off Site Management 2015-16,BS32 4NH,"4,137.06",
Communities & Local Government,DCLG,02/06/2015,Facilities Management (ISD use only),Finance & Corporate Services,INTERSERVE (FACILITIES MANAGEMENT),,Large,,364834825,5106213155,Property Occupation,5SSP On Site Management 2015-16,BS32 4NH,"3,032.33",
Communities & Local Government,DCLG,02/06/2015,Fixed Maintenance,Finance & Corporate Services,INTERSERVE (FACILITIES MANAGEMENT),,Large,,364834825,5106213155,Property Occupation,TQH Maintenance 2015-16,BS32 4NH,"6,027.81",
Communities & Local Government,DCLG,02/06/2015,Fixed Maintenance,Finance & Corporate Services,INTERSERVE (FACILITIES MANAGEMENT),,Large,,364834825,5106213155,Property Occupation,Hempstead House Maintenance 2015-16,BS32 4NH,"5,437.63",
Communities & Local Government,DCLG,02/06/2015,Fixed Maintenance,Finance & Corporate Services,INTERSERVE (FACILITIES MANAGEMENT),,Large,,364834825,5106213155,Property Occupation,Rivergate Maintenance 2015-16,BS32 4NH,"3,840.85",
Communities & Local Government,DCLG,02/06/2015,Fixed Maintenance,Finance & Corporate Services,INTERSERVE (FACILITIES MANAGEMENT),,Large,,364834825,5106213155,Property Occupation,Citygate Maintenance 2015-16,BS32 4NH,"3,637.07",
Communities & Local Government,DCLG,02/06/2015,Fixed Maintenance,Finance & Corporate Services,INTERSERVE (FACILITIES MANAGEMENT),,Large,,364834825,5106213155,Property Occupation,5SSP Maintenance 2015-16,BS32 4NH,"10,952.47",
Communities & Local Government,DCLG,02/06/2015,IT - Service Contracts,Neighbourhoods,DEXTROUS WEB LTD,,Micro,,211267270,5106213164,IT Managed / Outsourced Services,Hosting support and RAMP,N1 7NG,868.80,
Communities & Local Government,DCLG,02/06/2015,Photocopying,Finance & Corporate Services,INTERSERVE (FACILITIES MANAGEMENT),,Large,,364834825,5106213155,Business Support,TQH Repro 2015-16,BS32 4NH,"6,529.09",
Communities & Local Government,DCLG,02/06/2015,Photocopying,Finance & Corporate Services,INTERSERVE (FACILITIES MANAGEMENT),,Large,,364834825,5106213155,Business Support,Hempstead House Repro 2015-16,BS32 4NH,126.33,
Communities & Local Government,DCLG,02/06/2015,Photocopying,Finance & Corporate Services,INTERSERVE (FACILITIES MANAGEMENT),,Large,,364834825,5106213155,Business Support,5SSP Repro 2015-16,BS32 4NH,353.08,
Communities & Local Government,DCLG,02/06/2015,Property/Estates Consultancy,Neighbourhoods,DELOITTE  LLP,,Large,,215590489,5106213146,Consultancy,Phase 1 valuation of Eastern Quarry,MK9 1FD,"11,400.00",
Communities & Local Government,DCLG,02/06/2015,Research,Finance & Corporate Services,MONEYFACTS GROUP PLC,,Medium,,,5106213160,Research,Reasearch - Mortgage Data,NR3 2DD,500.00,
Communities & Local Government,DCLG,02/06/2015,Security,Finance & Corporate Services,INTERSERVE (FACILITIES MANAGEMENT),,Large,,364834825,5106213155,Security,TQH Security 2015-16,BS32 4NH,"9,286.58",
Communities & Local Government,DCLG,02/06/2015,Security,Finance & Corporate Services,INTERSERVE (FACILITIES MANAGEMENT),,Large,,364834825,5106213155,Security,Hempstead House Security 2015-16,BS32 4NH,"4,270.93",
Communities & Local Government,DCLG,02/06/2015,Security,Finance & Corporate Services,INTERSERVE (FACILITIES MANAGEMENT),,Large,,364834825,5106213155,Security,Rivergate Security 2015-16,BS32 4NH,"6,764.25",
Communities & Local Government,DCLG,02/06/2015,Security,Finance & Corporate Services,INTERSERVE (FACILITIES MANAGEMENT),,Large,,364834825,5106213155,Security,Citygate Security 2015-16,BS32 4NH,"2,546.81",
Communities & Local Government,DCLG,02/06/2015,Security,Finance & Corporate Services,INTERSERVE (FACILITIES MANAGEMENT),,Large,,364834825,5106213155,Security,5SSP Security 2015-16,BS32 4NH,"4,816.46",
Communities & Local Government,DCLG,02/06/2015,Steady State Service Provision,Finance & Corporate Services,CGI IT UK LIMITED,,Large,,239881618,5106213156,Business Process Outsourcing Services,Payroll Services & Licences  14/15,CF31 9AP,"7,334.78",
Communities & Local Government,DCLG,02/06/2015,Steady State Service Provision,Localism,LOCALITY,,Medium,,347998312,5106213023,Business Process Outsourcing Services,Lot 1 Advice Service and Network,N1 6DR,"35,556.96",
Communities & Local Government,DCLG,02/06/2015,Steady State Service Provision,Localism,MOTT MACDONALD LTD,,Large,,423676980,5106213141,Business Process Outsourcing Services,FLE Costs  (Capped at 25% of Core Contra,BN1 4FY,"55,872.92",
Communities & Local Government,DCLG,02/06/2015,Steady State Service Provision,Localism,MOTT MACDONALD LTD,,Large,,423676980,5106213162,Business Process Outsourcing Services,FLE Costs  (Capped at 25% of Core Contra,BN1 4FY,"55,872.92",
Communities & Local Government,DCLG,02/06/2015,Telecoms equipment (non-capitalised),Finance & Corporate Services,DAMOVO UK LTD,,Large,,221481042,5106213167,Telecoms,call charges to 31.03.2015,RH12 4QP,"7,037.96",
Communities & Local Government,DCLG,02/06/2015,Training,Finance & Corporate Services,CABINET OFFICE,,Public Bodies,,349606306,5106213143,Development and Training,Top 150 Awayday Event (AK),CF14 3UW,276.00,
Communities & Local Government,DCLG,02/06/2015,Training,Finance & Corporate Services,CABINET OFFICE,,Public Bodies,,349606306,5106213143,Development and Training,Top 150 Awayday Event (DB),CF14 3UW,276.00,
Communities & Local Government,DCLG,02/06/2015,Training,Finance & Corporate Services,CABINET OFFICE,,Public Bodies,,349606306,5106213143,Development and Training,Top 150 Awayday Event (GN),CF14 3UW,276.00,
Communities & Local Government,DCLG,02/06/2015,Training,Finance & Corporate Services,LEARNING TREE INTERNATIONAL LTD,,Large,,225174424,5106213142,Development and Training,Database Training,KT22 7FG,"2,095.00",
Communities & Local Government,DCLG,02/06/2015,Waste Disposal and pest control,Finance & Corporate Services,INTERSERVE (FACILITIES MANAGEMENT),,Large,,364834825,5106213155,Waste Management Services,TQH Waste 2015-16,BS32 4NH,"1,301.76",
Communities & Local Government,DCLG,02/06/2015,Waste Disposal and pest control,Finance & Corporate Services,INTERSERVE (FACILITIES MANAGEMENT),,Large,,364834825,5106213155,Waste Management Services,Hemel Hempstead Waste 2015-16,BS32 4NH,271.36,
Communities & Local Government,DCLG,02/06/2015,Waste Disposal and pest control,Finance & Corporate Services,INTERSERVE (FACILITIES MANAGEMENT),,Large,,364834825,5106213155,Waste Management Services,Rivergate Waste 2015-16,BS32 4NH,917.18,
Communities & Local Government,DCLG,02/06/2015,Waste Disposal and pest control,Finance & Corporate Services,INTERSERVE (FACILITIES MANAGEMENT),,Large,,364834825,5106213155,Waste Management Services,Citygate Waste 2015-16,BS32 4NH,881.29,
Communities & Local Government,DCLG,02/06/2015,Waste Disposal and pest control,Finance & Corporate Services,INTERSERVE (FACILITIES MANAGEMENT),,Large,,364834825,5106213155,Waste Management Services,5SSP Waste 2015-16,BS32 4NH,871.17,
Communities & Local Government,DCLG,02/06/2015,Web Services,"Strategy, Communications and Private Office",DEXTROUS WEB LTD,,Micro,,211267270,5106213161,ICT Services,DCLG Intranet Hosting & Support,N1 7NG,874.18,
Communities & Local Government,DCLG,02/06/2015,Work In Progress Pre-Cert 40373 Spend,Neighbourhoods,COMMUNITY ACTION DERBY,,,,,7600012689,,Revenue Grant To Be Paid,DE1 2GT,"14,006.67",Yes
Communities & Local Government,DCLG,02/06/2015,Work In Progress Pre-Cert 40373 Spend,Neighbourhoods,DUDLEY CANAL TRUST TRIPS LTD,,Small,,,7600012690,,Revenue Grant To Be Paid,DY1 4SB,"2,371.34",Yes
Communities & Local Government,DCLG,02/06/2015,Work In Progress Pre-Cert 40373 Spend,Neighbourhoods,DUDLEY CANAL TRUST TRIPS LTD,,Small,,,7600012692,,Revenue Grant To Be Paid,DY1 4SB,"2,625.52",Yes
Communities & Local Government,DCLG,02/06/2015,Work In Progress Pre-Cert 40373 Spend,Neighbourhoods,SERCO REGIONAL SERVICES LTD,,,,,7600012691,,Revenue Grant To Be Paid,PL6 8LU,"266,751.21",Yes
Communities & Local Government,DCLG,02/06/2015,Work In Progress Pre-Cert 40373 Spend,Neighbourhoods,UNIVERSITY OF BIRMINGHAM,,Large,,,7600012688,,Revenue Grant To Be Paid,B15 2TT,"11,690.37",Yes
Communities & Local Government,DCLG,02/06/2015,Work In Progress Pre-Cert 40467 Spend,Neighbourhoods,DUDLEY CANAL TRUST TRIPS LTD,,Small,,,7600012690,,Capital Grant To Be Paid,DY1 4SB,"32,713.59",Yes
Communities & Local Government,DCLG,02/06/2015,Work In Progress Pre-Cert 40467 Spend,Neighbourhoods,DUDLEY CANAL TRUST TRIPS LTD,,Small,,,7600012692,,Capital Grant To Be Paid,DY1 4SB,"22,236.60",Yes
Communities & Local Government,DCLG,02/06/2015,Work In Progress Pre-Cert 40467 Spend,Neighbourhoods,LEICESTER CITY COUNCIL,,Large,,,2300002262,,Recovery of  payment,LE1 6ZG,"-6,393.42",Yes
Communities & Local Government,DCLG,02/06/2015,Work In Progress Pre-Cert 40467 Spend,Neighbourhoods,LEICESTER CITY COUNCIL,,Large,,,2300002262,,Recovery of  payment,LE1 6ZG,"-19,039.82",Yes
Communities & Local Government,DCLG,02/06/2015,Work In Progress Pre-Cert 40467 Spend,Neighbourhoods,NOTTINGHAM CITY COUNCIL,,Large,,,7600012687,,Capital Grant To Be Paid,NG2 3NG,"430,363.92",Yes
Communities & Local Government,DCLG,02/06/2015,Work In Progress Pre-Cert 40467 Spend,Neighbourhoods,SERCO REGIONAL SERVICES LTD,,,,,7600012691,,Capital Grant To Be Paid,PL6 8LU,"1,888.80",Yes
Communities & Local Government,DCLG,02/06/2015,Work In Progress Pre-Cert 40467 Spend,Neighbourhoods,UNIVERSITY OF BIRMINGHAM,,Large,,,7600012688,,Capital Grant To Be Paid,B15 2TT,372.77,Yes
Communities & Local Government,DCLG,03/06/2015,Advertising,Neighbourhoods,REED BUSINESS INFORMATION LTD,,Large,,224012018,5106213227,Advertising,Advertising in the Estates Gazette,SM2 5AS,"2,317.20",
Communities & Local Government,DCLG,03/06/2015,Agency Staff,Neighbourhoods,*BROOK STREET BUREAU,,Large,,509700118,5106213210,Contingent Labour,Interim Admin support,AL1 4JB,673.57,
Communities & Local Government,DCLG,03/06/2015,Agency Staff,Neighbourhoods,*BROOK STREET BUREAU,,Large,,509700118,5106213211,Contingent Labour,Interim Admin support,AL1 4JB,702.86,
Communities & Local Government,DCLG,03/06/2015,Agency Staff,Neighbourhoods,*BROOK STREET BUREAU,,Large,,509700118,5106213212,Contingent Labour,Interim Admin support,AL1 4JB,283.09,
Communities & Local Government,DCLG,03/06/2015,Agency Staff,Neighbourhoods,*BROOK STREET BUREAU,,Large,,509700118,5106213213,Contingent Labour,Interim Admin support,AL1 4JB,702.86,
Communities & Local Government,DCLG,03/06/2015,Agency Staff,Neighbourhoods,*BROOK STREET BUREAU,,Large,,509700118,5106213214,Contingent Labour,Interim Admin support,AL1 4JB,644.29,
Communities & Local Government,DCLG,03/06/2015,Agency Staff,Neighbourhoods,*BROOK STREET BUREAU,,Large,,509700118,5106213216,Contingent Labour,Interim Admin support,AL1 4JB,702.86,
Communities & Local Government,DCLG,03/06/2015,Agency Staff,Neighbourhoods,*BROOK STREET BUREAU,,Large,,509700118,5106213219,Contingent Labour,Interim Admin support,AL1 4JB,644.29,
Communities & Local Government,DCLG,03/06/2015,Agency Staff,Neighbourhoods,*BROOK STREET BUREAU,,Large,,509700118,5106213220,Contingent Labour,Interim Admin support,AL1 4JB,702.86,
Communities & Local Government,DCLG,03/06/2015,Agency Staff,Neighbourhoods,*BROOK STREET BUREAU,,Large,,509700118,5106213221,Contingent Labour,Interim Admin support,AL1 4JB,771.19,
Communities & Local Government,DCLG,03/06/2015,Agency Staff,Neighbourhoods,*BROOK STREET BUREAU,,Large,,509700118,5106213223,Contingent Labour,Interim Admin support,AL1 4JB,702.86,
Communities & Local Government,DCLG,03/06/2015,Agency Staff,Neighbourhoods,*BROOK STREET BUREAU,,Large,,509700118,5106213228,Contingent Labour,Interim Admin support,AL1 4JB,297.73,
Communities & Local Government,DCLG,03/06/2015,Agency Staff,Neighbourhoods,*BROOK STREET BUREAU,,Large,,509700118,5106213235,Contingent Labour,Interim Admin support,AL1 4JB,463.69,
Communities & Local Government,DCLG,03/06/2015,Agency Staff,Neighbourhoods,*BROOK STREET BUREAU,,Large,,509700118,5106213236,Contingent Labour,Interim Admin support,AL1 4JB,741.91,
Communities & Local Government,DCLG,03/06/2015,Agency Staff,Neighbourhoods,*BROOK STREET BUREAU,,Large,,509700118,5106213238,Contingent Labour,Interim Admin support,AL1 4JB,855.79,
Communities & Local Government,DCLG,03/06/2015,Agency Staff,Neighbourhoods,BROOK STREET UK LTD,,Large,,364940028,5106213237,Contingent Labour,Interim Admin support,PE1 1SY,689.39,
Communities & Local Government,DCLG,03/06/2015,Agency Staff,Neighbourhoods,CAPITA BUS. SERV. LTD (CON LAB),,Large,,,5106213242,Contingent Labour,Interim and Specialist Contractor,DL1 9HB,"3,285.18",
Communities & Local Government,DCLG,03/06/2015,Conferences and Meeting Facilities,Localism,NEW LOCAL GOVERNMENT NETWORK,,Small,,236009192,5106213201,Promotion,Integrating Yorkshire Event and Paper,SW1Y 4TE,"10,680.00",
Communities & Local Government,DCLG,03/06/2015,Current (non AEF) Grants to Local Authorities,Neighbourhoods,CHERWELL DC,,,,211168208,2100254956,,Garden Cities Capacity Funding,OX15 4AA,"740,000.00",Yes
Communities & Local Government,DCLG,03/06/2015,Current Grants to Non Profit Bodies,Localism,APASENTH,,,,,2100255009,,Community-based English Language Competition,E14 7FF,"78,050.00",Yes
Communities & Local Government,DCLG,03/06/2015,Current Grants to Non Profit Bodies,Localism,CHURCH URBAN FUND,,Small,,396728263,2100255013,,Near Neighbours Initiative,SW1P 3AZ,"412,000.00",Yes
Communities & Local Government,DCLG,03/06/2015,Current Grants to Non Profit Bodies,Localism,FAITH ACTION,Yes,Medium,,,2100255010,,Community-based English Language Competition,RM8 3QS,"203,256.58",Yes
Communities & Local Government,DCLG,03/06/2015,Current Grants to Non Profit Bodies,Localism,ONE20,Yes,Small,,217857528,2100255011,,Community-based English Language Competition,WC1H 8BS,"301,726.00",Yes
Communities & Local Government,DCLG,03/06/2015,Current Grants to Non Profit Bodies,Localism,SUPERACT,,Small,,,2100255012,,Final Payment � The Last post,TA21 8EB,"6,000.00",Yes
Communities & Local Government,DCLG,03/06/2015,Current Grants to Non Profit Bodies,Localism,TINDER FOUNDATION,Yes,Medium,,,2100255008,,Community-based English Language Competition,S1 2BX,"67,548.00",Yes
Communities & Local Government,DCLG,03/06/2015,Facilities Management (ISD use only),Finance & Corporate Services,INTERSERVE (FACILITIES MANAGEMENT),,Large,,364834825,5106213202,Property Occupation,Catering Tariff Eland House,BS32 4NH,"53,130.00",
Communities & Local Government,DCLG,03/06/2015,Facilities Management (ISD use only),Finance & Corporate Services,INTERSERVE (FACILITIES MANAGEMENT),,Large,,364834825,5106213202,Property Occupation,Catering Tariff - TQH,BS32 4NH,"23,223.79",
Communities & Local Government,DCLG,03/06/2015,Facilities Management (ISD use only),Finance & Corporate Services,INTERSERVE (FACILITIES MANAGEMENT),,Large,,364834825,5106213202,Property Occupation,Catering Tariff - Hempstead House,BS32 4NH,"2,589.10",
Communities & Local Government,DCLG,03/06/2015,Facilities Management (ISD use only),Finance & Corporate Services,INTERSERVE (FACILITIES MANAGEMENT),,Large,,364834825,5106213202,Property Occupation,Catering Tariff - Rivergate,BS32 4NH,"12,705.16",
Communities & Local Government,DCLG,03/06/2015,Facilities Management (ISD use only),Finance & Corporate Services,INTERSERVE (FACILITIES MANAGEMENT),,Large,,364834825,5106213202,Property Occupation,Catering Tariff - Citygate,BS32 4NH,"8,688.79",
Communities & Local Government,DCLG,03/06/2015,Facilities Management (ISD use only),Finance & Corporate Services,INTERSERVE (FACILITIES MANAGEMENT),,Large,,364834825,5106213202,Property Occupation,Catering Tariff - St Philips Place,BS32 4NH,"8,587.57",
Communities & Local Government,DCLG,03/06/2015,Fixed Maintenance,Finance & Corporate Services,COFELY LTD,,,,,5106213144,Construction Service Providers,Bridge House - VAV works,HP12 3TA,"22,933.20",
Communities & Local Government,DCLG,03/06/2015,Government Procurement Card (expense),"Strategy, Communications and Private Office",DCLG GOVERNMENT PROCUREMENT CARD,,,,,1000004034,,Advertorial space - Financial Times - HR,TN37 7GA,"3,000.00",
Communities & Local Government,DCLG,03/06/2015,IT - Service Contracts,Finance & Corporate Services,FUJITSU SERVICES LTD,,Large,,423375062,5106213244,IT Managed / Outsourced Services,CNFJDCLG096.001 GSI to PSN,WA3 9BD,"36,768.70",
Communities & Local Government,DCLG,03/06/2015,IT - Service Contracts,Finance & Corporate Services,FUJITSU SERVICES LTD,,Large,,423375062,5106213245,IT Managed / Outsourced Services,FY 15/16 NR New Requirements,WA3 9BD,"15,780.65",
Communities & Local Government,DCLG,03/06/2015,IT - Service Contracts,Finance & Corporate Services,FUJITSU SERVICES LTD,,Large,,423375062,5106213266,IT Managed / Outsourced Services,"FY15/16 DRP Charges ""DRP1Table Charges",WA3 9BD,"-15,631.41",
Communities & Local Government,DCLG,03/06/2015,IT - Service Contracts,Finance & Corporate Services,FUJITSU SERVICES LTD,,Large,,423375062,5106213270,IT Managed / Outsourced Services,"FY14/15 DRP Charges ""DRP1Table Charges",WA3 9BD,"15,631.41",
Communities & Local Government,DCLG,03/06/2015,IT - Service Contracts,Localism,KAINOS SOFTWARE,,Medium,,,5106213109,IT Managed / Outsourced Services,Support for Meridio database,BT7 1NT,"9,255.00",
Communities & Local Government,DCLG,03/06/2015,Mobile phone costs,Finance & Corporate Services,ORANGE (AIRTIME/LINE RENTAL),,Large,,210707540,2100255007,Telecoms,Monthly consolidated phone costs May 2015,S98 1DX,391.80,
Communities & Local Government,DCLG,03/06/2015,Online Database Information Retrieval,Finance & Corporate Services,HEMMING GROUP LTD,,Medium,,210907168,5106213215,ICT Services,Municipal Yearbook on-line 2015-16,SW1V 2SS,"2,102.40",
Communities & Local Government,DCLG,03/06/2015,Recruitment,Finance & Corporate Services,DISCLOSURE SCOTLAND,,Micro,,210312811,5106213205,Business Process Outsourcing Services,Recruitment Security CRB Vetting 14/15,G51 1YU,800.00,
Communities & Local Government,DCLG,03/06/2015,Software Licences,Finance & Corporate Services,BYTES SOFTWARE SERVICES LTD,,Medium,,225273754,5106213231,Software,Microsoft VisioStd 2013 SNGL MVL,KT22 7TW,298.54,
Communities & Local Government,DCLG,03/06/2015,Steady State Service Provision,Finance & Corporate Services,GALLAGHER BASSETT INTERNATIONAL LTD,,Large,,291745289,5106213062,Business Process Outsourcing Services,Claims Handling Call off,EC3A 7AH,"1,320.00",
Communities & Local Government,DCLG,03/06/2015,Steady State Service Provision,Localism,CO-OPERATIVES UK,,Small,,,5106213241,Business Process Outsourcing Services,Lot 4 Community Economic Development,M60 0AS,"15,009.99",
Communities & Local Government,DCLG,03/06/2015,Training,Finance & Corporate Services,CAPITA BUS. SERV. LTD (CSL),,Large,,215580993,5106213172,Development and Training,State Aid Funding Training,DL1 9HB,"2,001.35",
Communities & Local Government,DCLG,03/06/2015,Training,Finance & Corporate Services,CAPITA BUS. SERV. LTD (CSL),,Large,,215580993,5106213173,Development and Training,Fast Stream: Understanding Government,DL1 9HB,302.00,
Communities & Local Government,DCLG,03/06/2015,Training,Finance & Corporate Services,CAPITA BUS. SERV. LTD (CSL),,Large,,215580993,5106213174,Development and Training,Briefings and Submissions,DL1 9HB,209.00,
Communities & Local Government,DCLG,03/06/2015,Training,Finance & Corporate Services,CAPITA BUS. SERV. LTD (CSL),,Large,,215580993,5106213183,Development and Training,Fast Stream: Presentation Skills,DL1 9HB,293.00,
Communities & Local Government,DCLG,03/06/2015,Training,Finance & Corporate Services,CAPITA BUS. SERV. LTD (CSL),,Large,,215580993,5106213184,Development and Training,APMP: Association for Project Management,DL1 9HB,614.00,
Communities & Local Government,DCLG,03/06/2015,Training,Finance & Corporate Services,CAPITA BUS. SERV. LTD (CSL),,Large,,215580993,5106213185,Development and Training,APM Introductory Certificate,DL1 9HB,303.00,
Communities & Local Government,DCLG,03/06/2015,Training,Finance & Corporate Services,CAPITA BUS. SERV. LTD (CSL),,Large,,215580993,5106213188,Development and Training,Briefings and Submissions,DL1 9HB,209.00,
Communities & Local Government,DCLG,03/06/2015,Training,Finance & Corporate Services,CAPITA BUS. SERV. LTD (CSL),,Large,,215580993,5106213189,Development and Training,Briefings and Submissions course,DL1 9HB,209.00,
Communities & Local Government,DCLG,03/06/2015,Training,Finance & Corporate Services,CAPITA BUS. SERV. LTD (CSL),,Large,,215580993,5106213190,Development and Training,PRINCE2  Practitioner Re-registration,DL1 9HB,321.00,
Communities & Local Government,DCLG,03/06/2015,Training,Finance & Corporate Services,CAPITA BUS. SERV. LTD (CSL),,Large,,215580993,5106213191,Development and Training,Fast Stream: Managing Staff & Performanc,DL1 9HB,302.00,
Communities & Local Government,DCLG,03/06/2015,Training,Finance & Corporate Services,CAPITA BUS. SERV. LTD (CSL),,Large,,215580993,5106213193,Development and Training,Training the Trainer,DL1 9HB,258.00,
Communities & Local Government,DCLG,03/06/2015,Work In Progress Pre-Cert 40373 Spend,Neighbourhoods,CLIMATE ENERGY (NFP) LTD,,Small,,,7600012698,,Revenue Grant To Be Paid,CR0 6BA,"55,866.45",Yes
Communities & Local Government,DCLG,03/06/2015,Work In Progress Pre-Cert 40373 Spend,Neighbourhoods,MEDILINK EAST MIDLANDS,,Small,,,7600012693,,Revenue Grant To Be Paid,NG1 1GF,"159,813.47",Yes
Communities & Local Government,DCLG,03/06/2015,Work In Progress Pre-Cert 40467 Spend,Neighbourhoods,CLIMATE ENERGY (NFP) LTD,,Small,,,7600012698,,Capital Grant To Be Paid,CR0 6BA,"66,835.63",Yes
Communities & Local Government,DCLG,03/06/2015,Work In Progress Pre-Cert 40467 Spend,Neighbourhoods,CTP (WAKEFIELD) LTD,,,,,7600012694,,Capital Grant To Be Paid,M15 4PY,"247,105.05",Yes
Communities & Local Government,DCLG,03/06/2015,Work In Progress Pre-Cert 40467 Spend,Neighbourhoods,ENERGY WORKS (HULL) LIMITED,,,,,7600012695,,Capital Grant To Be Paid,HU1 2BN,"477,756.35",Yes
Communities & Local Government,DCLG,03/06/2015,Work In Progress Pre-Cert 40467 Spend,Neighbourhoods,HORNCASTLE GROUP PLC,,Medium,,,7600012696,,Capital Grant To Be Paid,HU15 2AT,"14,581.60",Yes
Communities & Local Government,DCLG,03/06/2015,Work In Progress Pre-Cert 40467 Spend,Neighbourhoods,HORNCASTLE GROUP PLC,,Medium,,,7600012697,,Capital Grant To Be Paid,HU15 2AT,"159,385.85",Yes
Communities & Local Government,DCLG,03/06/2015,Work In Progress Pre-Cert 40467 Spend,Neighbourhoods,NOTTINGHAM UNIVERSITY,,Large,,,2300002255,,Recovery of  payment,NG7 2RD,"-5,509.39",Yes
Communities & Local Government,DCLG,04/06/2015,Agency Staff,Finance & Corporate Services,SQUARE ONE RESOURCES LTD,,Medium,,491410288,5106213258,Contingent Labour,SAP specialist support until Closedown,EC2A 2AD,"2,287.06",
Communities & Local Government,DCLG,04/06/2015,Agency Staff,Neighbourhoods,*BROOK STREET BUREAU,,Large,,509700118,5106213217,Contingent Labour,Interim Admin support,AL1 4JB,709.62,
Communities & Local Government,DCLG,04/06/2015,Agency Staff,Neighbourhoods,*BROOK STREET BUREAU,,Large,,509700118,5106213229,Contingent Labour,Interim Admin support,AL1 4JB,566.20,
Communities & Local Government,DCLG,04/06/2015,Agency Staff,Neighbourhoods,*BROOK STREET BUREAU,,Large,,509700118,5106213275,Contingent Labour,Interim Admin support,AL1 4JB,702.86,
Communities & Local Government,DCLG,04/06/2015,Agency Staff,Neighbourhoods,*BROOK STREET BUREAU,,Large,,509700118,5106213276,Contingent Labour,Interim Admin support,AL1 4JB,702.86,
Communities & Local Government,DCLG,04/06/2015,Agency Staff,Neighbourhoods,BROOK STREET UK LTD,,Large,,364940028,5106213222,Contingent Labour,Interim Admin support,PE1 1SY,658.93,
Communities & Local Government,DCLG,04/06/2015,Agency Staff,Neighbourhoods,BROOK STREET UK LTD,,Large,,364940028,5106213224,Contingent Labour,Interim Admin support,PE1 1SY,624.77,
Communities & Local Government,DCLG,04/06/2015,Agency Staff,Neighbourhoods,BROOK STREET UK LTD,,Large,,364940028,5106213225,Contingent Labour,Interim Admin support,PE1 1SY,837.96,
Communities & Local Government,DCLG,04/06/2015,Agency Staff,"Strategy, Communications and Private Office",BROOK STREET BUREAU,,Large,,215794799,5106213265,Contingent Labour,Correspondance Unit Agency Staff,WD1 2BP,458.30,
Communities & Local Government,DCLG,04/06/2015,Agency Staff,"Strategy, Communications and Private Office",BROOK STREET BUREAU,,Large,,215794799,5106213267,Contingent Labour,Correspondance Unit Agency Staff,WD1 2BP,582.20,
Communities & Local Government,DCLG,04/06/2015,Agency Staff,"Strategy, Communications and Private Office",BROOK STREET BUREAU,,Large,,215794799,5106213268,Contingent Labour,Correspondance Unit Agency Staff,WD1 2BP,458.30,
Communities & Local Government,DCLG,04/06/2015,Agency Staff,"Strategy, Communications and Private Office",BROOK STREET BUREAU,,Large,,215794799,5106213269,Contingent Labour,Correspondance Unit Agency Staff,WD1 2BP,532.22,
Communities & Local Government,DCLG,04/06/2015,Agency Staff,"Strategy, Communications and Private Office",BROOK STREET BUREAU,,Large,,215794799,5106213271,Contingent Labour,Correspondance Unit Agency Staff,WD1 2BP,571.10,
Communities & Local Government,DCLG,04/06/2015,Agency Staff,"Strategy, Communications and Private Office",BROOK STREET BUREAU,,Large,,215794799,5106213272,Contingent Labour,Correspondance Unit Agency Staff,WD1 2BP,561.79,
Communities & Local Government,DCLG,04/06/2015,Agency Staff,"Strategy, Communications and Private Office",BROOK STREET BUREAU,,Large,,215794799,5106213273,Contingent Labour,Correspondance Unit Agency Staff,WD1 2BP,554.40,
Communities & Local Government,DCLG,04/06/2015,Current Grants to Non Profit Bodies,Neighbourhoods,ASHFORD BC,,Public Bodies,,229467071,2100254934,,Large Sites Infrastructure Capacity Fund,TN23 0XA,"95,000.00",Yes
Communities & Local Government,DCLG,04/06/2015,Current Grants to Non Profit Bodies,Neighbourhoods,BLABY DC,,,,236643755,2100254880,,Large Sites Infrastructure Capacity Fund,LE19 2EP,"121,000.00",Yes
Communities & Local Government,DCLG,04/06/2015,Current Grants to Non Profit Bodies,Neighbourhoods,BRACKNELL FOREST BC,,,,236184867,2100254928,,Large Sites Infrastructure Capacity Fund,RG12 1AQ,"100,000.00",Yes
Communities & Local Government,DCLG,04/06/2015,Current Grants to Non Profit Bodies,Neighbourhoods,CARLISLE CITY COUNCIL,,Large,,227471059,2100254939,,Large Sites Infrastructure Capacity Fund,CA3 8BR,"166,666.00",Yes
Communities & Local Government,DCLG,04/06/2015,Current Grants to Non Profit Bodies,Neighbourhoods,CHERWELL DC,,,,211168208,2100254955,,Large Sites Infrastructure Capacity Fund,OX15 4AA,"180,000.00",Yes
Communities & Local Government,DCLG,04/06/2015,Current Grants to Non Profit Bodies,Neighbourhoods,CORNWALL COUNTY COUNCIL,,Large,,211334404,2100254942,,Large Sites Infrastructure Capacity Fund,TR1 3AY,"130,000.00",Yes
Communities & Local Government,DCLG,04/06/2015,Current Grants to Non Profit Bodies,Neighbourhoods,COTSWOLD COUNTY COUNCIL,,Large,,232462085,2100254951,,Large Sites Infrastructure Capacity Fund,GL7 1PX,"293,300.00",Yes
Communities & Local Government,DCLG,04/06/2015,Current Grants to Non Profit Bodies,Neighbourhoods,CUMBRIA COUNTY COUNCIL,,Public Bodies,,215464640,2100254938,,Large Sites Infrastructure Capacity Fund,CA13 9PR,"40,000.00",Yes
Communities & Local Government,DCLG,04/06/2015,Current Grants to Non Profit Bodies,Neighbourhoods,DONCASTER MBC,,Public Bodies,,368170627,2100254879,,Large Sites Infrastructure Capacity Fund,DN1 1ER,"87,912.00",Yes
Communities & Local Government,DCLG,04/06/2015,Current Grants to Non Profit Bodies,Neighbourhoods,EAST DEVON DC,,Public Bodies,,,2100254953,,Large Sites Infrastructure Capacity Fund,EX10 8HL,"263,000.00",Yes
Communities & Local Government,DCLG,04/06/2015,Current Grants to Non Profit Bodies,Neighbourhoods,EXETER CITY COUNCIL,,Public Bodies,,236473328,2100254929,,Large Sites Infrastructure Capacity Fund,EX1 1JW,"45,000.00",Yes
Communities & Local Government,DCLG,04/06/2015,Current Grants to Non Profit Bodies,Neighbourhoods,GLOUCESTERSHIRE COUNTY COUNCIL,,Public Bodies,,211272067,2100254985,,Large Sites Infrastructure Capacity Fund,GL2 2AX,"528,200.00",Yes
Communities & Local Government,DCLG,04/06/2015,Current Grants to Non Profit Bodies,Neighbourhoods,HARLOW DISTRICT COUNCIL,,,,232914382,2100254943,,Large Sites Infrastructure Capacity Fund,CM20 1HJ,"100,000.00",Yes
Communities & Local Government,DCLG,04/06/2015,Current Grants to Non Profit Bodies,Neighbourhoods,IPSWICH BC,,,,236431615,2100254877,,Large Sites Infrastructure Capacity Fund,IP1 2DE,"115,000.00",Yes
Communities & Local Government,DCLG,04/06/2015,Current Grants to Non Profit Bodies,Neighbourhoods,KINGS LYNN & W NORFOLK BC,,,,236417671,2100254881,,Large Sites Infrastructure Capacity Fund,PE30 1EX,"25,000.00",Yes
Communities & Local Government,DCLG,04/06/2015,Current Grants to Non Profit Bodies,Neighbourhoods,LIVERPOOL CITY COUNCIL,,Public Bodies,,228646113,2100254883,,Large Sites Infrastructure Capacity Fund,L2 2DH,"223,254.00",Yes
Communities & Local Government,DCLG,04/06/2015,Current Grants to Non Profit Bodies,Neighbourhoods,MALDON DC,,,,424668663,2100254945,,Large Sites Infrastructure Capacity Fund,CM9 7DL,"91,970.00",Yes
Communities & Local Government,DCLG,04/06/2015,Current Grants to Non Profit Bodies,Neighbourhoods,MANCHESTER CITY COUNCIL,,Large,,238004407,2100254932,,Large Sites Infrastructure Capacity Fund,M60 2LA,"177,000.00",Yes
Communities & Local Government,DCLG,04/06/2015,Current Grants to Non Profit Bodies,Neighbourhoods,MID DEVON DISTRICT COUNCIL,,,,213241137,2100254952,,Large Sites Infrastructure Capacity Fund,EX16 6PP,"60,000.00",Yes
Communities & Local Government,DCLG,04/06/2015,Current Grants to Non Profit Bodies,Neighbourhoods,NEWARK & SHERWOOD DC,,,,236186755,2100254876,,Large Sites Infrastructure Capacity Fund,NG23 5QX,"93,248.00",Yes
Communities & Local Government,DCLG,04/06/2015,Current Grants to Non Profit Bodies,Neighbourhoods,NORTH DORSET DC,,,,236185005,2100254935,,Large Sites Infrastructure Capacity Fund,DT11 7LL,"82,426.00",Yes
Communities & Local Government,DCLG,04/06/2015,Current Grants to Non Profit Bodies,Neighbourhoods,NORTH KESTEVEN DC,,,,210355474,2100254930,,Large Sites Infrastructure Capacity Fund,NG34 7EF,"40,000.00",Yes
Communities & Local Government,DCLG,04/06/2015,Current Grants to Non Profit Bodies,Neighbourhoods,NORTH LINCOLNSHIRE DC,,Public Bodies,,424005502,2100254941,,Large Sites Infrastructure Capacity Fund,DN16 1AB,"165,034.00",Yes
Communities & Local Government,DCLG,04/06/2015,Current Grants to Non Profit Bodies,Neighbourhoods,NORTH SOMERSET COUNCIL,,Large,,,2100254931,,Large Sites Infrastructure Capacity Fund,BS23 1UJ,"520,000.00",Yes
Communities & Local Government,DCLG,04/06/2015,Current Grants to Non Profit Bodies,Neighbourhoods,NORTH TYNESIDE COUNCIL,,,,,2100254946,,Large Sites Infrastructure Capacity Fund,NA27 0BY,"495,000.00",Yes
Communities & Local Government,DCLG,04/06/2015,Current Grants to Non Profit Bodies,Neighbourhoods,NORTHAMPTONSHIRE CC,,,,,2100254937,,Large Sites Infrastructure Capacity Fund,NN1 1AX,"40,000.00",Yes
Communities & Local Government,DCLG,04/06/2015,Current Grants to Non Profit Bodies,Neighbourhoods,PRESTON CITY COUNCIL,,Public Bodies,,232604124,2100254933,,Large Sites Infrastructure Capacity Fund,PR1 2RL,"240,650.00",Yes
Communities & Local Government,DCLG,04/06/2015,Current Grants to Non Profit Bodies,Neighbourhoods,ROTHERHAM MBC,,,,,2100254874,,Large Sites Infrastructure Capacity Fund,S60 1AE,"66,668.00",Yes
Communities & Local Government,DCLG,04/06/2015,Current Grants to Non Profit Bodies,Neighbourhoods,SOUTH CAMBRIDGESHIRE DC,,Public Bodies,,236369484,2100254885,,Large Sites Infrastructure Capacity Fund,CB23 6EA,"84,663.00",Yes
Communities & Local Government,DCLG,04/06/2015,Current Grants to Non Profit Bodies,Neighbourhoods,SOUTH GLOUCESTERSHIRE COUNCIL,,Large,,,2100254940,,Large Sites Infrastructure Capacity Fund,BS15 9DW,"345,000.00",Yes
Communities & Local Government,DCLG,04/06/2015,Current Grants to Non Profit Bodies,Neighbourhoods,SOUTH HAMS DC,,,,236445342,2100254950,,Large Sites Infrastructure Capacity Fund,TQ9 5NE,"235,180.00",Yes
Communities & Local Government,DCLG,04/06/2015,Current Grants to Non Profit Bodies,Neighbourhoods,SOUTH KESTEVEN DC,,,,,2100254986,,Large Sites Infrastructure Capacity Fund,NG31 9AB,"176,000.00",Yes
Communities & Local Government,DCLG,04/06/2015,Current Grants to Non Profit Bodies,Neighbourhoods,STAFFORD BC,,Large,,227476934,2100254882,,Large Sites Infrastructure Capacity Fund,ST16 3AQ,"31,076.00",Yes
Communities & Local Government,DCLG,04/06/2015,Current Grants to Non Profit Bodies,Neighbourhoods,SWINDON BOROUGH COUNCIL,,Large,,,2100254948,,Large Sites Infrastructure Capacity Fund,SN1 2JH,"475,000.00",Yes
Communities & Local Government,DCLG,04/06/2015,Current Grants to Non Profit Bodies,Neighbourhoods,TAUNTON DEANE BC,,Large,,236185294,2100254949,,Large Sites Infrastructure Capacity Fund,TA1 9GS,"240,500.00",Yes
Communities & Local Government,DCLG,04/06/2015,Current Grants to Non Profit Bodies,Neighbourhoods,TEIGNBRIDGE DC,,,,236440475,2100254884,,Large Sites Infrastructure Capacity Fund,TQ12 4XX,"359,250.00",Yes
Communities & Local Government,DCLG,04/06/2015,Current Grants to Non Profit Bodies,Neighbourhoods,TEWKESBURY BC,,,,232740399,2100254944,,Large Sites Infrastructure Capacity Fund,GL20 5TT,"268,300.00",Yes
Communities & Local Government,DCLG,04/06/2015,Current Grants to Non Profit Bodies,Neighbourhoods,WAKEFIELD MDC,,Public Bodies,,214042398,2100254878,,Large Sites Infrastructure Capacity Fund,WF1 2HQ,"163,500.00",Yes
Communities & Local Government,DCLG,04/06/2015,Current Grants to Non Profit Bodies,Neighbourhoods,WOKINGHAM DC,,Public Bodies,,,2100254954,,Large Sites Infrastructure Capacity Fund,RG40 1JW,"846,000.00",Yes
Communities & Local Government,DCLG,04/06/2015,Electricity,Finance & Corporate Services,EDF ENERGY 1 LIMITED,,Large,,230840469,5106213259,Energy,SW Taunton Electricity 2015-16,PL3 5XQ,"2,763.19",
Communities & Local Government,DCLG,04/06/2015,"IT - PC, Network & Hardware",Finance & Corporate Services,COMPUTACENTER (UK) LTD,,Large,,226023463,5106213260,ICT Hardware,Lenovo ThinkPad Edge E550 Ref:4128509/2,AL10 9TW,592.44,
Communities & Local Government,DCLG,04/06/2015,IT - Service Contracts,Finance & Corporate Services,FUJITSU SERVICES LTD,,Large,,423375062,5106213264,IT Managed / Outsourced Services,CNFJDCLG017 Y1 Horizon Service Charges,WA3 9BD,"7,786.85",
Communities & Local Government,DCLG,04/06/2015,IT - Service Contracts,Finance & Corporate Services,FUJITSU SERVICES LTD,,Large,,423375062,5106213264,IT Managed / Outsourced Services,CNFJDCLG017 Y2 Horizon Service Charges,WA3 9BD,0.96,
Communities & Local Government,DCLG,04/06/2015,Medals,Localism,ROYAL MINT,,Public Bodies,,211722976,5106213278,Learning and Development Materials,FireFighter Medals for LS  Good Conduct,CF72 8YT,403.20,
Communities & Local Government,DCLG,04/06/2015,Medals,Localism,ROYAL MINT,,Public Bodies,,211722976,5106213279,Learning and Development Materials,FireFighter Medals for LS  Good Conduct,CF72 8YT,352.80,
Communities & Local Government,DCLG,04/06/2015,Professional services,Finance & Corporate Services,E C HARRIS LLP,,Large,,,5106213248,Construction Service Providers,PAMU Com 153 TFM S&C Mngr & PM Support,N1 9AB,"4,998.55",
Communities & Local Government,DCLG,04/06/2015,Professional services,Finance & Corporate Services,E C HARRIS LLP,,Large,,,5106213250,Construction Service Providers,PAMU Com 153 TFM S&C Mngr & PM Support,N1 9AB,"8,404.08",
Communities & Local Government,DCLG,04/06/2015,Professional services,Finance & Corporate Services,GVA GRIMLEY LTD,,Large,,210158990,5106213147,Business Support,Com 159 Taunton Fire Centre Defects,B1 2JB,"3,120.00",
Communities & Local Government,DCLG,04/06/2015,Publications,Finance & Corporate Services,JONES YARRELL LEADENHALL LTD,,Large,,505670265,5106213206,Learning and Development Materials,Journal and Newspaper supply 2015-16,E3 3JH,369.79,
Communities & Local Government,DCLG,04/06/2015,Publicity,"Strategy, Communications and Private Office",GORKANA GROUP LTD,,Large,,210089876,5106213257,Advertising,Media evaluation,EC1Y 8QE,"18,000.00",
Communities & Local Government,DCLG,04/06/2015,Publicity,"Strategy, Communications and Private Office",GORKANA GROUP LTD,,Large,,210089876,5106213280,Advertising,Press cuttings,EC1Y 8QE,"2,339.18",
Communities & Local Government,DCLG,04/06/2015,Publicity,"Strategy, Communications and Private Office",JONES YARRELL LEADENHALL LTD,,Large,,505670265,5106213207,Advertising,Newspaper and Magazines 14/15,E3 3JH,"1,038.32",
Communities & Local Government,DCLG,04/06/2015,Recruitment,Finance & Corporate Services,HM REVENUE & CUSTOMS,,Public Bodies,,365117972,5106213252,Business Process Outsourcing Services,SCS - Psychometric tests,BN12 4XH,"1,886.40",
Communities & Local Government,DCLG,04/06/2015,Variable Maintenance < 15k,Finance & Corporate Services,HOME OFFICE,,Large,,210019203,5106213255,Property Occupation,2 MS Meeting RMs for HCA (FG47 & FG48,NP20 9BB,"74,319.35",
Communities & Local Government,DCLG,04/06/2015,Work In Progress Pre-Cert 40373 Spend,Neighbourhoods,ASTON UNIVERSITY,,Large,,,7600012713,,Revenue Grant To Be Paid,B4 7ET,"41,334.50",Yes
Communities & Local Government,DCLG,04/06/2015,Work In Progress Pre-Cert 40373 Spend,Neighbourhoods,BIRMINGHAM CITY UNIVERSITY,,Medium,,,7600012702,,Revenue Grant To Be Paid,B42 2SU,"9,237.12",Yes
Communities & Local Government,DCLG,04/06/2015,Work In Progress Pre-Cert 40373 Spend,Neighbourhoods,BIRMINGHAM CITY UNIVERSITY,,Medium,,,7600012709,,Revenue Grant To Be Paid,B42 2SU,"23,007.52",Yes
Communities & Local Government,DCLG,04/06/2015,Work In Progress Pre-Cert 40373 Spend,Neighbourhoods,COVENTRY CITY COUNCIL,,Large,,,7600012705,,Revenue Grant To Be Paid,CV1 5RR,"7,852.79",Yes
Communities & Local Government,DCLG,04/06/2015,Work In Progress Pre-Cert 40373 Spend,Neighbourhoods,COVENTRY CITY COUNCIL,,Large,,,7600012711,,Revenue Grant To Be Paid,CV1 5RR,"11,040.91",Yes
Communities & Local Government,DCLG,04/06/2015,Work In Progress Pre-Cert 40373 Spend,Neighbourhoods,COVENTRY UNIVERSITY,,Large,,,7600012701,,Revenue Grant To Be Paid,CV1 5FB,"11,391.05",Yes
Communities & Local Government,DCLG,04/06/2015,Work In Progress Pre-Cert 40373 Spend,Neighbourhoods,COVENTRY UNIVERSITY ENTERPRISES LTD,,Medium,,,7600012699,,Revenue Grant To Be Paid,CV1 2TT,"44,464.83",Yes
Communities & Local Government,DCLG,04/06/2015,Work In Progress Pre-Cert 40373 Spend,Neighbourhoods,COVENTRY UNIVERSITY ENTERPRISES LTD,,Medium,,,7600012700,,Revenue Grant To Be Paid,CV1 2TT,"38,782.53",Yes
Communities & Local Government,DCLG,04/06/2015,Work In Progress Pre-Cert 40373 Spend,Neighbourhoods,COVENTRY UNIVERSITY ENTERPRISES LTD,,Medium,,,7600012720,,Revenue Grant To Be Paid,CV1 2TT,"11,359.71",Yes
Communities & Local Government,DCLG,04/06/2015,Work In Progress Pre-Cert 40373 Spend,Neighbourhoods,CREATIVE ENGLAND LIMITED,,Medium,,,7600012706,,Revenue Grant To Be Paid,BS1 5SP,"14,962.50",Yes
Communities & Local Government,DCLG,04/06/2015,Work In Progress Pre-Cert 40373 Spend,Neighbourhoods,ESSEX COUNTY COUNCIL,,Small,,,7600012714,,Revenue Grant To Be Paid,CO1 1WD,"472,599.48",Yes
Communities & Local Government,DCLG,04/06/2015,Work In Progress Pre-Cert 40373 Spend,Neighbourhoods,MARKETING BIRMINGHAM LIMITED,,Medium,,,7600012712,,Revenue Grant Clawback Offset,B1 2ND,-133.30,Yes
Communities & Local Government,DCLG,04/06/2015,Work In Progress Pre-Cert 40373 Spend,Neighbourhoods,MARKETING BIRMINGHAM LIMITED,,Medium,,,7600012712,,Revenue Grant To Be Paid,B1 2ND,"412,439.49",Yes
Communities & Local Government,DCLG,04/06/2015,Work In Progress Pre-Cert 40373 Spend,Neighbourhoods,NORFOLK & WAVENEY ENTERPRISE SERV'S,,Medium,,,7600012707,,Revenue Grant To Be Paid,NR2 1JH,"107,725.50",Yes
Communities & Local Government,DCLG,04/06/2015,Work In Progress Pre-Cert 40373 Spend,Neighbourhoods,SHROPSHIRE COUNCIL,,Public Bodies,,,7600012703,,Revenue Grant To Be Paid,SY2 6ND,"36,123.41",Yes
Communities & Local Government,DCLG,04/06/2015,Work In Progress Pre-Cert 40373 Spend,Neighbourhoods,SHROPSHIRE COUNCIL,,Public Bodies,,,7600012717,,Revenue Grant To Be Paid,SY2 6ND,"7,083.14",Yes
Communities & Local Government,DCLG,04/06/2015,Work In Progress Pre-Cert 40373 Spend,Neighbourhoods,SHROPSHIRE COUNCIL,,Public Bodies,,,7600012724,,Revenue Grant To Be Paid,SY2 6ND,"16,009.53",Yes
Communities & Local Government,DCLG,04/06/2015,Work In Progress Pre-Cert 40373 Spend,Neighbourhoods,STAVELEY TOWN COUNCIL,,Small,,,7600012710,,Revenue Grant To Be Paid,S43 3TN,605.00,Yes
Communities & Local Government,DCLG,04/06/2015,Work In Progress Pre-Cert 40373 Spend,Neighbourhoods,STAVELEY TOWN COUNCIL,,Small,,,7600012722,,Revenue Grant To Be Paid,S43 3TN,525.00,Yes
Communities & Local Government,DCLG,04/06/2015,Work In Progress Pre-Cert 40373 Spend,Neighbourhoods,STOKE-ON-TRENT CITY COUNCIL,,Large,,,7600012716,,Revenue Grant To Be Paid,ST4 1HP,"18,749.09",Yes
Communities & Local Government,DCLG,04/06/2015,Work In Progress Pre-Cert 40373 Spend,Neighbourhoods,UNIVERSITY OF WARWICK,,Large,,,7600012715,,Revenue Grant To Be Paid,CV4 8UW,"106,721.95",Yes
Communities & Local Government,DCLG,04/06/2015,Work In Progress Pre-Cert 40373 Spend,Neighbourhoods,WORCESTERSHIRE COUNTY COUNCIL,,Public Bodies,,,7600012718,,Revenue Grant To Be Paid,WR5 2NP,"22,380.11",Yes
Communities & Local Government,DCLG,04/06/2015,Work In Progress Pre-Cert 40373 Spend,Neighbourhoods,WORCESTERSHIRE COUNTY COUNCIL,,Public Bodies,,,7600012723,,Revenue Grant To Be Paid,WR5 2NP,"2,565.21",Yes
Communities & Local Government,DCLG,04/06/2015,Work In Progress Pre-Cert 40373 Spend,Neighbourhoods,WSX ENTERPRISE LIMITED,,,,,7600012708,,Revenue Grant To Be Paid,PO16 7BJ,"65,546.70",Yes
Communities & Local Government,DCLG,04/06/2015,Work In Progress Pre-Cert 40373 Spend,Neighbourhoods,YTKO LIMITED,,,,,7600012721,,Revenue Grant To Be Paid,CB4 2QH,778.11,Yes
Communities & Local Government,DCLG,04/06/2015,Work In Progress Pre-Cert 40467 Spend,Neighbourhoods,COVENTRY CITY COUNCIL,,Large,,,7600012705,,Capital Grant To Be Paid,CV1 5RR,"108,184.35",Yes
Communities & Local Government,DCLG,04/06/2015,Work In Progress Pre-Cert 40467 Spend,Neighbourhoods,MARKETING BIRMINGHAM LIMITED,,Medium,,,7600012712,,Capital Grant To Be Paid,B1 2ND,"8,053.98",Yes
Communities & Local Government,DCLG,04/06/2015,Work In Progress Pre-Cert 40467 Spend,Neighbourhoods,STAVELEY TOWN COUNCIL,,Small,,,7600012704,,Capital Grant To Be Paid,S43 3TN,"13,402.53",Yes
Communities & Local Government,DCLG,04/06/2015,Work In Progress Pre-Cert 40467 Spend,Neighbourhoods,STAVELEY TOWN COUNCIL,,Small,,,7600012710,,Capital Grant To Be Paid,S43 3TN,"12,971.28",Yes
Communities & Local Government,DCLG,04/06/2015,Work In Progress Pre-Cert 40467 Spend,Neighbourhoods,STAVELEY TOWN COUNCIL,,Small,,,7600012722,,Capital Grant To Be Paid,S43 3TN,"5,195.41",Yes
Communities & Local Government,DCLG,04/06/2015,Work In Progress Pre-Cert 40467 Spend,Neighbourhoods,STOKE-ON-TRENT CITY COUNCIL,,Large,,,7600012716,,Capital Grant To Be Paid,ST4 1HP,"2,123.55",Yes
Communities & Local Government,DCLG,04/06/2015,Work In Progress Pre-Cert 40467 Spend,Neighbourhoods,WORCESTERSHIRE COUNTY COUNCIL,,Public Bodies,,,7600012719,,Capital Grant To Be Paid,WR5 2NP,300.00,Yes
Communities & Local Government,DCLG,04/06/2015,Work In Progress Pre-Cert 40467 Spend,Neighbourhoods,WORCESTERSHIRE COUNTY COUNCIL,,Public Bodies,,,7600012723,,Capital Grant To Be Paid,WR5 2NP,"48,013.74",Yes
Communities & Local Government,DCLG,05/06/2015,Agency Staff,Finance & Corporate Services,CAPITA BUS. SERV. LTD (CON LAB),,Large,,,5106213286,Contingent Labour,Interim Manager,DL1 9HB,"4,890.82",
Communities & Local Government,DCLG,05/06/2015,Agency Staff,Finance & Corporate Services,CAPITA BUS. SERV. LTD (CON LAB),,Large,,,5106213299,Contingent Labour,Interim Manager,DL1 9HB,"2,350.18",
Communities & Local Government,DCLG,05/06/2015,Agency Staff,Localism,CAPITA BUS. SERV. LTD (CON LAB),,Large,,,5106213288,Contingent Labour,Interim Manager,DL1 9HB,"13,327.78",
Communities & Local Government,DCLG,05/06/2015,Agency Staff,Neighbourhoods,*BROOK STREET BUREAU,,Large,,509700118,5106213315,Contingent Labour,Interim Admin support,AL1 4JB,487.32,
Communities & Local Government,DCLG,05/06/2015,Agency Staff,Neighbourhoods,BROOK STREET UK LTD,,Large,,364940028,5106213314,Contingent Labour,Interim Admin support,PE1 1SY,561.31,
Communities & Local Government,DCLG,05/06/2015,Agency Staff,Neighbourhoods,CAPITA BUS. SERV. LTD (CON LAB),,Large,,,5106213282,Contingent Labour,Interim Manager,DL1 9HB,"2,575.92",
Communities & Local Government,DCLG,05/06/2015,Agency Staff,Neighbourhoods,CAPITA BUS. SERV. LTD (CON LAB),,Large,,,5106213283,Contingent Labour,Interim Manager,DL1 9HB,"5,251.92",
Communities & Local Government,DCLG,05/06/2015,Agency Staff,Neighbourhoods,CAPITA BUS. SERV. LTD (CON LAB),,Large,,,5106213284,Contingent Labour,Interim Manager,DL1 9HB,862.92,
Communities & Local Government,DCLG,05/06/2015,Agency Staff,Neighbourhoods,CAPITA BUS. SERV. LTD (CON LAB),,Large,,,5106213285,Contingent Labour,Interim Manager,DL1 9HB,"2,434.10",
Communities & Local Government,DCLG,05/06/2015,Agency Staff,Neighbourhoods,CAPITA BUS. SERV. LTD (CON LAB),,Large,,,5106213287,Contingent Labour,Interim Manager,DL1 9HB,"4,786.45",
Communities & Local Government,DCLG,05/06/2015,Agency Staff,Neighbourhoods,CAPITA BUS. SERV. LTD (CON LAB),,Large,,,5106213290,Contingent Labour,ERDF: Quality Assurance Officer,DL1 9HB,"2,557.84",
Communities & Local Government,DCLG,05/06/2015,Agency Staff,Neighbourhoods,CAPITA BUS. SERV. LTD (CON LAB),,Large,,,5106213291,Contingent Labour,Interim Manager,DL1 9HB,"3,651.16",
Communities & Local Government,DCLG,05/06/2015,Agency Staff,Neighbourhoods,CAPITA BUS. SERV. LTD (CON LAB),,Large,,,5106213292,Contingent Labour,Interim Manager,DL1 9HB,"3,926.88",
Communities & Local Government,DCLG,05/06/2015,Agency Staff,Neighbourhoods,CAPITA BUS. SERV. LTD (CON LAB),,Large,,,5106213295,Contingent Labour,Interim Manager,DL1 9HB,"3,485.14",
Communities & Local Government,DCLG,05/06/2015,Agency Staff,Neighbourhoods,CAPITA BUS. SERV. LTD (CON LAB),,Large,,,5106213296,Contingent Labour,Interim and Specialist Contractor,DL1 9HB,"5,913.32",
Communities & Local Government,DCLG,05/06/2015,Agency Staff,Neighbourhoods,CAPITA BUS. SERV. LTD (CON LAB),,Large,,,5106213300,Contingent Labour,Interim Manager,DL1 9HB,"4,960.55",
Communities & Local Government,DCLG,05/06/2015,Agency Staff,Neighbourhoods,CAPITA BUS. SERV. LTD (CON LAB),,Large,,,5106213308,Contingent Labour,Interim Manager,DL1 9HB,"30,690.65",
Communities & Local Government,DCLG,05/06/2015,Agency Staff,Neighbourhoods,CAPITA BUS. SERV. LTD (CON LAB),,Large,,,5106213310,Contingent Labour,Official Travel and Subsistence,DL1 9HB,337.39,
Communities & Local Government,DCLG,05/06/2015,Agency Staff,Neighbourhoods,CAPITA BUS. SERV. LTD (CON LAB),,Large,,,5106213310,Contingent Labour,Interim Manager,DL1 9HB,"6,100.38",
Communities & Local Government,DCLG,05/06/2015,Agency Staff,Neighbourhoods,CAPITA BUS. SERV. LTD (CON LAB),,Large,,,5106213311,Contingent Labour,Interim and Specialist Contractor,DL1 9HB,"3,285.18",
Communities & Local Government,DCLG,05/06/2015,Cap Grants to Local Authorities (DEL),Neighbourhoods,SOUTH RIBBLE BC,,,,,2100253860,,Coastal Communties Fund,PR25 1DH,"68,000.00",Yes
Communities & Local Government,DCLG,05/06/2015,Cap Grants to Local Authorities (DEL),Neighbourhoods,TEIGNBRIDGE DC,,,,236440475,2100255059,,Coastal Communities Fund,TQ12 4XX,"146,513.00",Yes
Communities & Local Government,DCLG,05/06/2015,Current (non AEF) Grants to Local Authorities,Neighbourhoods,BATH & NE SOMERSET DC (HSG),,,,214502499,5000294746,,Preventing Homelessness Grant (LAs),BA1 5AW,"143,438.00",Yes
Communities & Local Government,DCLG,05/06/2015,Current (non AEF) Grants to Local Authorities,Neighbourhoods,BEDFORD UNITARY AUTHORITY,,,,225682160,5000294777,,Preventing Homelessness Grant (LAs),MK40 1SJ,"155,753.00",Yes
Communities & Local Government,DCLG,05/06/2015,Current (non AEF) Grants to Local Authorities,Neighbourhoods,BIRMINGHAM CITY CNCL,,,,213780559,5000294757,,Preventing Homelessness Grant (LAs),B2 2AJ,"156,250.00",Yes
Communities & Local Government,DCLG,05/06/2015,Current (non AEF) Grants to Local Authorities,Neighbourhoods,BLACKPOOL BC,,,,,5000294758,,Preventing Homelessness Grant (LAs),FY1 1NA,"156,250.00",Yes
Communities & Local Government,DCLG,05/06/2015,Current (non AEF) Grants to Local Authorities,Neighbourhoods,BOLTON MBC,,,,,5000294759,,Preventing Homelessness Grant (LAs),BL1 1RU,"150,000.00",Yes
Communities & Local Government,DCLG,05/06/2015,Current (non AEF) Grants to Local Authorities,Neighbourhoods,CAMBRIDGE CITY COUNCIL,,,,210357534,5000294760,,Preventing Homelessness Grant (LAs),CB2 3NA,"126,636.00",Yes
Communities & Local Government,DCLG,05/06/2015,Current (non AEF) Grants to Local Authorities,Neighbourhoods,CANTERBURY CITY CNCL,,,,,5000294747,,Preventing Homelessness Grant (LAs),CT1 1YW,"156,250.00",Yes
Communities & Local Government,DCLG,05/06/2015,Current (non AEF) Grants to Local Authorities,Neighbourhoods,CHERWELL DC,,,,,5000294748,,Preventing Homelessness Grant (LAs),OX15 4AA,"142,101.00",Yes
Communities & Local Government,DCLG,05/06/2015,Current (non AEF) Grants to Local Authorities,Neighbourhoods,DERBY CITY CNCL,,,,229641378,5000294761,,Preventing Homelessness Grant (LAs),DE1 2FS,"156,250.00",Yes
Communities & Local Government,DCLG,05/06/2015,Current (non AEF) Grants to Local Authorities,Neighbourhoods,DURHAM COUNTY COUNCIL,,,,224004882,5000294778,,Preventing Homelessness Grant (LAs),DH1 5UE,"127,368.00",Yes
Communities & Local Government,DCLG,05/06/2015,Current (non AEF) Grants to Local Authorities,Neighbourhoods,EAST NORTHAMPTONSHIRE COUNCIL,,,,227475290,5000294749,,Preventing Homelessness Grant (LAs),NN14 4LZ,"113,313.00",Yes
Communities & Local Government,DCLG,05/06/2015,Current (non AEF) Grants to Local Authorities,Neighbourhoods,EAST RIDING OF YORKS (HSG),,,,423159987,5000294750,,Preventing Homelessness Grant (LAs),HU17 9BA,"156,250.00",Yes
Communities & Local Government,DCLG,05/06/2015,Current (non AEF) Grants to Local Authorities,Neighbourhoods,EASTBOURNE BC,,,,229896428,5000294762,,Preventing Homelessness Grant (LAs),BN21 4TW,"155,000.00",Yes
Communities & Local Government,DCLG,05/06/2015,Current (non AEF) Grants to Local Authorities,Neighbourhoods,ELMBRIDGE BC (HSG),,,,,5000294751,,Preventing Homelessness Grant (LAs),KT10 9SD,"154,688.00",Yes
Communities & Local Government,DCLG,05/06/2015,Current (non AEF) Grants to Local Authorities,Neighbourhoods,EXETER CITY COUNCIL,,,,,5000294763,,Preventing Homelessness Grant (LAs),EX1 1JW,"155,875.00",Yes
Communities & Local Government,DCLG,05/06/2015,Current (non AEF) Grants to Local Authorities,Neighbourhoods,HART DC,,,,229723895,5000294764,,Preventing Homelessness Grant (LAs),GU13 8AE,"155,910.00",Yes
Communities & Local Government,DCLG,05/06/2015,Current (non AEF) Grants to Local Authorities,Neighbourhoods,ISLINGTON LB,,,,225716729,5000294765,,Preventing Homelessness Grant (LAs),N1 1XR,"156,250.00",Yes
Communities & Local Government,DCLG,05/06/2015,Current (non AEF) Grants to Local Authorities,Neighbourhoods,KINGS LYNN & WEST NORFOLK BC,,,,236417671,5000294752,,Preventing Homelessness Grant (LAs),PE30 1EX,"156,250.00",Yes
Communities & Local Government,DCLG,05/06/2015,Current (non AEF) Grants to Local Authorities,Neighbourhoods,LEEDS CITY CNCL,,Micro,,,5000294767,,Preventing Homelessness Grant (LAs),LS1 1JF,"156,250.00",Yes
Communities & Local Government,DCLG,05/06/2015,Current (non AEF) Grants to Local Authorities,Neighbourhoods,LIVERPOOL CITY COUNCIL,,,,,5000294768,,Preventing Homelessness Grant (LAs),L2 2DH,"123,049.00",Yes
Communities & Local Government,DCLG,05/06/2015,Current (non AEF) Grants to Local Authorities,Neighbourhoods,MOLE VALLEY DC,,,,225385772,5000294753,,Preventing Homelessness Grant (LAs),RH4 1SJ,"98,241.00",Yes
Communities & Local Government,DCLG,05/06/2015,Current (non AEF) Grants to Local Authorities,Neighbourhoods,NEWCASTLE UPON TYNE DC,,,,239154040,5000294769,,Preventing Homelessness Grant (LAs),NE99 2BN,"124,261.00",Yes
Communities & Local Government,DCLG,05/06/2015,Current (non AEF) Grants to Local Authorities,Neighbourhoods,PLYMOUTH CITY CNCL,,Public Bodies,,236416095,5000294770,,Preventing Homelessness Grant (LAs),PL1 2AA,"136,991.00",Yes
Communities & Local Government,DCLG,05/06/2015,Current (non AEF) Grants to Local Authorities,Neighbourhoods,POOLE BC (HSG),,,,,5000294754,,Preventing Homelessness Grant (LAs),BH15 2RU,"150,625.00",Yes
Communities & Local Government,DCLG,05/06/2015,Current (non AEF) Grants to Local Authorities,Neighbourhoods,RICHMOND UPON THAMES LB,,,,228868535,5000294771,,Preventing Homelessness Grant (LAs),TW1 3BZ,"155,891.00",Yes
Communities & Local Government,DCLG,05/06/2015,Current (non AEF) Grants to Local Authorities,Neighbourhoods,ROYAL BOROUGH OF KENSINGTON & CHELS,,,,211124466,5000294766,,Preventing Homelessness Grant (LAs),W8 7NX,"156,250.00",Yes
Communities & Local Government,DCLG,05/06/2015,Current (non AEF) Grants to Local Authorities,Neighbourhoods,RUGBY BOROUGH COUNCIL,,,,,5000294772,,Preventing Homelessness Grant (LAs),CV21 2RR,"114,688.00",Yes
Communities & Local Government,DCLG,05/06/2015,Current (non AEF) Grants to Local Authorities,Neighbourhoods,SOUTH RIBBLE BC,,,,,2100253870,,Coastal Community Fund,PR25 1DH,"42,675.00",Yes
Communities & Local Government,DCLG,05/06/2015,Current (non AEF) Grants to Local Authorities,Neighbourhoods,SOUTH TYNESIDE COUNCIL,,,,345736438,5000294773,,Preventing Homelessness Grant (LAs),NE33 2RL,"127,176.00",Yes
Communities & Local Government,DCLG,05/06/2015,Current (non AEF) Grants to Local Authorities,Neighbourhoods,STOCKPORT MBC,,,,228706248,5000294774,,Preventing Homelessness Grant (LAs),SK1 3XE,"101,411.00",Yes
Communities & Local Government,DCLG,05/06/2015,Current (non AEF) Grants to Local Authorities,Neighbourhoods,STOKE ON TRENT CITY COUNCIL,,,,216037890,5000294775,,Preventing Homelessness Grant (LAs),ST4 1HH,"156,250.00",Yes
Communities & Local Government,DCLG,05/06/2015,Current (non AEF) Grants to Local Authorities,Neighbourhoods,TEIGNBRIDGE DC,,,,236440475,2100255060,,Coastal Community Fund - Revival,TQ12 4XX,"35,346.00",Yes
Communities & Local Government,DCLG,05/06/2015,Current (non AEF) Grants to Local Authorities,Neighbourhoods,TENDRING DC,,,,,5000294755,,Preventing Homelessness Grant (LAs),CO15 1SE,"128,125.00",Yes
Communities & Local Government,DCLG,05/06/2015,Current (non AEF) Grants to Local Authorities,Neighbourhoods,TOWER HAMLETS LB (HSG),,,,231315144,5000294756,,Preventing Homelessness Grant (LAs),E14 2BG,"156,250.00",Yes
Communities & Local Government,DCLG,05/06/2015,Current (non AEF) Grants to Local Authorities,Neighbourhoods,WORCESTER CITY CNCL,,,,227419751,5000294776,,Preventing Homelessness Grant (LAs),WR1 2EZ,"151,855.00",Yes
Communities & Local Government,DCLG,05/06/2015,Current Grants to Non Profit Bodies,Neighbourhoods,CEL GROUP,,Medium,,394794614,5106213303,Technical Services,Home Improvement Agency,WA2 0YL,"76,564.63",Yes
Communities & Local Government,DCLG,05/06/2015,Fixed Maintenance,Finance & Corporate Services,INTERSERVE (FACILITIES MANAGEMENT),,Large,,364834825,5106213307,Property Occupation,WIP Recovery - Eland,BS32 4NH,"2,651.48",
Communities & Local Government,DCLG,05/06/2015,Fixed Maintenance,Finance & Corporate Services,INTERSERVE (FACILITIES MANAGEMENT),,Large,,364834825,5106213307,Property Occupation,WIP Recovery - TQH,BS32 4NH,964.66,
Communities & Local Government,DCLG,05/06/2015,Fixed Maintenance,Finance & Corporate Services,INTERSERVE (FACILITIES MANAGEMENT),,Large,,364834825,5106213307,Property Occupation,WIP Recovery - Rivergate,BS32 4NH,"8,632.91",
Communities & Local Government,DCLG,05/06/2015,Grant in Aid to NDPBs (non budget),Finance & Corporate Services,VALUATION TRIBUNAL SERVICE,,,,211218366,2100255058,,VTS Grant in Aid,E1 8EU,"505,886.00",Yes
Communities & Local Government,DCLG,05/06/2015,Grant in Aid to NDPBs (non budget),Neighbourhoods,HOMES & COMMUNITIES AGENCY,,Public Bodies,,215576860,2100255057,,HCA Grant in Aid,NE11 0NA,"10,000,000.00",Yes
Communities & Local Government,DCLG,05/06/2015,IT - Service Contracts,Localism,LOCALITY,,Medium,,347998312,5106213312,IT Managed / Outsourced Services,Direct Support - Our Place,N1 6DR,"36,820.26",
Communities & Local Government,DCLG,05/06/2015,IT - Software Maintenance,Finance & Corporate Services,KAIZEN ASSOCIATES LTD,,Micro,,217482430,5106213195,IT Managed / Outsourced Services,SAP Application Support,SE1 6SW,"5,655.88",
Communities & Local Government,DCLG,05/06/2015,IT Consultancy,Finance & Corporate Services,ARCUS GLOBAL LIMITED,,Medium,,,5106213204,Consultancy,IT Consultancy Services (Cloud Hosting),CB4 2HY,"10,998.60",
Communities & Local Government,DCLG,05/06/2015,Professional services,Finance & Corporate Services,DAWES & FRASER CONSULTING LTD,,Small,,,5106213316,Financial,Contract and Technical Support (Jun-Dec),SE20 7BS,"4,740.00",
Communities & Local Government,DCLG,05/06/2015,Professional services,Finance & Corporate Services,DAWES & FRASER CONSULTING LTD,,Small,,,5106213316,Financial,Expenses (Jun-Dec),SE20 7BS,57.76,
Communities & Local Government,DCLG,05/06/2015,Professional services,Localism,TOWERS WATSON,,Small,,211608164,5106213313,Financial,Actuarial Service,RH2 9PQ,"21,300.00",
Communities & Local Government,DCLG,05/06/2015,Publicity,"Strategy, Communications and Private Office",INFORMED COMMUNICATIONS LTD,,Small,,,5106213057,Advertising,Digital Partners Programme 2014-15,BN43 5RH,"24,000.00",
Communities & Local Government,DCLG,05/06/2015,Publicity,"Strategy, Communications and Private Office",PRESS ASSOCIATION,,Large,,217191704,5106213293,Advertising,PRESS ASSOCIATION (PA) 2014-17,DN14 7YH,"1,325.74",
Communities & Local Government,DCLG,05/06/2015,Research,Localism,ATLANTIC PRODUCTIONS LTD,,Medium,,,5106213317,Research,Geophysical Scanning at Bergen Belsen,W6 7DE,"54,130.50",
Communities & Local Government,DCLG,05/06/2015,Steady State Service Provision,Neighbourhoods,TRIBAL EDUCATION-MANAGEMENT FEES,,Large,,221445146,5106213309,Business Process Outsourcing Services,Year 3 Grant Administration,BS2 8RR,"8,186.50",
Communities & Local Government,DCLG,05/06/2015,Training,Finance & Corporate Services,C I P F A,,Medium,,225407220,5106213306,Development and Training,Diploma EJ,E1 8AN,"3,229.00",
Communities & Local Government,DCLG,05/06/2015,Variable Maintenance < 15k,Finance & Corporate Services,INTERSERVE (FACILITIES MANAGEMENT),,Large,,364834825,5106213302,Property Occupation,Eland House Pass through costs 14-15,BS32 4NH,147.49,
Communities & Local Government,DCLG,05/06/2015,Variable Maintenance < 15k,Finance & Corporate Services,INTERSERVE (FACILITIES MANAGEMENT),,Large,,364834825,5106213302,Property Occupation,Temple Quay Pass through costs 14-15,BS32 4NH,"4,074.64",
Communities & Local Government,DCLG,05/06/2015,Variable Maintenance < 15k,Finance & Corporate Services,INTERSERVE (FACILITIES MANAGEMENT),,Large,,364834825,5106213302,Property Occupation,Rivergate Pass through costs 14-15,BS32 4NH,"1,831.65",
Communities & Local Government,DCLG,05/06/2015,Variable Maintenance < 15k,Finance & Corporate Services,INTERSERVE (FACILITIES MANAGEMENT),,Large,,364834825,5106213302,Property Occupation,City Gate Pass through costs 14-15,BS32 4NH,133.39,
Communities & Local Government,DCLG,05/06/2015,Variable Maintenance < 15k,Finance & Corporate Services,INTERSERVE (FACILITIES MANAGEMENT),,Large,,364834825,5106213302,Property Occupation,5 SPP Pass through costs 14-15,BS32 4NH,"4,449.45",
Communities & Local Government,DCLG,05/06/2015,Variable Maintenance < 15k,Finance & Corporate Services,INTERSERVE (FACILITIES MANAGEMENT),,Large,,364834825,5106213304,Property Occupation,Eland House Variable Maint 14-15,BS32 4NH,"7,308.90",
Communities & Local Government,DCLG,05/06/2015,Variable Maintenance < 15k,Finance & Corporate Services,INTERSERVE (FACILITIES MANAGEMENT),,Large,,364834825,5106213304,Property Occupation,Temple Quay Variable Maint 14-15,BS32 4NH,"4,558.41",
Communities & Local Government,DCLG,05/06/2015,Variable Maintenance < 15k,Finance & Corporate Services,INTERSERVE (FACILITIES MANAGEMENT),,Large,,364834825,5106213304,Property Occupation,Rivergate Variable Maint 14-15,BS32 4NH,"3,851.87",
Communities & Local Government,DCLG,05/06/2015,Variable Maintenance < 15k,Finance & Corporate Services,INTERSERVE (FACILITIES MANAGEMENT),,Large,,364834825,5106213304,Property Occupation,City Gate Variable Maint 14-15,BS32 4NH,559.49,
Communities & Local Government,DCLG,05/06/2015,Variable Maintenance < 15k,Finance & Corporate Services,INTERSERVE (FACILITIES MANAGEMENT),,Large,,364834825,5106213304,Property Occupation,5 SPP Variable Maint 14-15,BS32 4NH,"11,237.74",
Communities & Local Government,DCLG,05/06/2015,Work In Progress Pre-Cert 40373 Spend,Neighbourhoods,LEICESTER UNIVERSITY,,Large,,,7600012728,,Revenue Grant To Be Paid,LE1 7RH,"18,042.54",Yes
Communities & Local Government,DCLG,05/06/2015,Work In Progress Pre-Cert 40373 Spend,Neighbourhoods,NOTTINGHAM UNIVERSITY,,Large,,,7600012734,,Revenue Grant To Be Paid,NG7 2RD,"22,318.84",Yes
Communities & Local Government,DCLG,05/06/2015,Work In Progress Pre-Cert 40373 Spend,Neighbourhoods,PERA CONSULTING UK LTD,,Medium,,,7600012729,,Revenue Grant To Be Paid,LE13 0PB,"121,087.23",Yes
Communities & Local Government,DCLG,05/06/2015,Work In Progress Pre-Cert 40373 Spend,Neighbourhoods,YTKO LIMITED,,,,,7600012725,,Revenue Grant To Be Paid,CB4 2QH,"15,268.09",Yes
Communities & Local Government,DCLG,05/06/2015,Work In Progress Pre-Cert 40373 Spend,Neighbourhoods,YTKO LIMITED,,,,,7600012726,,Revenue Grant To Be Paid,CB4 2QH,"14,298.13",Yes
Communities & Local Government,DCLG,05/06/2015,Work In Progress Pre-Cert 40467 Spend,Neighbourhoods,MERCIA FUND 1 GENERAL PARTNER LTD,,Micro,,,7600012731,,Capital Grant To Be Paid,B95 5AA,"187,410.24",Yes
Communities & Local Government,DCLG,05/06/2015,Work In Progress Pre-Cert 40467 Spend,Neighbourhoods,MOTORHOG HOLDINGS LTD,,Medium,,,7600012732,,Capital Grant To Be Paid,DN6 7BD,"1,333.99",Yes
Communities & Local Government,DCLG,05/06/2015,Work In Progress Pre-Cert 40467 Spend,Neighbourhoods,MOTORHOG HOLDINGS LTD,,Medium,,,7600012733,,Capital Grant To Be Paid,DN6 7BD,"269,301.47",Yes
Communities & Local Government,DCLG,05/06/2015,Work In Progress Pre-Cert 40467 Spend,Neighbourhoods,NOTTINGHAM CITY COUNCIL,,Large,,,7600012727,,Capital Grant To Be Paid,NG2 3NG,"669,614.21",Yes
Communities & Local Government,DCLG,05/06/2015,Work In Progress Pre-Cert 40467 Spend,Neighbourhoods,STOCKSBRIDGE REGENERATION CO LTD,,,,,7600012730,,Capital Grant To Be Paid,S36 6DT,"212,363.19",Yes
Communities & Local Government,DCLG,08/06/2015,Current (non AEF) Grants to Local Authorities,Localism,NAT ASSOC LOCAL COUNCILS,,,,580214963,2100255073,,Set up costs for a sector led body for 2014/15,WC1B 3LD,"5,265.49",Yes
Communities & Local Government,DCLG,08/06/2015,Electronic Data Storage,Finance & Corporate Services,TNT UK LIMITED,,Large,,,5106213331,Warehousing and Storage,Visions electronic storage,BL10 9GR,"4,049.69",
Communities & Local Government,DCLG,08/06/2015,Grant in Aid to NDPBs (non budget),Finance & Corporate Services,COMMISSION LOCAL ADMINISTRATION,,,,215271508,2100255014,,CLA grant in aid June 2015,SW1P 4QP,"1,104,000.00",Yes
Communities & Local Government,DCLG,08/06/2015,Legal Fees,Finance & Corporate Services,DAVITT JONES BOULD LTD (CLIENT ACC),,Medium,,,5106213324,Legal,Legal Advice,TA1 4EB,324.00,
Communities & Local Government,DCLG,08/06/2015,Legal Fees,Finance & Corporate Services,DAVITT JONES BOULD LTD (OFFICE ACC),,Medium,,,5106213327,Legal,Legal Advice,TA1 4EB,371.52,
Communities & Local Government,DCLG,08/06/2015,Professional services,Finance & Corporate Services,GVA GRIMLEY LTD,,Large,,210158990,5106213247,Business Support,Com 164 - Treasury Function,B1 2JB,"3,514.50",
Communities & Local Government,DCLG,08/06/2015,Professional services,Finance & Corporate Services,GVA GRIMLEY LTD,,Large,,210158990,5106213249,Business Support,Com 164 - Treasury Function,B1 2JB,"3,514.50",
Communities & Local Government,DCLG,08/06/2015,Professional services,Finance & Corporate Services,GVA GRIMLEY LTD,,Large,,210158990,5106213253,Business Support,Com 162 Sen Surveyor Est Rationalisation,B1 2JB,"5,130.00",
Communities & Local Government,DCLG,08/06/2015,Professional services,Finance & Corporate Services,GVA GRIMLEY LTD,,Large,,210158990,5106213254,Business Support,Com 161 Sen Surveyor Est Rationalisation,B1 2JB,"3,240.00",
Communities & Local Government,DCLG,08/06/2015,Professional services,Localism,VALUATION OFFICE AGENCY,,Public Bodies,,215253886,2100255072,Environmental Services,Payment for June 2015 work on NNDR and Council Tax,W1B 5BU,"13,308,333.00",
Communities & Local Government,DCLG,08/06/2015,Research,Neighbourhoods,SWEETT (UK) LTD,,,,,5106213326,Research,Methodology for Part L Changes,WC1X 8AQ,"22,626.00",
Communities & Local Government,DCLG,08/06/2015,Steady State Service Provision,Finance & Corporate Services,VODAFONE LTD FORMELY CABLE  & WIREL,,Large,,239869688,5106213298,Business Process Outsourcing Services,Managed Internet Access Line,MK3 5JP,582.58,
Communities & Local Government,DCLG,08/06/2015,Work In Progress Pre-Cert 40373 Spend,Neighbourhoods,DERBY CITY COUNCIL,,Large,,,7600012736,,Revenue Grant To Be Paid,DE1 2FE,"14,736.56",Yes
Communities & Local Government,DCLG,08/06/2015,Work In Progress Pre-Cert 40373 Spend,Neighbourhoods,STOKE-ON-TRENT CITY COUNCIL,,Large,,,7600012735,,Revenue Grant To Be Paid,ST4 1HP,"6,888.80",Yes
Communities & Local Government,DCLG,08/06/2015,Work In Progress Pre-Cert 40373 Spend,Neighbourhoods,WSX ENTERPRISE LIMITED,,,,,7600012737,,Revenue Grant To Be Paid,PO16 7BJ,"62,987.19",Yes
Communities & Local Government,DCLG,08/06/2015,Work In Progress Pre-Cert 40467 Spend,Neighbourhoods,STOKE-ON-TRENT CITY COUNCIL,,Large,,,7600012735,,Capital Grant To Be Paid,ST4 1HP,"43,615.28",Yes
Communities & Local Government,DCLG,09/06/2015,Accommodation - actuals,Finance & Corporate Services,REDFERN TRAVEL LIMITED,,Small,,213089972,2100255119,Business Travel Accommodation,Consolidated Monthly Travel May Hotels,BD1 3AZ,430.00,
Communities & Local Government,DCLG,09/06/2015,Accommodation - actuals,Finance & Corporate Services,REDFERN TRAVEL LIMITED,,Small,,213089972,2100255119,Business Travel Accommodation,Consolidated Monthly Travel May Hotels,BD1 3AZ,"1,400.45",
Communities & Local Government,DCLG,09/06/2015,Accommodation - actuals,Finance & Corporate Services,REDFERN TRAVEL LIMITED,,Small,,213089972,2100255119,Business Travel Accommodation,Consolidated Monthly Travel May Hotels,BD1 3AZ,"1,281.07",
Communities & Local Government,DCLG,09/06/2015,Accommodation - actuals,Localism,REDFERN TRAVEL LIMITED,,Small,,213089972,2100255119,Business Travel Accommodation,Consolidated Monthly Travel May Hotels,BD1 3AZ,321.40,
Communities & Local Government,DCLG,09/06/2015,Accommodation - actuals,Localism,REDFERN TRAVEL LIMITED,,Small,,213089972,2100255119,Business Travel Accommodation,Consolidated Monthly Travel May Hotels,BD1 3AZ,411.65,
Communities & Local Government,DCLG,09/06/2015,Accommodation - actuals,Localism,REDFERN TRAVEL LIMITED,,Small,,213089972,2100255119,Business Travel Accommodation,Consolidated Monthly Travel May Hotels,BD1 3AZ,"2,572.25",
Communities & Local Government,DCLG,09/06/2015,Accommodation - actuals,Localism,REDFERN TRAVEL LIMITED,,Small,,213089972,2100255119,Business Travel Accommodation,Consolidated Monthly Travel May Hotels,BD1 3AZ,328.63,
Communities & Local Government,DCLG,09/06/2015,Accommodation - actuals,Localism,REDFERN TRAVEL LIMITED,,Small,,213089972,2100255119,Business Travel Accommodation,Consolidated Monthly Travel May Hotels,BD1 3AZ,269.28,
Communities & Local Government,DCLG,09/06/2015,Accommodation - actuals,Neighbourhoods,REDFERN TRAVEL LIMITED,,Small,,213089972,2100255119,Business Travel Accommodation,Consolidated Monthly Travel May Hotels,BD1 3AZ,251.71,
Communities & Local Government,DCLG,09/06/2015,Accommodation - actuals,Neighbourhoods,REDFERN TRAVEL LIMITED,,Small,,213089972,2100255119,Business Travel Accommodation,Consolidated Monthly Travel May Hotels,BD1 3AZ,"2,088.76",
Communities & Local Government,DCLG,09/06/2015,Accommodation - actuals,Neighbourhoods,REDFERN TRAVEL LIMITED,,Small,,213089972,2100255119,Business Travel Accommodation,Consolidated Monthly Travel May Hotels,BD1 3AZ,440.70,
Communities & Local Government,DCLG,09/06/2015,Accommodation - actuals,Neighbourhoods,REDFERN TRAVEL LIMITED,,Small,,213089972,2100255119,Business Travel Accommodation,Consolidated Monthly Travel May Hotels,BD1 3AZ,478.28,
Communities & Local Government,DCLG,09/06/2015,Accommodation - actuals,Neighbourhoods,REDFERN TRAVEL LIMITED,,Small,,213089972,2100255119,Business Travel Accommodation,Consolidated Monthly Travel May Hotels,BD1 3AZ,365.00,
Communities & Local Government,DCLG,09/06/2015,Accommodation - actuals,Neighbourhoods,REDFERN TRAVEL LIMITED,,Small,,213089972,2100255119,Business Travel Accommodation,Consolidated Monthly Travel May Hotels,BD1 3AZ,966.36,
Communities & Local Government,DCLG,09/06/2015,Advertising,"Strategy, Communications and Private Office",TULLO MARSHALL WARREN LTD,,Medium,,,5106213343,Advertising,Right to Buy Marketing Contract,W1F 9NB,"8,600.00",
Communities & Local Government,DCLG,09/06/2015,Advertising,"Strategy, Communications and Private Office",TULLO MARSHALL WARREN LTD,,Medium,,,5106213344,Advertising,Right to Buy Marketing Contract,W1F 9NB,"4,322.76",
Communities & Local Government,DCLG,09/06/2015,Agency Staff,Finance & Corporate Services,ALLEN LANE FINANCIAL RECRUITMENT,,Medium,Yes,738603443,5106213325,Contingent Labour,Interim Accountant (Ext 02),,"2,277.65",
Communities & Local Government,DCLG,09/06/2015,Agency Staff,Finance & Corporate Services,BROOK STREET UK LTD,,Large,,364940028,5106213332,Contingent Labour,Support worker for staff interim measure,PE1 1SY,569.58,
Communities & Local Government,DCLG,09/06/2015,Agency Staff,Finance & Corporate Services,BROOK STREET UK LTD,,Large,,364940028,5106213334,Contingent Labour,Support worker for staff interim measure,PE1 1SY,394.85,
Communities & Local Government,DCLG,09/06/2015,Agency Staff,Finance & Corporate Services,INTERQUEST GROUP UK LIMITED,,Large,,423935241,5106213355,Contingent Labour,SAP specialist support until Closedown,EC1N 8UA,"2,659.50",
Communities & Local Government,DCLG,09/06/2015,Agency Staff,Neighbourhoods,CAPITA BUS. SERV. LTD (CON LAB),,Large,,,5106213352,Contingent Labour,Interim Manager,DL1 9HB,"21,079.76",
Communities & Local Government,DCLG,09/06/2015,Air Travel,Finance & Corporate Services,REDFERN TRAVEL LIMITED,,Small,,213089972,2100255119,Air,Consolidated Monthly Travel May Air Tickets,BD1 3AZ,320.97,
Communities & Local Government,DCLG,09/06/2015,Air Travel,Localism,REDFERN TRAVEL LIMITED,,Small,,213089972,2100255119,Air,Consolidated Monthly Travel May Air Tickets,BD1 3AZ,745.88,
Communities & Local Government,DCLG,09/06/2015,Air Travel,Localism,REDFERN TRAVEL LIMITED,,Small,,213089972,2100255119,Air,Consolidated Monthly Travel May Air Tickets,BD1 3AZ,261.60,
Communities & Local Government,DCLG,09/06/2015,Air Travel,Neighbourhoods,REDFERN TRAVEL LIMITED,,Small,,213089972,2100255119,Air,Consolidated Monthly Travel May Air Tickets,BD1 3AZ,259.73,
Communities & Local Government,DCLG,09/06/2015,Air Travel,Neighbourhoods,REDFERN TRAVEL LIMITED,,Small,,213089972,2100255119,Air,Consolidated Monthly Travel May Air Tickets,BD1 3AZ,260.94,
Communities & Local Government,DCLG,09/06/2015,Air Travel,Neighbourhoods,REDFERN TRAVEL LIMITED,,Small,,213089972,2100255119,Air,Consolidated Monthly Travel May Air Tickets,BD1 3AZ,480.24,
Communities & Local Government,DCLG,09/06/2015,Air Travel,Neighbourhoods,REDFERN TRAVEL LIMITED,,Small,,213089972,2100255119,Air,Consolidated Monthly Travel May Air Tickets,BD1 3AZ,285.00,
Communities & Local Government,DCLG,09/06/2015,Air Travel,Neighbourhoods,REDFERN TRAVEL LIMITED,,Small,,213089972,2100255119,Air,Consolidated Monthly Travel May Air Tickets,BD1 3AZ,"1,312.38",
Communities & Local Government,DCLG,09/06/2015,Air Travel,Neighbourhoods,REDFERN TRAVEL LIMITED,,Small,,213089972,2100255119,Air,Consolidated Monthly Travel May Air Tickets,BD1 3AZ,401.41,
Communities & Local Government,DCLG,09/06/2015,Air Travel,Neighbourhoods,REDFERN TRAVEL LIMITED,,Small,,213089972,2100255119,Air,Consolidated Monthly Travel May Air Tickets,BD1 3AZ,485.82,
Communities & Local Government,DCLG,09/06/2015,Current (non AEF) Grants to Local Authorities,Localism,WORCESTERSHIRE COUNTY COUNCIL,,,,230359643,5000287005,,Overpayment of Grant recovered by Exchequer,WR5 2NP,"-1,568.00",Yes
Communities & Local Government,DCLG,09/06/2015,"Furniture, Fittings and carpets",Finance & Corporate Services,AMARYLLIS LTD,,Medium,,672277696,5106212749,"Furniture, Fixtures and Fittings",Remodelling of Furniture for Bristol Prj,CM7 2GD,"21,039.19",
Communities & Local Government,DCLG,09/06/2015,IT - Service Contracts,Finance & Corporate Services,DAMOVO UK LTD,,Large,,221481042,5106213073,IT Managed / Outsourced Services,PAMU Office Moves Project Q4 14/15,RH12 4QP,"2,330.50",
Communities & Local Government,DCLG,09/06/2015,Legal Fees,Finance & Corporate Services,TREASURY SOLICITOR,,Public Bodies,,215580680,2100255116,Legal,Legal Advice,WC2B 4TS,"22,000.00",
Communities & Local Government,DCLG,09/06/2015,"Rail, Underground and Eurostar",Finance & Corporate Services,REDFERN TRAVEL LIMITED,,Small,,213089972,2100255119,Rail,Consolidated Monthly Travel May Rail,BD1 3AZ,821.30,
Communities & Local Government,DCLG,09/06/2015,"Rail, Underground and Eurostar",Finance & Corporate Services,REDFERN TRAVEL LIMITED,,Small,,213089972,2100255119,Rail,Consolidated Monthly Travel May Rail,BD1 3AZ,287.57,
Communities & Local Government,DCLG,09/06/2015,"Rail, Underground and Eurostar",Finance & Corporate Services,REDFERN TRAVEL LIMITED,,Small,,213089972,2100255119,Rail,Consolidated Monthly Travel May Rail,BD1 3AZ,"1,775.11",
Communities & Local Government,DCLG,09/06/2015,"Rail, Underground and Eurostar",Finance & Corporate Services,REDFERN TRAVEL LIMITED,,Small,,213089972,2100255119,Rail,Consolidated Monthly Travel May Rail,BD1 3AZ,"1,519.10",
Communities & Local Government,DCLG,09/06/2015,"Rail, Underground and Eurostar",Finance & Corporate Services,REDFERN TRAVEL LIMITED,,Small,,213089972,2100255119,Rail,Consolidated Monthly Travel May Rail,BD1 3AZ,"7,337.31",
Communities & Local Government,DCLG,09/06/2015,"Rail, Underground and Eurostar",Finance & Corporate Services,REDFERN TRAVEL LIMITED,,Small,,213089972,2100255119,Rail,Consolidated Monthly Travel May Rail,BD1 3AZ,463.45,
Communities & Local Government,DCLG,09/06/2015,"Rail, Underground and Eurostar",Finance & Corporate Services,REDFERN TRAVEL LIMITED,,Small,,213089972,2100255119,Rail,Consolidated Monthly Travel May Rail,BD1 3AZ,271.77,
Communities & Local Government,DCLG,09/06/2015,"Rail, Underground and Eurostar",Finance & Corporate Services,REDFERN TRAVEL LIMITED,,Small,,213089972,2100255119,Rail,Consolidated Monthly Travel May Rail,BD1 3AZ,939.92,
Communities & Local Government,DCLG,09/06/2015,"Rail, Underground and Eurostar",Finance & Corporate Services,REDFERN TRAVEL LIMITED,,Small,,213089972,2100255119,Rail,Consolidated Monthly Travel May Rail,BD1 3AZ,872.04,
Communities & Local Government,DCLG,09/06/2015,"Rail, Underground and Eurostar",Finance & Corporate Services,REDFERN TRAVEL LIMITED,,Small,,213089972,2100255119,Rail,Consolidated Monthly Travel May Rail,BD1 3AZ,797.93,
Communities & Local Government,DCLG,09/06/2015,"Rail, Underground and Eurostar",Finance & Corporate Services,REDFERN TRAVEL LIMITED,,Small,,213089972,2100255119,Rail,Consolidated Monthly Travel May Rail,BD1 3AZ,"1,606.74",
Communities & Local Government,DCLG,09/06/2015,"Rail, Underground and Eurostar",Localism,REDFERN TRAVEL LIMITED,,Small,,213089972,2100255119,Rail,Consolidated Monthly Travel May Rail,BD1 3AZ,655.39,
Communities & Local Government,DCLG,09/06/2015,"Rail, Underground and Eurostar",Localism,REDFERN TRAVEL LIMITED,,Small,,213089972,2100255119,Rail,Consolidated Monthly Travel May Rail,BD1 3AZ,894.73,
Communities & Local Government,DCLG,09/06/2015,"Rail, Underground and Eurostar",Localism,REDFERN TRAVEL LIMITED,,Small,,213089972,2100255119,Rail,Consolidated Monthly Travel May Rail,BD1 3AZ,961.89,
Communities & Local Government,DCLG,09/06/2015,"Rail, Underground and Eurostar",Localism,REDFERN TRAVEL LIMITED,,Small,,213089972,2100255119,Rail,Consolidated Monthly Travel May Rail,BD1 3AZ,393.51,
Communities & Local Government,DCLG,09/06/2015,"Rail, Underground and Eurostar",Localism,REDFERN TRAVEL LIMITED,,Small,,213089972,2100255119,Rail,Consolidated Monthly Travel May Rail,BD1 3AZ,352.12,
Communities & Local Government,DCLG,09/06/2015,"Rail, Underground and Eurostar",Localism,REDFERN TRAVEL LIMITED,,Small,,213089972,2100255119,Rail,Consolidated Monthly Travel May Rail,BD1 3AZ,301.39,
Communities & Local Government,DCLG,09/06/2015,"Rail, Underground and Eurostar",Localism,REDFERN TRAVEL LIMITED,,Small,,213089972,2100255119,Rail,Consolidated Monthly Travel May Rail,BD1 3AZ,"1,747.02",
Communities & Local Government,DCLG,09/06/2015,"Rail, Underground and Eurostar",Localism,REDFERN TRAVEL LIMITED,,Small,,213089972,2100255119,Rail,Consolidated Monthly Travel May Rail,BD1 3AZ,304.60,
Communities & Local Government,DCLG,09/06/2015,"Rail, Underground and Eurostar",Localism,REDFERN TRAVEL LIMITED,,Small,,213089972,2100255119,Rail,Consolidated Monthly Travel May Rail,BD1 3AZ,787.64,
Communities & Local Government,DCLG,09/06/2015,"Rail, Underground and Eurostar",Localism,REDFERN TRAVEL LIMITED,,Small,,213089972,2100255119,Rail,Consolidated Monthly Travel May Rail,BD1 3AZ,"2,249.47",
Communities & Local Government,DCLG,09/06/2015,"Rail, Underground and Eurostar",Localism,REDFERN TRAVEL LIMITED,,Small,,213089972,2100255119,Rail,Consolidated Monthly Travel May Rail,BD1 3AZ,710.22,
Communities & Local Government,DCLG,09/06/2015,"Rail, Underground and Eurostar",Localism,REDFERN TRAVEL LIMITED,,Small,,213089972,2100255119,Rail,Consolidated Monthly Travel May Rail,BD1 3AZ,640.38,
Communities & Local Government,DCLG,09/06/2015,"Rail, Underground and Eurostar",Localism,REDFERN TRAVEL LIMITED,,Small,,213089972,2100255119,Rail,Consolidated Monthly Travel May Rail,BD1 3AZ,527.11,
Communities & Local Government,DCLG,09/06/2015,"Rail, Underground and Eurostar",Localism,REDFERN TRAVEL LIMITED,,Small,,213089972,2100255119,Rail,Consolidated Monthly Travel May Rail,BD1 3AZ,-486.64,
Communities & Local Government,DCLG,09/06/2015,"Rail, Underground and Eurostar",Localism,REDFERN TRAVEL LIMITED,,Small,,213089972,2100255119,Rail,Consolidated Monthly Travel May Rail,BD1 3AZ,393.28,
Communities & Local Government,DCLG,09/06/2015,"Rail, Underground and Eurostar",Localism,REDFERN TRAVEL LIMITED,,Small,,213089972,2100255119,Rail,Consolidated Monthly Travel May Rail,BD1 3AZ,"2,619.03",
Communities & Local Government,DCLG,09/06/2015,"Rail, Underground and Eurostar",Neighbourhoods,REDFERN TRAVEL LIMITED,,Small,,213089972,2100255119,Rail,Consolidated Monthly Travel May Rail,BD1 3AZ,"2,573.70",
Communities & Local Government,DCLG,09/06/2015,"Rail, Underground and Eurostar",Neighbourhoods,REDFERN TRAVEL LIMITED,,Small,,213089972,2100255119,Rail,Consolidated Monthly Travel May Rail,BD1 3AZ,"2,133.01",
Communities & Local Government,DCLG,09/06/2015,"Rail, Underground and Eurostar",Neighbourhoods,REDFERN TRAVEL LIMITED,,Small,,213089972,2100255119,Rail,Consolidated Monthly Travel May Rail,BD1 3AZ,564.02,
Communities & Local Government,DCLG,09/06/2015,"Rail, Underground and Eurostar",Neighbourhoods,REDFERN TRAVEL LIMITED,,Small,,213089972,2100255119,Rail,Consolidated Monthly Travel May Rail,BD1 3AZ,253.48,
Communities & Local Government,DCLG,09/06/2015,"Rail, Underground and Eurostar",Neighbourhoods,REDFERN TRAVEL LIMITED,,Small,,213089972,2100255119,Rail,Consolidated Monthly Travel May Rail,BD1 3AZ,310.01,
Communities & Local Government,DCLG,09/06/2015,"Rail, Underground and Eurostar",Neighbourhoods,REDFERN TRAVEL LIMITED,,Small,,213089972,2100255119,Rail,Consolidated Monthly Travel May Rail,BD1 3AZ,664.06,
Communities & Local Government,DCLG,09/06/2015,"Rail, Underground and Eurostar",Neighbourhoods,REDFERN TRAVEL LIMITED,,Small,,213089972,2100255119,Rail,Consolidated Monthly Travel May Rail,BD1 3AZ,771.86,
Communities & Local Government,DCLG,09/06/2015,"Rail, Underground and Eurostar",Neighbourhoods,REDFERN TRAVEL LIMITED,,Small,,213089972,2100255119,Rail,Consolidated Monthly Travel May Rail,BD1 3AZ,"4,079.75",
Communities & Local Government,DCLG,09/06/2015,"Rail, Underground and Eurostar",Neighbourhoods,REDFERN TRAVEL LIMITED,,Small,,213089972,2100255119,Rail,Consolidated Monthly Travel May Rail,BD1 3AZ,"3,036.99",
Communities & Local Government,DCLG,09/06/2015,"Rail, Underground and Eurostar",Neighbourhoods,REDFERN TRAVEL LIMITED,,Small,,213089972,2100255119,Rail,Consolidated Monthly Travel May Rail,BD1 3AZ,"2,633.21",
Communities & Local Government,DCLG,09/06/2015,"Rail, Underground and Eurostar",Neighbourhoods,REDFERN TRAVEL LIMITED,,Small,,213089972,2100255119,Rail,Consolidated Monthly Travel May Rail,BD1 3AZ,"3,566.07",
Communities & Local Government,DCLG,09/06/2015,"Rail, Underground and Eurostar",Neighbourhoods,REDFERN TRAVEL LIMITED,,Small,,213089972,2100255119,Rail,Consolidated Monthly Travel May Rail,BD1 3AZ,"1,261.85",
Communities & Local Government,DCLG,09/06/2015,"Rail, Underground and Eurostar",Neighbourhoods,REDFERN TRAVEL LIMITED,,Small,,213089972,2100255119,Rail,Consolidated Monthly Travel May Rail,BD1 3AZ,"1,753.56",
Communities & Local Government,DCLG,09/06/2015,"Rail, Underground and Eurostar",Neighbourhoods,REDFERN TRAVEL LIMITED,,Small,,213089972,2100255119,Rail,Consolidated Monthly Travel May Rail,BD1 3AZ,"1,101.94",
Communities & Local Government,DCLG,09/06/2015,"Rail, Underground and Eurostar",Neighbourhoods,REDFERN TRAVEL LIMITED,,Small,,213089972,2100255119,Rail,Consolidated Monthly Travel May Rail,BD1 3AZ,"1,228.04",
Communities & Local Government,DCLG,09/06/2015,"Rail, Underground and Eurostar",Neighbourhoods,REDFERN TRAVEL LIMITED,,Small,,213089972,2100255119,Rail,Consolidated Monthly Travel May Rail,BD1 3AZ,"2,318.43",
Communities & Local Government,DCLG,09/06/2015,"Rail, Underground and Eurostar",Neighbourhoods,REDFERN TRAVEL LIMITED,,Small,,213089972,2100255119,Rail,Consolidated Monthly Travel May Rail,BD1 3AZ,"1,738.44",
Communities & Local Government,DCLG,09/06/2015,"Rail, Underground and Eurostar",Neighbourhoods,REDFERN TRAVEL LIMITED,,Small,,213089972,2100255119,Rail,Consolidated Monthly Travel May Rail,BD1 3AZ,"3,784.16",
Communities & Local Government,DCLG,09/06/2015,"Rail, Underground and Eurostar",Neighbourhoods,REDFERN TRAVEL LIMITED,,Small,,213089972,2100255119,Rail,Consolidated Monthly Travel May Rail,BD1 3AZ,985.03,
Communities & Local Government,DCLG,09/06/2015,"Rail, Underground and Eurostar",Neighbourhoods,REDFERN TRAVEL LIMITED,,Small,,213089972,2100255119,Rail,Consolidated Monthly Travel May Rail,BD1 3AZ,"3,085.31",
Communities & Local Government,DCLG,09/06/2015,"Rail, Underground and Eurostar","Strategy, Communications and Private Office",REDFERN TRAVEL LIMITED,,Small,,213089972,2100255119,Rail,Consolidated Monthly Travel May Rail,BD1 3AZ,844.94,
Communities & Local Government,DCLG,09/06/2015,"Rail, Underground and Eurostar","Strategy, Communications and Private Office",REDFERN TRAVEL LIMITED,,Small,,213089972,2100255119,Rail,Consolidated Monthly Travel May Rail,BD1 3AZ,495.69,
Communities & Local Government,DCLG,09/06/2015,"Rail, Underground and Eurostar","Strategy, Communications and Private Office",REDFERN TRAVEL LIMITED,,Small,,213089972,2100255119,Rail,Consolidated Monthly Travel May Rail,BD1 3AZ,725.09,
Communities & Local Government,DCLG,09/06/2015,"Rail, Underground and Eurostar","Strategy, Communications and Private Office",REDFERN TRAVEL LIMITED,,Small,,213089972,2100255119,Rail,Consolidated Monthly Travel May Rail,BD1 3AZ,"1,743.47",
Communities & Local Government,DCLG,09/06/2015,"Rail, Underground and Eurostar",Troubled Families,REDFERN TRAVEL LIMITED,,Small,,213089972,2100255119,Rail,Consolidated Monthly Travel May Rail,BD1 3AZ,"12,855.53",
Communities & Local Government,DCLG,09/06/2015,Services provided by other Govt Orgs,Finance & Corporate Services,GOVERNMENT PROCUREMENT SERVICE,,Public Bodies,,,5106213354,Business Process Outsourcing Services,Q4 2014/15,L3 9PP,"268,980.08",Yes
Communities & Local Government,DCLG,09/06/2015,Training,Finance & Corporate Services,CAPITA BUS. SERV. LTD (CSL),,Large,,215580993,5106213340,Development and Training,Training the Trainer: Workshop 3,DL1 9HB,"1,348.00",
Communities & Local Government,DCLG,09/06/2015,Work In Progress Pre-Cert 40373 Spend,Neighbourhoods,BIRMINGHAM CITY COUNCIL (NOT RATES),,Large,,,7600012740,,Revenue Grant To Be Paid,B1 1BB,"424,742.61",Yes
Communities & Local Government,DCLG,09/06/2015,Work In Progress Pre-Cert 40373 Spend,Neighbourhoods,OCEAN STUDIOS,,,,,7600012741,,Revenue Grant To Be Paid,PL1 3RP,"19,173.69",Yes
Communities & Local Government,DCLG,09/06/2015,Work In Progress Pre-Cert 40373 Spend,Neighbourhoods,YTKO LIMITED,,,,,7600012738,,Revenue Grant To Be Paid,CB4 2QH,"79,256.66",Yes
Communities & Local Government,DCLG,09/06/2015,Work In Progress Pre-Cert 40373 Spend,Neighbourhoods,YTKO LIMITED,,,,,7600012739,,Revenue Grant To Be Paid,CB4 2QH,"45,723.44",Yes
Communities & Local Government,DCLG,09/06/2015,Work In Progress Pre-Cert 40467 Spend,Neighbourhoods,OCEAN STUDIOS,,,,,7600012741,,Capital Grant To Be Paid,PL1 3RP,"252,642.48",Yes
Communities & Local Government,DCLG,10/06/2015,Electricity,Finance & Corporate Services,EDF ENERGY 1 LIMITED,,Large,,230840469,5106213381,Energy,Rivergate Electricity 2015-16,PL3 5XQ,"23,575.74",
Communities & Local Government,DCLG,10/06/2015,Electricity,Finance & Corporate Services,EDF ENERGY 1 LIMITED,,Large,,230840469,5106213381,Energy,Rivergate Electricity 2015-16 (0%),PL3 5XQ,13.98,
Communities & Local Government,DCLG,10/06/2015,Electricity,Finance & Corporate Services,EDF ENERGY 1 LIMITED,,Large,,230840469,5106213386,Energy,Rivergate Electricity 2015-16,PL3 5XQ,"8,748.61",
Communities & Local Government,DCLG,10/06/2015,Fixed Maintenance,Finance & Corporate Services,BABCOCK CIVIL INFRASTRUCTURE LTD,,Large,,233110530,5106213361,Property Occupation,Y&H Wakefield Fixed Maintenance 2015-16,NG15 0DR,"15,300.72",
Communities & Local Government,DCLG,10/06/2015,Fixed Maintenance,Finance & Corporate Services,BABCOCK CIVIL INFRASTRUCTURE LTD,,Large,,233110530,5106213362,Property Occupation,SW Taunton Fixed Maintenance 2015-16,NG15 0DR,"15,300.72",
Communities & Local Government,DCLG,10/06/2015,Fixed Maintenance,Finance & Corporate Services,BABCOCK CIVIL INFRASTRUCTURE LTD,,Large,,233110530,5106213363,Property Occupation,EoE Waterbeach Fixed Maintenance 2015-16,NG15 0DR,"15,300.72",
Communities & Local Government,DCLG,10/06/2015,Fixed Maintenance,Finance & Corporate Services,BABCOCK CIVIL INFRASTRUCTURE LTD,,Large,,233110530,5106213364,Property Occupation,EM Castle Donnington Fixed Maint 2015-16,NG15 0DR,"15,300.72",
Communities & Local Government,DCLG,10/06/2015,Grant in Aid to NDPBs (non budget),Neighbourhoods,HOMES & COMMUNITIES AGENCY,,Public Bodies,,215576860,2100255162,,HCA Grant in Aid - June 2015,NE11 0NA,"212,407,818.00",Yes
Communities & Local Government,DCLG,10/06/2015,IT - Service Contracts,Finance & Corporate Services,FUJITSU SERVICES LTD,,Large,,423375062,5106213360,IT Managed / Outsourced Services,NR     PAMU Office Move Project,WA3 9BD,"11,081.71",
Communities & Local Government,DCLG,10/06/2015,IT - Service Contracts,Neighbourhoods,APTO SOLUTIONS LTD,,Small,,739026040,5106213375,IT Managed / Outsourced Services,Planning Portal 1 APP forms contract,BS8 3BA,"3,784.00",
Communities & Local Government,DCLG,10/06/2015,Management Consultancy,Localism,LOCAL PARTNERSHIPS LLP,,,,211702438,5106213371,Consultancy,Guidance on  joining up  procurement,SW1P 3HZ,"20,000.40",
Communities & Local Government,DCLG,10/06/2015,Professional services,Neighbourhoods,VALUATION OFFICE AGENCY,,Public Bodies,,215253886,5106213373,Financial,Valuation Fees,W1B 5BU,"12,067.00",
Communities & Local Government,DCLG,10/06/2015,Reimbursement of Expenditure (OGD),Finance & Corporate Services,HOME OFFICE,,Large,,210019203,2100255168,,12546248 HMIC COST CENTRE: 0120 263000,NP20 9BB,"3,588.00",
Communities & Local Government,DCLG,10/06/2015,Research,Finance & Corporate Services,EXPERIAN LTD,,Large,,293565958,5106213372,Research,Research - Household Projection,NG80 1TH,"14,350.00",
Communities & Local Government,DCLG,10/06/2015,Research,Localism,ATLANTIC PRODUCTIONS LTD,,Medium,,,5106213376,Research,Geophysical Scanning at Bergen Belsen,W6 7DE,"47,894.00",
Communities & Local Government,DCLG,10/06/2015,Vehicle hire,"Strategy, Communications and Private Office",GOVERNMENT CAR & DESPATCH AGENCY,,Public Bodies,,,5106213378,Vehicle Hire and Lease,Ministerial Duty Car 1 (LT118) 2015-16,SW8 5AX,216.00,
Communities & Local Government,DCLG,10/06/2015,Vehicle Maintenance,Localism,BABCOCK CRITICAL SERVICES LTD,,Large,,215597451,5106213377,Fleet Management,Fixed costs 15/16,NG15 0DR,"660,296.50",
Communities & Local Government,DCLG,10/06/2015,Vehicle Maintenance,Localism,BABCOCK CRITICAL SERVICES LTD,,Large,,215597451,5106213387,Fleet Management,Fixed costs 15/16,NG15 0DR,"660,296.50",
Communities & Local Government,DCLG,10/06/2015,Work In Progress Pre-Cert 40373 Spend,Neighbourhoods,CORNWALL DEVELOPMENT COMPANY LTD,,,,,7600012749,,Revenue Grant To Be Paid,TR1 1EA,"27,358.28",Yes
Communities & Local Government,DCLG,10/06/2015,Work In Progress Pre-Cert 40373 Spend,Neighbourhoods,EAST RIDING OF YORKSHIRE COUNCIL,,,,,7600012747,,Revenue Grant To Be Paid,HU17 9BA,"59,372.03",Yes
Communities & Local Government,DCLG,10/06/2015,Work In Progress Pre-Cert 40373 Spend,Neighbourhoods,HETHEL INNOVATION LTD,,Micro,,,7600012743,,Revenue Grant To Be Paid,NR14 8FB,"8,945.48",Yes
Communities & Local Government,DCLG,10/06/2015,Work In Progress Pre-Cert 40373 Spend,Neighbourhoods,HETHEL INNOVATION LTD,,Micro,,,7600012745,,Revenue Grant To Be Paid,NR14 8FB,"9,915.84",Yes
Communities & Local Government,DCLG,10/06/2015,Work In Progress Pre-Cert 40467 Spend,Neighbourhoods,CORNWALL COUNCIL,,,,,7600012742,,Capital Grant Clawback Offset,TR1 3AY,-56.10,Yes
Communities & Local Government,DCLG,10/06/2015,Work In Progress Pre-Cert 40467 Spend,Neighbourhoods,CORNWALL COUNCIL,,,,,7600012742,,Capital Grant To Be Paid,TR1 3AY,"39,123.88",Yes
Communities & Local Government,DCLG,10/06/2015,Work In Progress Pre-Cert 40467 Spend,Neighbourhoods,HETHEL INNOVATION LTD,,Micro,,,7600012743,,Capital Grant To Be Paid,NR14 8FB,"11,107.59",Yes
Communities & Local Government,DCLG,10/06/2015,Work In Progress Pre-Cert 40467 Spend,Neighbourhoods,HETHEL INNOVATION LTD,,Micro,,,7600012744,,Capital Grant Clawback Offset,NR14 8FB,"-20,053.07",Yes
Communities & Local Government,DCLG,10/06/2015,Work In Progress Pre-Cert 40467 Spend,Neighbourhoods,HETHEL INNOVATION LTD,,Micro,,,7600012745,,Capital Grant To Be Paid,NR14 8FB,"6,543.90",Yes
Communities & Local Government,DCLG,10/06/2015,Work In Progress Pre-Cert 40467 Spend,Neighbourhoods,HETHEL INNOVATION LTD,,Micro,,,7600012746,,Capital Grant Clawback Offset,NR14 8FB,"-16,459.74",Yes
Communities & Local Government,DCLG,10/06/2015,Work In Progress Pre-Cert 40467 Spend,Neighbourhoods,WHEAL HARMONY LTD,,,,,7600012748,,Capital Grant To Be Paid,TR1 1HT,"37,480.02",Yes
Communities & Local Government,DCLG,11/06/2015,Courier Services,Finance & Corporate Services,INTERSERVE (FACILITIES MANAGEMENT),,Large,,364834825,5106213398,Office Solutions,DfECC/0028 Franking Mach CityGate 14-15,BS32 4NH,372.02,
Communities & Local Government,DCLG,11/06/2015,Courier Services,Finance & Corporate Services,INTERSERVE (FACILITIES MANAGEMENT),,Large,,364834825,5106213398,Office Solutions,DfECC/0005 Pitney Bowes (5SPP) 14-15,BS32 4NH,371.95,
Communities & Local Government,DCLG,11/06/2015,Current (non AEF) Grants to Local Authorities,Localism,DERBYSHIRE COUNTY COUNCIL,,,,232152967,2100255031,,TCA Derbshire County Council,DE4 3AH,"745,000.00",Yes
Communities & Local Government,DCLG,11/06/2015,Current Grants to Non Profit Bodies,Neighbourhoods,MARKLOGIC CORPORATION,,Large,,,5106213342,IT Managed / Outsourced Services,FCF Additional Services,CA 94070,"23,625.00",Yes
Communities & Local Government,DCLG,11/06/2015,Domestic Services,Finance & Corporate Services,INTERSERVE (FACILITIES MANAGEMENT),,Large,,364834825,5106213398,Building Operation,DFECC/0128 Cleaning Requirement 5SSP,BS32 4NH,"1,798.35",
Communities & Local Government,DCLG,11/06/2015,Electricity,Finance & Corporate Services,BRITISH INDEPENDENT UTILITIES,,Medium,,,5106213400,Energy,Utilities Revenue for RCCs,FY8 2NA,"1,437.48",
Communities & Local Government,DCLG,11/06/2015,Electricity,Finance & Corporate Services,BRITISH INDEPENDENT UTILITIES,,Medium,,,5106213402,Energy,Utilities Revenue for RCCs,FY8 2NA,436.80,
Communities & Local Government,DCLG,11/06/2015,Electricity,Finance & Corporate Services,BRITISH INDEPENDENT UTILITIES,,Medium,,,5106213404,Energy,Utilities Revenue for RCCs,FY8 2NA,960.00,
Communities & Local Government,DCLG,11/06/2015,Electricity,Finance & Corporate Services,EDF ENERGY 1 LIMITED,,Large,,230840469,5106213405,Energy,SW Taunton Electricity 2015-16,PL3 5XQ,"2,934.65",
Communities & Local Government,DCLG,11/06/2015,Facilities Management (ISD use only),Finance & Corporate Services,INTERSERVE (FACILITIES MANAGEMENT),,Large,,364834825,5106213398,Property Occupation,DFECC/0104 Project Manager,BS32 4NH,"3,053.83",
Communities & Local Government,DCLG,11/06/2015,Facilities Management (ISD use only),Finance & Corporate Services,INTERSERVE (FACILITIES MANAGEMENT),,Large,,364834825,5106213398,Property Occupation,DFECC/0058 Pension Auto Enrol TQH,BS32 4NH,143.24,
Communities & Local Government,DCLG,11/06/2015,Facilities Management (ISD use only),Finance & Corporate Services,INTERSERVE (FACILITIES MANAGEMENT),,Large,,364834825,5106213398,Property Occupation,DFECC/0097 FHS Structure TQH 2014-15,BS32 4NH,564.71,
Communities & Local Government,DCLG,11/06/2015,Facilities Management (ISD use only),Finance & Corporate Services,INTERSERVE (FACILITIES MANAGEMENT),,Large,,364834825,5106213398,Property Occupation,DFECC/0126 FTL Applicn TQH 14-15,BS32 4NH,864.74,
Communities & Local Government,DCLG,11/06/2015,Facilities Management (ISD use only),Finance & Corporate Services,INTERSERVE (FACILITIES MANAGEMENT),,Large,,364834825,5106213398,Property Occupation,DFECC0108 YR3 Indexation TQH,BS32 4NH,"1,068.60",
Communities & Local Government,DCLG,11/06/2015,Facilities Management (ISD use only),Finance & Corporate Services,INTERSERVE (FACILITIES MANAGEMENT),,Large,,364834825,5106213398,Property Occupation,DfECC/0042 Cust Serv Man (TQH) 14-15,BS32 4NH,"3,552.75",
Communities & Local Government,DCLG,11/06/2015,Facilities Management (ISD use only),Finance & Corporate Services,INTERSERVE (FACILITIES MANAGEMENT),,Large,,364834825,5106213398,Property Occupation,DfECC/0066 Facilities-TQH-14-15,BS32 4NH,"30,710.61",
Communities & Local Government,DCLG,11/06/2015,Facilities Management (ISD use only),Finance & Corporate Services,INTERSERVE (FACILITIES MANAGEMENT),,Large,,364834825,5106213398,Property Occupation,DfECC/0074 Year 2 Contract Inflation TQH,BS32 4NH,251.85,
Communities & Local Government,DCLG,11/06/2015,Facilities Management (ISD use only),Finance & Corporate Services,INTERSERVE (FACILITIES MANAGEMENT),,Large,,364834825,5106213398,Property Occupation,DFECC/0035 Min Wage Increase Hemel,BS32 4NH,10.04,
Communities & Local Government,DCLG,11/06/2015,Facilities Management (ISD use only),Finance & Corporate Services,INTERSERVE (FACILITIES MANAGEMENT),,Large,,364834825,5106213398,Property Occupation,DFECC/0058 Pension Auto Enrol Hemel,BS32 4NH,62.40,
Communities & Local Government,DCLG,11/06/2015,Facilities Management (ISD use only),Finance & Corporate Services,INTERSERVE (FACILITIES MANAGEMENT),,Large,,364834825,5106213398,Property Occupation,DFECC/0097 FHS Structure Hemel 2014-15,BS32 4NH,62.96,
Communities & Local Government,DCLG,11/06/2015,Facilities Management (ISD use only),Finance & Corporate Services,INTERSERVE (FACILITIES MANAGEMENT),,Large,,364834825,5106213398,Property Occupation,Charges for Sustainability Manager,BS32 4NH,"1,498.11",
Communities & Local Government,DCLG,11/06/2015,Facilities Management (ISD use only),Finance & Corporate Services,INTERSERVE (FACILITIES MANAGEMENT),,Large,,364834825,5106213398,Property Occupation,DFECC0045 IB TUPE,BS32 4NH,"1,427.19",
Communities & Local Government,DCLG,11/06/2015,Facilities Management (ISD use only),Finance & Corporate Services,INTERSERVE (FACILITIES MANAGEMENT),,Large,,364834825,5106213398,Property Occupation,DFECC0108 YR3 Indexation Hempstead Hse,BS32 4NH,"1,469.41",
Communities & Local Government,DCLG,11/06/2015,Facilities Management (ISD use only),Finance & Corporate Services,INTERSERVE (FACILITIES MANAGEMENT),,Large,,364834825,5106213398,Property Occupation,DFECC0109 Pest Contro 5SPP,BS32 4NH,68.95,
Communities & Local Government,DCLG,11/06/2015,Facilities Management (ISD use only),Finance & Corporate Services,INTERSERVE (FACILITIES MANAGEMENT),,Large,,364834825,5106213398,Property Occupation,DfECC/0074 Year 2 Contract Inflation HH,BS32 4NH,4.79,
Communities & Local Government,DCLG,11/06/2015,Facilities Management (ISD use only),Finance & Corporate Services,INTERSERVE (FACILITIES MANAGEMENT),,Large,,364834825,5106213398,Property Occupation,DFECC/0058 Pension Auto Enrol Rivergate,BS32 4NH,494.46,
Communities & Local Government,DCLG,11/06/2015,Facilities Management (ISD use only),Finance & Corporate Services,INTERSERVE (FACILITIES MANAGEMENT),,Large,,364834825,5106213398,Property Occupation,DFECC/0097 FHS Structure Rivergate 14-15,BS32 4NH,257.45,
Communities & Local Government,DCLG,11/06/2015,Facilities Management (ISD use only),Finance & Corporate Services,INTERSERVE (FACILITIES MANAGEMENT),,Large,,364834825,5106213398,Property Occupation,DFECC/0126 FTL Applicn Rivergate 14-15,BS32 4NH,551.00,
Communities & Local Government,DCLG,11/06/2015,Facilities Management (ISD use only),Finance & Corporate Services,INTERSERVE (FACILITIES MANAGEMENT),,Large,,364834825,5106213398,Property Occupation,DFECC0108 YR3 Indexation Rivergate,BS32 4NH,"2,046.14",
Communities & Local Government,DCLG,11/06/2015,Facilities Management (ISD use only),Finance & Corporate Services,INTERSERVE (FACILITIES MANAGEMENT),,Large,,364834825,5106213398,Property Occupation,DfECC/0066 Facilities-2 Rivergate- 14-15,BS32 4NH,"13,327.80",
Communities & Local Government,DCLG,11/06/2015,Facilities Management (ISD use only),Finance & Corporate Services,INTERSERVE (FACILITIES MANAGEMENT),,Large,,364834825,5106213398,Property Occupation,DFECC/0035 Min Wage Increase Citygate,BS32 4NH,25.09,
Communities & Local Government,DCLG,11/06/2015,Facilities Management (ISD use only),Finance & Corporate Services,INTERSERVE (FACILITIES MANAGEMENT),,Large,,364834825,5106213398,Property Occupation,DFECC/0058 Pension Auto Enrol Citygate,BS32 4NH,105.37,
Communities & Local Government,DCLG,11/06/2015,Facilities Management (ISD use only),Finance & Corporate Services,INTERSERVE (FACILITIES MANAGEMENT),,Large,,364834825,5106213398,Property Occupation,DFECC/0097 FHS Structure  Citygate 2014-,BS32 4NH,211.28,
Communities & Local Government,DCLG,11/06/2015,Facilities Management (ISD use only),Finance & Corporate Services,INTERSERVE (FACILITIES MANAGEMENT),,Large,,364834825,5106213398,Property Occupation,DFECC0108 YR3 Indexation Citygate,BS32 4NH,592.89,
Communities & Local Government,DCLG,11/06/2015,Facilities Management (ISD use only),Finance & Corporate Services,INTERSERVE (FACILITIES MANAGEMENT),,Large,,364834825,5106213398,Property Occupation,DfECC/0074 Year 2 Contract Inflation CG,BS32 4NH,12.89,
Communities & Local Government,DCLG,11/06/2015,Facilities Management (ISD use only),Finance & Corporate Services,INTERSERVE (FACILITIES MANAGEMENT),,Large,,364834825,5106213398,Property Occupation,DFECC/0058 Pension Auto Enrol 5SPP,BS32 4NH,183.25,
Communities & Local Government,DCLG,11/06/2015,Facilities Management (ISD use only),Finance & Corporate Services,INTERSERVE (FACILITIES MANAGEMENT),,Large,,364834825,5106213398,Property Occupation,DFECC/0097 FHS Structure 5SSP 2014-15,BS32 4NH,208.82,
Communities & Local Government,DCLG,11/06/2015,Facilities Management (ISD use only),Finance & Corporate Services,INTERSERVE (FACILITIES MANAGEMENT),,Large,,364834825,5106213398,Property Occupation,DFECC00106 Reception&Mail Rm Staff 5SPP,BS32 4NH,"5,510.35",
Communities & Local Government,DCLG,11/06/2015,Facilities Management (ISD use only),Finance & Corporate Services,INTERSERVE (FACILITIES MANAGEMENT),,Large,,364834825,5106213398,Property Occupation,DFECC0108 YR3 Indexation 5SPP,BS32 4NH,106.28,
Communities & Local Government,DCLG,11/06/2015,Facilities Management (ISD use only),Finance & Corporate Services,INTERSERVE (FACILITIES MANAGEMENT),,Large,,364834825,5106213398,Property Occupation,DfECC/0074 Year 2 Contract Inflation SPP,BS32 4NH,17.13,
Communities & Local Government,DCLG,11/06/2015,Facilities Management (ISD use only),Finance & Corporate Services,INTERSERVE (FACILITIES MANAGEMENT),,Large,,364834825,5106213398,Property Occupation,DFECC0108 YR3 Indexation Paradise Circus,BS32 4NH,776.54,
Communities & Local Government,DCLG,11/06/2015,Fees (OGD),Finance & Corporate Services,TREASURY SOLICITOR,,Public Bodies,,215580680,2100255217,,Legal Advice,WC2B 4TS,"10,668.06",
Communities & Local Government,DCLG,11/06/2015,Fixed Maintenance,Finance & Corporate Services,INTERSERVE (FACILITIES MANAGEMENT),,Large,,364834825,5106213398,Property Occupation,DfECC/0011 Semi Comp Maint - Hemel 14-15,BS32 4NH,200.06,
Communities & Local Government,DCLG,11/06/2015,Fixed Maintenance,Finance & Corporate Services,INTERSERVE (FACILITIES MANAGEMENT),,Large,,364834825,5106213398,Property Occupation,DfECC/0011Semi Comp Maint-CityGate 14-15,BS32 4NH,132.47,
Communities & Local Government,DCLG,11/06/2015,Fixed Maintenance,Finance & Corporate Services,INTERSERVE (FACILITIES MANAGEMENT),,Large,,364834825,5106213398,Property Occupation,DfECC/0011 Semi Comp Maint- 5SPP 14-15,BS32 4NH,444.09,
Communities & Local Government,DCLG,11/06/2015,IT - Service Contracts,Finance & Corporate Services,DAMOVO UK LTD,,Large,,221481042,5106213420,IT Managed / Outsourced Services,9mth extension to 31/3/16 CCN25B,RH12 4QP,"90,144.11",
Communities & Local Government,DCLG,11/06/2015,IT - Service Contracts,Finance & Corporate Services,ICASEWORK LTD,,Large,,,5106213397,IT Managed / Outsourced Services,correspondence case management service charge ,NW5 1LZ,"4,600.00",
Communities & Local Government,DCLG,11/06/2015,Legal Fees,Finance & Corporate Services,DAVITT JONES BOULD LTD (OFFICE ACC),,Medium,,,5106213401,Legal,Legal Advice,TA1 4EB,252.72,
Communities & Local Government,DCLG,11/06/2015,Legal Fees,Finance & Corporate Services,DAVITT JONES BOULD LTD (OFFICE ACC),,Medium,,,5106213409,Legal,Legal Advice,TA1 4EB,"2,216.48",
Communities & Local Government,DCLG,11/06/2015,Photocopying,Finance & Corporate Services,INTERSERVE (FACILITIES MANAGEMENT),,Large,,364834825,5106213398,Business Support,DfECC/0041Prov of repro equip (TQH)14-15,BS32 4NH,"9,040.17",
Communities & Local Government,DCLG,11/06/2015,Physical Storage,Finance & Corporate Services,TNT UK LIMITED,,Large,,,5106213411,Warehousing and Storage,Offsite Records Storage FYR 15/16,BL10 9GR,"23,613.38",
Communities & Local Government,DCLG,11/06/2015,Physical Storage,Finance & Corporate Services,TNT UK LIMITED,,Large,,,5106213416,Warehousing and Storage,Offsite Records Storage FYR 15/16,BL10 9GR,"3,995.34",
Communities & Local Government,DCLG,11/06/2015,Physical Storage,Finance & Corporate Services,TNT UK LIMITED,,Large,,,5106213417,Warehousing and Storage,Offsite Records Storage FYR 15/16,BL10 9GR,877.43,
Communities & Local Government,DCLG,11/06/2015,Physical Storage,Finance & Corporate Services,TNT UK LIMITED,,Large,,,5106213418,Warehousing and Storage,Offsite Records Storage FYR 15/16,BL10 9GR,232.60,
Communities & Local Government,DCLG,11/06/2015,Publishing,Localism,ORDNANCE SURVEY,,Public Bodies,,211631592,5106213399,Printing Services,Dataset creation of current county bound,SO16 0AS,"22,774.00",
Communities & Local Government,DCLG,11/06/2015,Steady State Service Provision,Localism,LOCALITY,,Medium,,347998312,5106213390,Business Process Outsourcing Services,Lot 1 Advice Service and Network,N1 6DR,"32,686.97",
Communities & Local Government,DCLG,11/06/2015,Steady State Service Provision,Localism,LOCALITY,,Medium,,347998312,5106213392,Business Process Outsourcing Services,Lot 3 Our Place and First Steps,N1 6DR,"56,541.56",
Communities & Local Government,DCLG,11/06/2015,Training,Finance & Corporate Services,ROYAL INST OF CHARTERED SURVEYORS,,Large,,423826098,5106213423,Development and Training,Viability in Planning and Development Co,CV4 8JE,250.00,
Communities & Local Government,DCLG,11/06/2015,Training,Localism,ACADEMY OF EXECUTIVE COACHING LTD,,Small,,,5106213396,Development and Training,Systemic Team Coaching Certificate,AL1 4DL,"1,000.00",
Communities & Local Government,DCLG,11/06/2015,Work In Progress Pre-Cert 40373 Spend,Neighbourhoods,BARNSLEY METROPOLITAN BC,,Public Bodies,,,7600012771,,Revenue Grant To Be Paid,S70 9OO,"199,612.98",Yes
Communities & Local Government,DCLG,11/06/2015,Work In Progress Pre-Cert 40373 Spend,Neighbourhoods,BRADFORD  MDC,,,,,7600012765,,Revenue Grant To Be Paid,BD1 1HY,223.91,Yes
Communities & Local Government,DCLG,11/06/2015,Work In Progress Pre-Cert 40373 Spend,Neighbourhoods,BRADFORD  MDC,,,,,7600012766,,Revenue Grant To Be Paid,BD1 1HY,167.38,Yes
Communities & Local Government,DCLG,11/06/2015,Work In Progress Pre-Cert 40373 Spend,Neighbourhoods,CORNWALL COLLEGE,,,,,7600012785,,Revenue Grant Clawback Offset,TR15 3RD,-439.28,Yes
Communities & Local Government,DCLG,11/06/2015,Work In Progress Pre-Cert 40373 Spend,Neighbourhoods,CORNWALL COLLEGE,,,,,7600012785,,Revenue Grant To Be Paid,TR15 3RD,"62,581.16",Yes
Communities & Local Government,DCLG,11/06/2015,Work In Progress Pre-Cert 40373 Spend,Neighbourhoods,EAST RIDING OF YORKSHIRE COUNCIL,,,,,7600012767,,Revenue Grant Clawback Offset,HU17 9BA,-487.79,Yes
Communities & Local Government,DCLG,11/06/2015,Work In Progress Pre-Cert 40373 Spend,Neighbourhoods,EAST RIDING OF YORKSHIRE COUNCIL,,,,,7600012767,,Revenue Grant To Be Paid,HU17 9BA,"113,308.95",Yes
Communities & Local Government,DCLG,11/06/2015,Work In Progress Pre-Cert 40373 Spend,Neighbourhoods,IN COMMUNITIES GROUP LTD,,Large,,,7600012772,,Revenue Grant Clawback Offset,BD18 3NT,"-11,552.60",Yes
Communities & Local Government,DCLG,11/06/2015,Work In Progress Pre-Cert 40373 Spend,Neighbourhoods,IN COMMUNITIES GROUP LTD,,Large,,,7600012772,,Revenue Grant To Be Paid,BD18 3NT,"31,871.49",Yes
Communities & Local Government,DCLG,11/06/2015,Work In Progress Pre-Cert 40373 Spend,Neighbourhoods,IN COMMUNITIES GROUP LTD,,Large,,,7600012773,,Revenue Grant To Be Paid,BD18 3NT,"8,881.55",Yes
Communities & Local Government,DCLG,11/06/2015,Work In Progress Pre-Cert 40373 Spend,Neighbourhoods,KIRKLEES COUNCIL,,,,,7600012759,,Revenue Grant To Be Paid,HD1 2TG,"10,744.92",Yes
Communities & Local Government,DCLG,11/06/2015,Work In Progress Pre-Cert 40373 Spend,Neighbourhoods,LINCONSHIRE COUNTY COUNCIL,,Large,,,7600012781,,Revenue Grant To Be Paid,LN1 1YT,"6,856.60",Yes
Communities & Local Government,DCLG,11/06/2015,Work In Progress Pre-Cert 40373 Spend,Neighbourhoods,LOUGHBOROUGH UNIVERSITY,,Large,,,7600012758,,Revenue Grant Clawback Offset,LE11 3TU,"-3,695.65",Yes
Communities & Local Government,DCLG,11/06/2015,Work In Progress Pre-Cert 40373 Spend,Neighbourhoods,LOUGHBOROUGH UNIVERSITY,,Large,,,7600012758,,Revenue Grant To Be Paid,LE11 3TU,"26,261.90",Yes
Communities & Local Government,DCLG,11/06/2015,Work In Progress Pre-Cert 40373 Spend,Neighbourhoods,MARKETING DERBY,,Micro,,,7600012764,,Revenue Grant To Be Paid,DE24 8QR,"9,624.23",Yes
Communities & Local Government,DCLG,11/06/2015,Work In Progress Pre-Cert 40373 Spend,Neighbourhoods,NORTH LINCOLNSHIRE COUNCIL,,Public Bodies,,,7600012769,,Revenue Grant To Be Paid,DN16 1AB,"66,804.08",Yes
Communities & Local Government,DCLG,11/06/2015,Work In Progress Pre-Cert 40373 Spend,Neighbourhoods,NOTTINGHAM CITY COUNCIL,,Large,,,7600012777,,Revenue Grant To Be Paid,NG2 3NG,"6,771.60",Yes
Communities & Local Government,DCLG,11/06/2015,Work In Progress Pre-Cert 40373 Spend,Neighbourhoods,PRINCES TRUST,,Large,,,7600012768,,Revenue Grant Clawback Offset,LS2 8NG,-5.00,Yes
Communities & Local Government,DCLG,11/06/2015,Work In Progress Pre-Cert 40373 Spend,Neighbourhoods,PRINCES TRUST,,Large,,,7600012768,,Revenue Grant To Be Paid,LS2 8NG,"40,202.35",Yes
Communities & Local Government,DCLG,11/06/2015,Work In Progress Pre-Cert 40373 Spend,Neighbourhoods,SHEFFIELD  CC,,,,,7600012762,,Revenue Grant To Be Paid,S1 2SH,"18,228.99",Yes
Communities & Local Government,DCLG,11/06/2015,Work In Progress Pre-Cert 40373 Spend,Neighbourhoods,STOKE-ON-TRENT CITY COUNCIL,,Large,,,2300002240,,Recovery of  payment,ST4 1HP,"-10,906.43",Yes
Communities & Local Government,DCLG,11/06/2015,Work In Progress Pre-Cert 40373 Spend,Neighbourhoods,UNIVERSITY OF SHEFFIELD,,,,,7600012750,,Revenue Grant To Be Paid,S60 5TZ,"46,363.61",Yes
Communities & Local Government,DCLG,11/06/2015,Work In Progress Pre-Cert 40373 Spend,Neighbourhoods,UNIVERSITY OF SHEFFIELD,,,,,7600012751,,Revenue Grant To Be Paid,S60 5TZ,"86,103.41",Yes
Communities & Local Government,DCLG,11/06/2015,Work In Progress Pre-Cert 40373 Spend,Neighbourhoods,UNIVERSITY OF SHEFFIELD,,,,,7600012752,,Revenue Grant To Be Paid,S60 5TZ,"44,793.71",Yes
Communities & Local Government,DCLG,11/06/2015,Work In Progress Pre-Cert 40373 Spend,Neighbourhoods,UNIVERSITY OF SHEFFIELD,,,,,7600012753,,Revenue Grant To Be Paid,S60 5TZ,"83,171.87",Yes
Communities & Local Government,DCLG,11/06/2015,Work In Progress Pre-Cert 40373 Spend,Neighbourhoods,UNIVERSITY OF SHEFFIELD,,,,,7600012754,,Revenue Grant To Be Paid,S60 5TZ,"55,640.29",Yes
Communities & Local Government,DCLG,11/06/2015,Work In Progress Pre-Cert 40373 Spend,Neighbourhoods,UNIVERSITY OF SHEFFIELD,,,,,7600012755,,Revenue Grant To Be Paid,S60 5TZ,"103,331.49",Yes
Communities & Local Government,DCLG,11/06/2015,Work In Progress Pre-Cert 40373 Spend,Neighbourhoods,UNIVERSITY OF SHEFFIELD,,,,,7600012756,,Revenue Grant To Be Paid,S60 5TZ,"44,184.19",Yes
Communities & Local Government,DCLG,11/06/2015,Work In Progress Pre-Cert 40373 Spend,Neighbourhoods,UNIVERSITY OF SHEFFIELD,,,,,7600012757,,Revenue Grant To Be Paid,S60 5TZ,"23,270.23",Yes
Communities & Local Government,DCLG,11/06/2015,Work In Progress Pre-Cert 40373 Spend,Neighbourhoods,UNIVERSITY OF SHEFFIELD,,,,,7600012761,,Revenue Grant To Be Paid,S60 5TZ,"22,299.08",Yes
Communities & Local Government,DCLG,11/06/2015,Work In Progress Pre-Cert 40373 Spend,Neighbourhoods,WAKEFIELD COUNCIL,,Large,,,7600012770,,Revenue Grant To Be Paid,WF1 2EB,"85,568.23",Yes
Communities & Local Government,DCLG,11/06/2015,Work In Progress Pre-Cert 40467 Spend,Neighbourhoods,BRADFORD  MDC,,,,,7600012765,,Capital Grant To Be Paid,BD1 1HY,"14,924.56",Yes
Communities & Local Government,DCLG,11/06/2015,Work In Progress Pre-Cert 40467 Spend,Neighbourhoods,BRADFORD  MDC,,,,,7600012766,,Capital Grant To Be Paid,BD1 1HY,"50,414.43",Yes
Communities & Local Government,DCLG,11/06/2015,Work In Progress Pre-Cert 40467 Spend,Neighbourhoods,CTP (WAKEFIELD) LTD,,,,,7600012783,,Capital Grant To Be Paid,M15 4PY,"279,083.32",Yes
Communities & Local Government,DCLG,11/06/2015,Work In Progress Pre-Cert 40467 Spend,Neighbourhoods,EAST RIDING OF YORKSHIRE COUNCIL,,,,,7600012763,,Capital Grant To Be Paid,HU17 9BA,"274,683.68",Yes
Communities & Local Government,DCLG,11/06/2015,Work In Progress Pre-Cert 40467 Spend,Neighbourhoods,ERNEST V WADDINGTON LTD,,Small,,,7600012774,,Capital Grant To Be Paid,S64 8AT,"141,973.40",Yes
Communities & Local Government,DCLG,11/06/2015,Work In Progress Pre-Cert 40467 Spend,Neighbourhoods,HENRY BOOT DEVELOPMENTS LIMITED,,Large,,,7600012775,,Capital Grant To Be Paid,S11 9PD,"180,100.60",Yes
Communities & Local Government,DCLG,11/06/2015,Work In Progress Pre-Cert 40467 Spend,Neighbourhoods,HOMES & COMMUNITIES AGENCY,,Large,,,7600012776,,Capital Grant To Be Paid,NE11 0NA,"709,270.00",Yes
Communities & Local Government,DCLG,11/06/2015,Work In Progress Pre-Cert 40467 Spend,Neighbourhoods,HORNCASTLE GROUP PLC,,Medium,,,7600012782,,Capital Grant To Be Paid,HU15 2AT,"152,661.55",Yes
Communities & Local Government,DCLG,11/06/2015,Work In Progress Pre-Cert 40467 Spend,Neighbourhoods,NORTH LINCOLNSHIRE COUNCIL,,Public Bodies,,,7600012769,,Capital Grant To Be Paid,DN16 1AB,"320,131.39",Yes
Communities & Local Government,DCLG,11/06/2015,Work In Progress Pre-Cert 40467 Spend,Neighbourhoods,STOCKSBRIDGE REGENERATION CO LTD,,,,,7600012784,,Capital Grant To Be Paid,S36 6DT,"383,066.03",Yes
Communities & Local Government,DCLG,11/06/2015,Work In Progress Pre-Cert 40467 Spend,Neighbourhoods,UNIVERSITY OF SHEFFIELD,,,,,7600012778,,Capital Grant To Be Paid,S60 5TZ,"838,892.28",Yes
Communities & Local Government,DCLG,11/06/2015,Work In Progress Pre-Cert 40467 Spend,Neighbourhoods,UNIVERSITY OF SHEFFIELD,,,,,7600012779,,Capital Grant To Be Paid,S60 5TZ,"1,220,637.65",Yes
Communities & Local Government,DCLG,11/06/2015,Work In Progress Pre-Cert 40467 Spend,Neighbourhoods,WYKELAND PROPERTIES LTD,,,,,7600012780,,Capital Grant To Be Paid,HU1 1UU,"33,676.49",Yes
Communities & Local Government,DCLG,12/06/2015,Agency Staff,Finance & Corporate Services,BROOK STREET UK LTD,,Large,,364940028,5106213431,Contingent Labour,Support worker for staff interim measure,PE1 1SY,745.63,
Communities & Local Government,DCLG,12/06/2015,Agency Staff,Finance & Corporate Services,CAPITA BUS. SERV. LTD (CON LAB),,Large,,,5106213437,Contingent Labour,Interim Manager,DL1 9HB,"2,937.72",
Communities & Local Government,DCLG,12/06/2015,Agency Staff,Finance & Corporate Services,SQUARE ONE RESOURCES LTD,,Medium,,491410288,5106213428,Contingent Labour,SAP specialist support until Closedown,EC2A 2AD,"2,287.06",
Communities & Local Government,DCLG,12/06/2015,Agency Staff,Neighbourhoods,CAPITA BUS. SERV. LTD (CON LAB),,Large,,,5106213436,Contingent Labour,ERDF: Quality Assurance Officer,DL1 9HB,"1,334.52",
Communities & Local Government,DCLG,12/06/2015,Agency Staff,Neighbourhoods,CAPITA BUS. SERV. LTD (CON LAB),,Large,,,5106213441,Contingent Labour,Interim Manager,DL1 9HB,"2,060.74",
Communities & Local Government,DCLG,12/06/2015,Agency Staff,Neighbourhoods,CAPITA BUS. SERV. LTD (CON LAB),,Large,,,5106213442,Contingent Labour,Interim Manager,DL1 9HB,690.34,
Communities & Local Government,DCLG,12/06/2015,Current Grants to Non Profit Bodies,Neighbourhoods,CRISIS UK,Yes,Medium,,,5000294779,,Preventing Homelessness Grant (VOL),E1 6LT,"906,250.00",Yes
Communities & Local Government,DCLG,12/06/2015,IT - Service Contracts,Finance & Corporate Services,DAMOVO UK LTD,,Large,,221481042,5106213121,IT Managed / Outsourced Services,Upgrade 8 x DCLG RTS Laptops to Windows7,RH12 4QP,"3,397.59",
Communities & Local Government,DCLG,12/06/2015,IT Maintenance,Finance & Corporate Services,INFORMATION SECURITY SYSTEMS LTD,,Micro,,735620416,5106213081,ICT Services,Brent Telephony Support 2014-16,HP12 3RL,325.00,
Communities & Local Government,DCLG,12/06/2015,Legal Fees,Finance & Corporate Services,TREASURY SOLICITOR,,Public Bodies,,215580680,2100255268,Legal,Legal Advice,WC2B 4TS,"3,000.00",
Communities & Local Government,DCLG,12/06/2015,Physical Storage,"Strategy, Communications and Private Office",WILLIAMS LEA LIMITED,,Large,,393456413,5106213459,Warehousing and Storage,Document Storage,NR3 1PD,554.98,
Communities & Local Government,DCLG,12/06/2015,Printing,"Strategy, Communications and Private Office",WILLIAMS LEA LIMITED,,Large,,393456413,5106213459,Printing Services,Year 3 Print services,NR3 1PD,246.60,
Communities & Local Government,DCLG,12/06/2015,Vehicle hire,"Strategy, Communications and Private Office",GOVERNMENT CAR & DESPATCH AGENCY,,Public Bodies,,,5106213457,Vehicle Hire and Lease,Ministerial Duty Car 2(LT206) 2015-16,SW8 5AX,"7,221.17",
Communities & Local Government,DCLG,12/06/2015,Vehicle hire,"Strategy, Communications and Private Office",GOVERNMENT CAR & DESPATCH AGENCY,,Public Bodies,,,5106213458,Vehicle Hire and Lease,Ministerial Duty Car 1 (LT118) 2015-16,SW8 5AX,"6,971.17",
Communities & Local Government,DCLG,12/06/2015,Work In Progress Pre-Cert 40373 Spend,Neighbourhoods,ANGLIA RUSKIN UNIVERSITY,,,,,7600012787,,Revenue Grant To Be Paid,CM1 1SQ,"49,126.87",Yes
Communities & Local Government,DCLG,12/06/2015,Work In Progress Pre-Cert 40373 Spend,Neighbourhoods,ASTON UNIVERSITY,,Large,,,7600012789,,Revenue Grant To Be Paid,B4 7ET,"64,505.98",Yes
Communities & Local Government,DCLG,12/06/2015,Work In Progress Pre-Cert 40373 Spend,Neighbourhoods,COVENTRY UNIVERSITY ENTERPRISES LTD,,Medium,,,7600012790,,Revenue Grant To Be Paid,CV1 2TT,"54,607.03",Yes
Communities & Local Government,DCLG,12/06/2015,Work In Progress Pre-Cert 40373 Spend,Neighbourhoods,SHROPSHIRE COUNCIL,,Public Bodies,,,7600012791,,Revenue Grant To Be Paid,SY2 6ND,"3,957.13",Yes
Communities & Local Government,DCLG,12/06/2015,Work In Progress Pre-Cert 40373 Spend,Neighbourhoods,YORKSHIRE UNIVERSITIES,,Micro,,,7600012788,,Revenue Grant To Be Paid,LS2 9JY,"4,874.49",Yes
Communities & Local Government,DCLG,12/06/2015,Work In Progress Pre-Cert 40467 Spend,Neighbourhoods,ANGLIA RUSKIN UNIVERSITY,,,,,7600012787,,Capital Grant To Be Paid,CM1 1SQ,"113,351.61",Yes
Communities & Local Government,DCLG,12/06/2015,Work In Progress Pre-Cert 40467 Spend,Neighbourhoods,ROTHERHAM METROPOLITAN BC,,,,,7600012786,,Capital Grant To Be Paid,S60 1AE,"427,245.60",Yes
Communities & Local Government,DCLG,12/06/2015,Work In Progress Pre-Cert 40467 Spend,Neighbourhoods,SHROPSHIRE COUNCIL,,Public Bodies,,,7600012791,,Capital Grant To Be Paid,SY2 6ND,"176,077.24",Yes
Communities & Local Government,DCLG,15/06/2015,Accommodation Service Charges,Finance & Corporate Services,GVA GRIMLEY LTD,,Large,,210158990,5106213382,Business Support,T/F Burlington Insur (to be recharged),B1 2JB,"83,689.69",
Communities & Local Government,DCLG,15/06/2015,Accommodation Service Charges,Finance & Corporate Services,GVA GRIMLEY LTD,,Large,,210158990,5106213382,Business Support,T/F Arndale House ACS 2014-15,B1 2JB,188.15,
Communities & Local Government,DCLG,15/06/2015,Accommodation Service Charges,Finance & Corporate Services,GVA GRIMLEY LTD,,Large,,210158990,5106213382,Business Support,T/F Burlington Insur (to be recharged),B1 2JB,"1,478.30",
Communities & Local Government,DCLG,15/06/2015,Accommodation Service Charges,Finance & Corporate Services,GVA GRIMLEY LTD,,Large,,210158990,5106213382,Business Support,T/F High Trees ASC 2015,B1 2JB,"13,961.28",
Communities & Local Government,DCLG,15/06/2015,Accommodation Service Charges,Finance & Corporate Services,GVA GRIMLEY LTD,,Large,,210158990,5106213382,Business Support,T/F Temple Quay ASC 2015,B1 2JB,"21,544.80",
Communities & Local Government,DCLG,15/06/2015,Accommodation Service Charges,Finance & Corporate Services,GVA GRIMLEY LTD,,Large,,210158990,5106213382,Business Support,T/F Rivergate ASC 2015,B1 2JB,"11,388.00",
Communities & Local Government,DCLG,15/06/2015,Accommodation Service Charges,Finance & Corporate Services,GVA GRIMLEY LTD,,Large,,210158990,5106213382,Business Support,T/F Citygate ASC 2015,B1 2JB,"92,015.81",
Communities & Local Government,DCLG,15/06/2015,Accommodation Service Charges,Finance & Corporate Services,GVA GRIMLEY LTD,,Large,,210158990,5106213382,Business Support,T/F Lateral ASC 2015,B1 2JB,"65,291.46",
Communities & Local Government,DCLG,15/06/2015,Accommodation Service Charges,Finance & Corporate Services,GVA GRIMLEY LTD,,Large,,210158990,5106213382,Business Support,T/F Lateral Insurance 2014-15,B1 2JB,"12,777.95",
Communities & Local Government,DCLG,15/06/2015,Accommodation Service Charges,Finance & Corporate Services,GVA GRIMLEY LTD,,Large,,210158990,5106213382,Business Support,T/F Moreton in Marsh ASC 2015,B1 2JB,"26,014.32",
Communities & Local Government,DCLG,15/06/2015,Accommodation Service Charges,Finance & Corporate Services,GVA GRIMLEY LTD,,Large,,210158990,5106213382,Business Support,T/F Cobourg House ASC 2015,B1 2JB,"3,169.79",
Communities & Local Government,DCLG,15/06/2015,Accommodation Service Charges,Finance & Corporate Services,GVA GRIMLEY LTD,,Large,,210158990,5106213382,Business Support,T/F Leeds City Office ASC 2015,B1 2JB,"12,845.59",
Communities & Local Government,DCLG,15/06/2015,Accommodation Service Charges,Finance & Corporate Services,GVA GRIMLEY LTD,,Large,,210158990,5106213382,Business Support,T/F Arndale ASC 2014-15,B1 2JB,"11,382.20",
Communities & Local Government,DCLG,15/06/2015,Accommodation Service Charges,Finance & Corporate Services,GVA GRIMLEY LTD,,Large,,210158990,5106213382,Business Support,T/F Castle Donington ASC 2015,B1 2JB,276.00,
Communities & Local Government,DCLG,15/06/2015,Accommodation Service Charges,Finance & Corporate Services,GVA GRIMLEY LTD,,Large,,210158990,5106213382,Business Support,T/F Cambridge ASC 2015,B1 2JB,"5,502.30",
Communities & Local Government,DCLG,15/06/2015,Accommodation Service Charges,Finance & Corporate Services,GVA GRIMLEY LTD,,Large,,210158990,5106213382,Business Support,T/F Taunton RCC ASC 2015,B1 2JB,"1,392.30",
Communities & Local Government,DCLG,15/06/2015,Accommodation Service Charges,Finance & Corporate Services,GVA GRIMLEY LTD,,Large,,210158990,5106213382,Business Support,T/F Fareham RCC ASC 2015,B1 2JB,966.00,
Communities & Local Government,DCLG,15/06/2015,Agency Staff,Neighbourhoods,BOND DICKINSON LLP,,Large,,,5106213478,Contingent Labour,ERDF Legal Auditors (Sep - Feb),NE1 3DX,"1,038.60",
Communities & Local Government,DCLG,15/06/2015,Cap Grants to Private Sector Companies,Neighbourhoods,BENTLEY MOTORS LIMITED,,Large,,,2100255195,,Regional Growth Fund - Q1 2015-16,CW1 3PL,"113,365.00",Yes
Communities & Local Government,DCLG,15/06/2015,Cap Grants to Private Sector Companies,Neighbourhoods,BUSINESS & ENTERPRISE COMMERCIAL LT,,Medium,,,2100255188,,Regional Growth Fund - Q1 2015-16,SR7 7TT,"5,600,000.00",Yes
Communities & Local Government,DCLG,15/06/2015,Cap Grants to Private Sector Companies,Neighbourhoods,GM BUSINESS SUPPORT LTD,,Large,,,2100255196,,Regional Growth Fund - Q1 2015-16,M1 5JW,"1,108,537.00",Yes
Communities & Local Government,DCLG,15/06/2015,Cap Grants to Private Sector Companies,Neighbourhoods,KING AUTOMOTIVE SYSTEMS LTD,,Medium,,,2100255186,,RGF payment Qtr1 - 2015-16,CV6 3LB,"343,603.46",Yes
Communities & Local Government,DCLG,15/06/2015,Cap Grants to Private Sector Companies,Neighbourhoods,NORTH STAFFS CHAMBER COMM & IND,,Small,,,2100255181,,RGF payment Qtr1 - 2015-16,ST1 5BE,"525,000.00",Yes
Communities & Local Government,DCLG,15/06/2015,Cap Grants to Private Sector Companies,Neighbourhoods,NORTHAMPTON ENTERPRISE PARTNERSHIP,,Small,,,2100255183,,RGF payment Qtr1 - 2015-16,NN1 5DQ,"150,000.00",Yes
Communities & Local Government,DCLG,15/06/2015,Cap Grants to Private Sector Companies,Neighbourhoods,TATA CHEMICALS EUROPE LTD,,Large,,,2100255192,,Regional Growth Fund - Q1 2015-16,CW8 4DT,"12,272.30",Yes
Communities & Local Government,DCLG,15/06/2015,Capital Grant to LA Replace Loan Nonbud,Neighbourhoods,BATH & NE SOMERSET DC,,Large,,214502499,2100255189,,Regional Growth Fund - Q1 2015-16,BA1 5AW,"1,543,351.00",Yes
Communities & Local Government,DCLG,15/06/2015,Capital Grant to LA Replace Loan Nonbud,Neighbourhoods,BIRMINGHAM CITY COUNCIL,,,,213270263,2100255172,,Regional Growth Fund - Q1 2015-16,B3 3PL,"1,000,000.00",Yes
Communities & Local Government,DCLG,15/06/2015,Capital Grant to LA Replace Loan Nonbud,Neighbourhoods,CAMBRIDGESHIRE COUNTY COUNCIL,,Large,,214973153,2100255185,,Regional Growth Fund - Q1 2015-16,PE29 3AD,"220,983.90",Yes
Communities & Local Government,DCLG,15/06/2015,Capital Grant to LA Replace Loan Nonbud,Neighbourhoods,COVENTRY CITY COUNCIL,,Large,,211313697,2100255170,,Regional Growth Fund - Q1 2015-16,CV1 5RQ,"2,397,465.17",Yes
Communities & Local Government,DCLG,15/06/2015,Capital Grant to LA Replace Loan Nonbud,Neighbourhoods,COVENTRY CITY COUNCIL,,Large,,211313697,2100255174,,Regional Growth Fund - Q1 2015-16,CV1 5RQ,"200,000.00",Yes
Communities & Local Government,DCLG,15/06/2015,Capital Grant to LA Replace Loan Nonbud,Neighbourhoods,COVENTRY CITY COUNCIL,,Large,,211313697,2100255175,,Regional Growth Fund - Q1 2015-16,CV1 5RQ,"527,611.32",Yes
Communities & Local Government,DCLG,15/06/2015,Capital Grant to LA Replace Loan Nonbud,Neighbourhoods,DERBYSHIRE COUNTY COUNCIL,,,,232152967,2100255178,,Regional Growth Fund - Q1 2015-16,DE4 3AH,"500,000.00",Yes
Communities & Local Government,DCLG,15/06/2015,Capital Grant to LA Replace Loan Nonbud,Neighbourhoods,HEREFORDSHIRE COUNCIL,,Public Bodies,,230359700,2100255177,,Regional Growth Fund - Q1 2015-16,HR1 1ZT,"100,000.00",Yes
Communities & Local Government,DCLG,15/06/2015,Capital Grant to LA Replace Loan Nonbud,Neighbourhoods,LEEDS CITY COUNCIL,,Large,,211170311,2100255197,,Regional Growth Fund - Q1 2015-16,LS1 1UR,"318,296.00",Yes
Communities & Local Government,DCLG,15/06/2015,Capital Grant to LA Replace Loan Nonbud,Neighbourhoods,LLOYDS BANKING GROUP,,,,,2100255180,,Regional Growth Fund - Q1 2015-16,BS99 7LB,"2,387,357.57",Yes
Communities & Local Government,DCLG,15/06/2015,Capital Grant to LA Replace Loan Nonbud,Neighbourhoods,NOTTINGHAM CITY COUNCIL,,Large,,,2100255173,,Regional Growth Fund - Q1 2015-16,NG2 3NG,"713,072.15",Yes
Communities & Local Government,DCLG,15/06/2015,Capital Grant to LA Replace Loan Nonbud,Neighbourhoods,SOUTHAMPTON CITY COUNCIL,,Public Bodies,,216927475,2100255169,,Regional Growth Fund - Q1 2015 -16,SO14 7LY,"1,483,517.00",Yes
Communities & Local Government,DCLG,15/06/2015,Capital Grant to LA Replace Loan Nonbud,Neighbourhoods,SUFFOLK COUNTY COUNCIL,,Large,,236445243,2100255187,,Regional Growth Fund - Q1 2015-16,IP1 2BX,"1,500,000.00",Yes
Communities & Local Government,DCLG,15/06/2015,Capital Grant to LA Replace Loan Nonbud,Neighbourhoods,SUNDERLAND CITY COUNCIL,,,,215599312,2100255176,,RGF payment Qtr1 - 2015-16,SR2 7DN,"188,407.00",Yes
Communities & Local Government,DCLG,15/06/2015,Current (non AEF) Grants to Local Authorities,Localism,ADUR DC,,,,227472891,5000296394,,Doubling of Small Business Rates Relief,BN11 1HB,"21,294.00",Yes
Communities & Local Government,DCLG,15/06/2015,Current (non AEF) Grants to Local Authorities,Localism,ADUR DC,,,,227472891,5000296395,,Retail Relief,BN11 1HB,"9,309.00",Yes
Communities & Local Government,DCLG,15/06/2015,Current (non AEF) Grants to Local Authorities,Localism,ADUR DC,,,,227472891,5000296396,,Business Rates 2% Inflation Cap,BN11 1HB,"2,193.00",Yes
Communities & Local Government,DCLG,15/06/2015,Current (non AEF) Grants to Local Authorities,Localism,ADUR DC,,,,227472891,5000297051,,Council Tax Freeze,BN11 1HB,"6,323.00",Yes
Communities & Local Government,DCLG,15/06/2015,Current (non AEF) Grants to Local Authorities,Localism,ALLERDALE BOROUGH COUNCIL,,,,218146780,5000296397,,Doubling of Small Business Rates Relief,CA14 3YJ,"55,776.00",Yes
Communities & Local Government,DCLG,15/06/2015,Current (non AEF) Grants to Local Authorities,Localism,ALLERDALE BOROUGH COUNCIL,,,,218146780,5000296398,,Reoccupation Relief,CA14 3YJ,887.00,Yes
Communities & Local Government,DCLG,15/06/2015,Current (non AEF) Grants to Local Authorities,Localism,ALLERDALE BOROUGH COUNCIL,,,,218146780,5000296399,,Business Rates 2% Inflation Cap,CA14 3YJ,"4,942.00",Yes
Communities & Local Government,DCLG,15/06/2015,Current (non AEF) Grants to Local Authorities,Localism,ALLERDALE BOROUGH COUNCIL,,,,218146780,5000296400,,Retail Relief,CA14 3YJ,"23,545.00",Yes
Communities & Local Government,DCLG,15/06/2015,Current (non AEF) Grants to Local Authorities,Localism,ALLERDALE BOROUGH COUNCIL,,,,218146780,5000296401,,Small Business Rates Relief on Second Properties,CA14 3YJ,338.00,Yes
Communities & Local Government,DCLG,15/06/2015,Current (non AEF) Grants to Local Authorities,Localism,AMBER VALLEY BC,,,,,5000296402,,Business Rates 2% Inflation Cap,DE5 3BT,"3,422.00",Yes
Communities & Local Government,DCLG,15/06/2015,Current (non AEF) Grants to Local Authorities,Localism,AMBER VALLEY BC,,,,,5000296403,,Doubling of Small Business Rates Relief,DE5 3BT,"44,319.00",Yes
Communities & Local Government,DCLG,15/06/2015,Current (non AEF) Grants to Local Authorities,Localism,AMBER VALLEY BC,,,,,5000296404,,Retail Relief,DE5 3BT,"23,507.00",Yes
Communities & Local Government,DCLG,15/06/2015,Current (non AEF) Grants to Local Authorities,Localism,AMBER VALLEY BC,,,,,5000296405,,Reoccupation Relief,DE5 3BT,406.00,Yes
Communities & Local Government,DCLG,15/06/2015,Current (non AEF) Grants to Local Authorities,Localism,AMBER VALLEY BC,,,,,5000296406,,Small Business Rates Relief on Second Properties,DE5 3BT,338.00,Yes
Communities & Local Government,DCLG,15/06/2015,Current (non AEF) Grants to Local Authorities,Localism,AMBER VALLEY BC,,,,,5000297055,,Council Tax Freeze,DE5 3BT,"6,405.00",Yes
Communities & Local Government,DCLG,15/06/2015,Current (non AEF) Grants to Local Authorities,Localism,ARUN DC,,,,211217668,5000294781,,Reoccupation Relief,BN17 5LF,271.00,Yes
Communities & Local Government,DCLG,15/06/2015,Current (non AEF) Grants to Local Authorities,Localism,ARUN DC,,,,211217668,5000294782,,Small Business Rates Relief on Second Properties,BN17 5LF,341.00,Yes
Communities & Local Government,DCLG,15/06/2015,Current (non AEF) Grants to Local Authorities,Localism,ARUN DC,,,,211217668,5000294783,,Retail Relief,BN17 5LF,"35,882.00",Yes
Communities & Local Government,DCLG,15/06/2015,Current (non AEF) Grants to Local Authorities,Localism,ARUN DC,,,,211217668,5000294784,,Business Rates 2% Inflation Cap,BN17 5LF,"5,864.00",Yes
Communities & Local Government,DCLG,15/06/2015,Current (non AEF) Grants to Local Authorities,Localism,ARUN DC,,,,211217668,5000294785,,Doubling of Small Business Rates Relief,BN17 5LF,"54,210.00",Yes
Communities & Local Government,DCLG,15/06/2015,Current (non AEF) Grants to Local Authorities,Localism,ARUN DC,,,,211217668,5000296735,,Council Tax Freeze,BN17 5LF,"10,351.00",Yes
Communities & Local Government,DCLG,15/06/2015,Current (non AEF) Grants to Local Authorities,Localism,ASHFIELD DC,,,,235415296,5000296407,,Empty New Build Relief,NG17 8DA,"1,184.00",Yes
Communities & Local Government,DCLG,15/06/2015,Current (non AEF) Grants to Local Authorities,Localism,ASHFIELD DC,,,,235415296,5000296408,,Doubling of Small Business Rates Relief,NG17 8DA,"30,985.00",Yes
Communities & Local Government,DCLG,15/06/2015,Current (non AEF) Grants to Local Authorities,Localism,ASHFIELD DC,,,,235415296,5000296409,,Business Rates 2% Inflation Cap,NG17 8DA,"5,443.00",Yes
Communities & Local Government,DCLG,15/06/2015,Current (non AEF) Grants to Local Authorities,Localism,ASHFIELD DC,,,,235415296,5000296410,,Reoccupation Relief,NG17 8DA,507.00,Yes
Communities & Local Government,DCLG,15/06/2015,Current (non AEF) Grants to Local Authorities,Localism,ASHFIELD DC,,,,235415296,5000296411,,Retail Relief,NG17 8DA,"6,765.00",Yes
Communities & Local Government,DCLG,15/06/2015,Current (non AEF) Grants to Local Authorities,Localism,ASHFIELD DC,,,,235415296,5000297058,,Council Tax Freeze,NG17 8DA,"6,386.00",Yes
Communities & Local Government,DCLG,15/06/2015,Current (non AEF) Grants to Local Authorities,Localism,ASHFORD BC,,,,229467071,5000294787,,Reoccupation Relief,TN23 1PL,845.00,Yes
Communities & Local Government,DCLG,15/06/2015,Current (non AEF) Grants to Local Authorities,Localism,ASHFORD BC,,,,229467071,5000294788,,Small Business Rates Relief on Second Properties,TN23 1PL,299.00,Yes
Communities & Local Government,DCLG,15/06/2015,Current (non AEF) Grants to Local Authorities,Localism,ASHFORD BC,,,,229467071,5000294789,,Retail Relief,TN23 1PL,"26,382.00",Yes
Communities & Local Government,DCLG,15/06/2015,Current (non AEF) Grants to Local Authorities,Localism,ASHFORD BC,,,,229467071,5000294790,,Business Rates 2% Inflation Cap,TN23 1PL,"3,788.00",Yes
Communities & Local Government,DCLG,15/06/2015,Current (non AEF) Grants to Local Authorities,Localism,ASHFORD BC,,,,229467071,5000294791,,Doubling of Small Business Rates Relief,TN23 1PL,"42,524.00",Yes
Communities & Local Government,DCLG,15/06/2015,Current (non AEF) Grants to Local Authorities,Localism,ASHFORD BC,,,,229467071,5000296736,,Council Tax Freeze,TN23 1PL,"6,882.00",Yes
Communities & Local Government,DCLG,15/06/2015,Current (non AEF) Grants to Local Authorities,Localism,AVON FIRE AUTHORITY,,Large,,424872570,5000296065,,Doubling of Small Business Rates Relief,BS1 6EU,"7,158.00",Yes
Communities & Local Government,DCLG,15/06/2015,Current (non AEF) Grants to Local Authorities,Localism,AVON FIRE AUTHORITY,,Large,,424872570,5000296067,,Business Rates 2% Inflation Cap,BS1 6EU,"12,054.00",Yes
Communities & Local Government,DCLG,15/06/2015,Current (non AEF) Grants to Local Authorities,Localism,AVON FIRE AUTHORITY,,Large,,424872570,5000296071,,Reoccupation Relief,BS1 6EU,"1,116.00",Yes
Communities & Local Government,DCLG,15/06/2015,Current (non AEF) Grants to Local Authorities,Localism,AVON FIRE AUTHORITY,,Large,,424872570,5000296073,,Retail Relief,BS1 6EU,"2,793.00",Yes
Communities & Local Government,DCLG,15/06/2015,Current (non AEF) Grants to Local Authorities,Localism,AYLESBURY VALE DC(HSG),,,,396710709,5000294793,,Doubling of Small Business Rates Relief,HP19 8FF,"56,222.00",Yes
Communities & Local Government,DCLG,15/06/2015,Current (non AEF) Grants to Local Authorities,Localism,AYLESBURY VALE DC(HSG),,,,396710709,5000294794,,Business Rates 2% Inflation Cap,HP19 8FF,"4,651.00",Yes
Communities & Local Government,DCLG,15/06/2015,Current (non AEF) Grants to Local Authorities,Localism,AYLESBURY VALE DC(HSG),,,,396710709,5000294795,,Empty New Build Relief,HP19 8FF,"2,815.00",Yes
Communities & Local Government,DCLG,15/06/2015,Current (non AEF) Grants to Local Authorities,Localism,AYLESBURY VALE DC(HSG),,,,396710709,5000294796,,Retail Relief,HP19 8FF,"27,770.00",Yes
Communities & Local Government,DCLG,15/06/2015,Current (non AEF) Grants to Local Authorities,Localism,AYLESBURY VALE DC(HSG),,,,396710709,5000296740,,Council Tax Freeze,HP19 8FF,"10,627.00",Yes
Communities & Local Government,DCLG,15/06/2015,Current (non AEF) Grants to Local Authorities,Localism,BABERGH DC,,,,232618405,5000294797,,Reoccupation Relief,IP7 6SJ,264.00,Yes
Communities & Local Government,DCLG,15/06/2015,Current (non AEF) Grants to Local Authorities,Localism,BABERGH DC,,,,232618405,5000294798,,Retail Relief,IP7 6SJ,"13,506.00",Yes
Communities & Local Government,DCLG,15/06/2015,Current (non AEF) Grants to Local Authorities,Localism,BABERGH DC,,,,232618405,5000294799,,Business Rates 2% Inflation Cap,IP7 6SJ,"2,476.00",Yes
Communities & Local Government,DCLG,15/06/2015,Current (non AEF) Grants to Local Authorities,Localism,BABERGH DC,,,,232618405,5000294800,,Doubling of Small Business Rates Relief,IP7 6SJ,"36,712.00",Yes
Communities & Local Government,DCLG,15/06/2015,Current (non AEF) Grants to Local Authorities,Localism,BABERGH DC,,,,232618405,5000296741,,Council Tax Freeze,IP7 6SJ,"4,989.00",Yes
Communities & Local Government,DCLG,15/06/2015,Current (non AEF) Grants to Local Authorities,Localism,BARKING & DAGENHAM LB (HSG),,,,217142293,5000294802,,Retail Relief,RM10 7BY,"23,702.00",Yes
Communities & Local Government,DCLG,15/06/2015,Current (non AEF) Grants to Local Authorities,Localism,BARKING & DAGENHAM LB (HSG),,,,217142293,5000294803,,Business Rates 2% Inflation Cap,RM10 7BY,"61,484.00",Yes
Communities & Local Government,DCLG,15/06/2015,Current (non AEF) Grants to Local Authorities,Localism,BARKING & DAGENHAM LB (HSG),,,,217142293,5000294804,,Doubling of Small Business Rates Relief,RM10 7BY,"31,668.00",Yes
Communities & Local Government,DCLG,15/06/2015,Current (non AEF) Grants to Local Authorities,Localism,BARKING & DAGENHAM LB (HSG),,,,217142293,5000294805,,Empty New Build Relief,RM10 7BY,"1,501.00",Yes
Communities & Local Government,DCLG,15/06/2015,Current (non AEF) Grants to Local Authorities,Localism,BARKING & DAGENHAM LB (HSG),,,,217142293,5000294807,,Reoccupation Relief,RM10 7BY,"2,475.00",Yes
Communities & Local Government,DCLG,15/06/2015,Current (non AEF) Grants to Local Authorities,Localism,BARNSLEY MBC,,,,211178595,5000296418,,Retail Relief,S70 2AQ,"43,650.00",Yes
Communities & Local Government,DCLG,15/06/2015,Current (non AEF) Grants to Local Authorities,Localism,BARNSLEY MBC,,,,211178595,5000296419,,Business Rates 2% Inflation Cap,S70 2AQ,"62,639.00",Yes
Communities & Local Government,DCLG,15/06/2015,Current (non AEF) Grants to Local Authorities,Localism,BARNSLEY MBC,,,,211178595,5000296420,,Doubling of Small Business Rates Relief,S70 2AQ,"100,223.00",Yes
Communities & Local Government,DCLG,15/06/2015,Current (non AEF) Grants to Local Authorities,Localism,BARROW BC,,,,295632913,5000296421,,Business Rates 2% Inflation Cap,LA14 2LD,"4,153.00",Yes
Communities & Local Government,DCLG,15/06/2015,Current (non AEF) Grants to Local Authorities,Localism,BARROW BC,,,,295632913,5000296423,,Reoccupation Relief,LA14 2LD,278.00,Yes
Communities & Local Government,DCLG,15/06/2015,Current (non AEF) Grants to Local Authorities,Localism,BARROW BC,,,,295632913,5000296424,,Retail Relief,LA14 2LD,"10,367.00",Yes
Communities & Local Government,DCLG,15/06/2015,Current (non AEF) Grants to Local Authorities,Localism,BARROW BC,,,,295632913,5000296426,,Doubling of Small Business Rates Relief,LA14 2LD,"22,619.00",Yes
Communities & Local Government,DCLG,15/06/2015,Current (non AEF) Grants to Local Authorities,Localism,BARROW BC,,,,295632913,5000297064,,Council Tax Freeze,LA14 2LD,"4,714.00",Yes
Communities & Local Government,DCLG,15/06/2015,Current (non AEF) Grants to Local Authorities,Localism,BASILDON BOROUGH COUNCIL,,,,,5000296427,,Retail Relief,SS14 0DF,"24,488.00",Yes
Communities & Local Government,DCLG,15/06/2015,Current (non AEF) Grants to Local Authorities,Localism,BASILDON BOROUGH COUNCIL,,,,,5000296428,,Business Rates 2% Inflation Cap,SS14 0DF,"7,964.00",Yes
Communities & Local Government,DCLG,15/06/2015,Current (non AEF) Grants to Local Authorities,Localism,BASILDON BOROUGH COUNCIL,,,,,5000296429,,Doubling of Small Business Rates Relief,SS14 0DF,"41,328.00",Yes
Communities & Local Government,DCLG,15/06/2015,Current (non AEF) Grants to Local Authorities,Localism,BASILDON BOROUGH COUNCIL,,,,,5000297067,,Council Tax Freeze,SS14 0DF,"16,547.00",Yes
Communities & Local Government,DCLG,15/06/2015,Current (non AEF) Grants to Local Authorities,Localism,BASINGSTOKE & DEANE BC,,,,228328506,5000296430,,Business Rates 2% Inflation Cap,RG21 2AJ,"3,653.00",Yes
Communities & Local Government,DCLG,15/06/2015,Current (non AEF) Grants to Local Authorities,Localism,BASINGSTOKE & DEANE BC,,,,228328506,5000296431,,Doubling of Small Business Rates Relief,RG21 2AJ,"28,222.00",Yes
Communities & Local Government,DCLG,15/06/2015,Current (non AEF) Grants to Local Authorities,Localism,BASINGSTOKE & DEANE BC,,,,228328506,5000296432,,Retail Relief,RG21 2AJ,"12,814.00",Yes
Communities & Local Government,DCLG,15/06/2015,Current (non AEF) Grants to Local Authorities,Localism,BASINGSTOKE & DEANE BC,,,,228328506,5000296433,,Reoccupation Relief,RG21 2AJ,839.00,Yes
Communities & Local Government,DCLG,15/06/2015,Current (non AEF) Grants to Local Authorities,Localism,BASINGSTOKE & DEANE BC,,,,228328506,5000297070,,Council Tax Freeze,RG21 2AJ,"6,993.00",Yes
Communities & Local Government,DCLG,15/06/2015,Current (non AEF) Grants to Local Authorities,Localism,BASSETLAW DC (HSG),,,,,5000294809,,Small Business Rates Relief on Second Properties,S80 2AH,526.00,Yes
Communities & Local Government,DCLG,15/06/2015,Current (non AEF) Grants to Local Authorities,Localism,BASSETLAW DC (HSG),,,,,5000294811,,Business Rates 2% Inflation Cap,S80 2AH,"4,869.00",Yes
Communities & Local Government,DCLG,15/06/2015,Current (non AEF) Grants to Local Authorities,Localism,BASSETLAW DC (HSG),,,,,5000294813,,Doubling of Small Business Rates Relief,S80 2AH,"41,744.00",Yes
Communities & Local Government,DCLG,15/06/2015,Current (non AEF) Grants to Local Authorities,Localism,BASSETLAW DC (HSG),,,,,5000294815,,Empty New Build Relief,S80 2AH,"1,368.00",Yes
Communities & Local Government,DCLG,15/06/2015,Current (non AEF) Grants to Local Authorities,Localism,BASSETLAW DC (HSG),,,,,5000294817,,Reoccupation Relief,S80 2AH,811.00,Yes
Communities & Local Government,DCLG,15/06/2015,Current (non AEF) Grants to Local Authorities,Localism,BASSETLAW DC (HSG),,,,,5000294819,,Retail Relief,S80 2AH,"15,212.00",Yes
Communities & Local Government,DCLG,15/06/2015,Current (non AEF) Grants to Local Authorities,Localism,BATH & NE SOMERSET DC (HSG),,,,214502499,5000294821,,Doubling of Small Business Rates Relief,BA1 5AW,"77,258.00",Yes
Communities & Local Government,DCLG,15/06/2015,Current (non AEF) Grants to Local Authorities,Localism,BATH & NE SOMERSET DC (HSG),,,,214502499,5000294823,,Reoccupation Relief,BA1 5AW,428.00,Yes
Communities & Local Government,DCLG,15/06/2015,Current (non AEF) Grants to Local Authorities,Localism,BATH & NE SOMERSET DC (HSG),,,,214502499,5000294825,,Business Rates 2% Inflation Cap,BA1 5AW,"27,359.00",Yes
Communities & Local Government,DCLG,15/06/2015,Current (non AEF) Grants to Local Authorities,Localism,BATH & NE SOMERSET DC (HSG),,,,214502499,5000294827,,Retail Relief,BA1 5AW,"54,012.00",Yes
Communities & Local Government,DCLG,15/06/2015,Current (non AEF) Grants to Local Authorities,Localism,BATH & NE SOMERSET DC (HSG),,,,214502499,5000294829,,Small Business Rates Relief on Second Properties,BA1 5AW,363.00,Yes
Communities & Local Government,DCLG,15/06/2015,Current (non AEF) Grants to Local Authorities,Localism,BATH & NE SOMERSET DC (HSG),,,,214502499,5000296745,,Council Tax Freeze,BA1 5AW,"81,337.00",Yes
Communities & Local Government,DCLG,15/06/2015,Current (non AEF) Grants to Local Authorities,Localism,BEDFORD UNITARY AUTHORITY,,,,225682160,5000296134,,Empty New Build Relief,MK40 1SJ,415.00,Yes
Communities & Local Government,DCLG,15/06/2015,Current (non AEF) Grants to Local Authorities,Localism,BEDFORD UNITARY AUTHORITY,,,,225682160,5000296136,,Reoccupation Relief,MK40 1SJ,621.00,Yes
Communities & Local Government,DCLG,15/06/2015,Current (non AEF) Grants to Local Authorities,Localism,BEDFORD UNITARY AUTHORITY,,,,225682160,5000296138,,Retail Relief,MK40 1SJ,"29,168.00",Yes
Communities & Local Government,DCLG,15/06/2015,Current (non AEF) Grants to Local Authorities,Localism,BEDFORD UNITARY AUTHORITY,,,,225682160,5000296142,,Business Rates 2% Inflation Cap,MK40 1SJ,"36,010.00",Yes
Communities & Local Government,DCLG,15/06/2015,Current (non AEF) Grants to Local Authorities,Localism,BEDFORD UNITARY AUTHORITY,,,,225682160,5000296144,,Doubling of Small Business Rates Relief,MK40 1SJ,"64,439.00",Yes
Communities & Local Government,DCLG,15/06/2015,Current (non AEF) Grants to Local Authorities,Localism,BEDFORD UNITARY AUTHORITY,,,,225682160,5000297298,,Council Tax Freeze,MK40 1SJ,"78,775.00",Yes
Communities & Local Government,DCLG,15/06/2015,Current (non AEF) Grants to Local Authorities,Localism,BEDS & LUTON FIRE & RESCUE SERVICE,,Medium,,387821283,5000295860,,Business Rates 2% Inflation Cap,MK42 7NR,"6,567.00",Yes
Communities & Local Government,DCLG,15/06/2015,Current (non AEF) Grants to Local Authorities,Localism,BEDS & LUTON FIRE & RESCUE SERVICE,,Medium,,387821283,5000295862,,Doubling of Small Business Rates Relief,MK42 7NR,"4,213.00",Yes
Communities & Local Government,DCLG,15/06/2015,Current (non AEF) Grants to Local Authorities,Localism,BEDS & LUTON FIRE & RESCUE SERVICE,,Medium,,387821283,5000295868,,Small Business Rates Relief on Second Properties,MK42 7NR,"1,421.00",Yes
Communities & Local Government,DCLG,15/06/2015,Current (non AEF) Grants to Local Authorities,Localism,BEDS & LUTON FIRE & RESCUE SERVICE,,Medium,,387821283,5000295874,,Retail Relief,MK42 7NR,"2,668.00",Yes
Communities & Local Government,DCLG,15/06/2015,Current (non AEF) Grants to Local Authorities,Localism,BEXLEY LB (RSG),,,,,5000295523,,Retail Relief,DA8 1TL,"29,135.00",Yes
Communities & Local Government,DCLG,15/06/2015,Current (non AEF) Grants to Local Authorities,Localism,BEXLEY LB (RSG),,,,,5000295526,,Business Rates 2% Inflation Cap,DA8 1TL,"42,229.00",Yes
Communities & Local Government,DCLG,15/06/2015,Current (non AEF) Grants to Local Authorities,Localism,BEXLEY LB (RSG),,,,,5000295529,,Doubling of Small Business Rates Relief,DA8 1TL,"50,187.00",Yes
Communities & Local Government,DCLG,15/06/2015,Current (non AEF) Grants to Local Authorities,Localism,BIRMINGHAM CITY CNCL,,,,213780559,5000296434,,Retail Relief,B2 2AJ,"319,634.00",Yes
Communities & Local Government,DCLG,15/06/2015,Current (non AEF) Grants to Local Authorities,Localism,BIRMINGHAM CITY CNCL,,,,213780559,5000296435,,Business Rates 2% Inflation Cap,B2 2AJ,"400,960.00",Yes
Communities & Local Government,DCLG,15/06/2015,Current (non AEF) Grants to Local Authorities,Localism,BIRMINGHAM CITY CNCL,,,,213780559,5000296436,,Doubling of Small Business Rates Relief,B2 2AJ,"472,716.00",Yes
Communities & Local Government,DCLG,15/06/2015,Current (non AEF) Grants to Local Authorities,Localism,BLABY DC (HSG),,,,,5000294831,,Business Rates 2% Inflation Cap,LE9 5EP,"3,989.00",Yes
Communities & Local Government,DCLG,15/06/2015,Current (non AEF) Grants to Local Authorities,Localism,BLABY DC (HSG),,,,,5000294833,,Doubling of Small Business Rates Relief,LE9 5EP,"20,366.00",Yes
Communities & Local Government,DCLG,15/06/2015,Current (non AEF) Grants to Local Authorities,Localism,BLABY DC (HSG),,,,,5000294835,,Retail Relief,LE9 5EP,"3,446.00",Yes
Communities & Local Government,DCLG,15/06/2015,Current (non AEF) Grants to Local Authorities,Localism,BLACKBURN WITH DARWEN BC,,,,,5000296438,,Business Rates 2% Inflation Cap,BB1 7DY,"49,349.00",Yes
Communities & Local Government,DCLG,15/06/2015,Current (non AEF) Grants to Local Authorities,Localism,BLACKBURN WITH DARWEN BC,,,,,5000296439,,Small Business Rates Relief on Second Properties,BB1 7DY,"1,242.00",Yes
Communities & Local Government,DCLG,15/06/2015,Current (non AEF) Grants to Local Authorities,Localism,BLACKBURN WITH DARWEN BC,,,,,5000296440,,Doubling of Small Business Rates Relief,BB1 7DY,"105,030.00",Yes
Communities & Local Government,DCLG,15/06/2015,Current (non AEF) Grants to Local Authorities,Localism,BLACKBURN WITH DARWEN BC,,,,,5000296441,,Reoccupation Relief,BB1 7DY,"4,143.00",Yes
Communities & Local Government,DCLG,15/06/2015,Current (non AEF) Grants to Local Authorities,Localism,BLACKBURN WITH DARWEN BC,,,,,5000296442,,Retail Relief,BB1 7DY,"30,452.00",Yes
Communities & Local Government,DCLG,15/06/2015,Current (non AEF) Grants to Local Authorities,Localism,BLACKBURN WITH DARWEN BC,,,,,5000297072,,Council Tax Freeze,BB1 7DY,"51,650.00",Yes
Communities & Local Government,DCLG,15/06/2015,Current (non AEF) Grants to Local Authorities,Localism,BLACKPOOL BC,,,,,5000296443,,Doubling of Small Business Rates Relief,FY1 1NA,"127,915.00",Yes
Communities & Local Government,DCLG,15/06/2015,Current (non AEF) Grants to Local Authorities,Localism,BLACKPOOL BC,,,,,5000296444,,Reoccupation Relief,FY1 1NA,"4,758.00",Yes
Communities & Local Government,DCLG,15/06/2015,Current (non AEF) Grants to Local Authorities,Localism,BLACKPOOL BC,,,,,5000296446,,Empty New Build Relief,FY1 1NA,286.00,Yes
Communities & Local Government,DCLG,15/06/2015,Current (non AEF) Grants to Local Authorities,Localism,BLACKPOOL BC,,,,,5000296447,,Retail Relief,FY1 1NA,"35,061.00",Yes
Communities & Local Government,DCLG,15/06/2015,Current (non AEF) Grants to Local Authorities,Localism,BLACKPOOL BC,,,,,5000296448,,Business Rates 2% Inflation Cap,FY1 1NA,"52,456.00",Yes
Communities & Local Government,DCLG,15/06/2015,Current (non AEF) Grants to Local Authorities,Localism,BLACKPOOL BC,,,,,5000297076,,Council Tax Freeze,FY1 1NA,"61,480.00",Yes
Communities & Local Government,DCLG,15/06/2015,Current (non AEF) Grants to Local Authorities,Localism,BOLSOVER DC,,,,235516523,5000296449,,Doubling of Small Business Rates Relief,S43 4JY,"21,518.00",Yes
Communities & Local Government,DCLG,15/06/2015,Current (non AEF) Grants to Local Authorities,Localism,BOLSOVER DC,,,,235516523,5000296450,,Retail Relief,S43 4JY,"6,906.00",Yes
Communities & Local Government,DCLG,15/06/2015,Current (non AEF) Grants to Local Authorities,Localism,BOLSOVER DC,,,,235516523,5000296451,,Business Rates 2% Inflation Cap,S43 4JY,"4,894.00",Yes
Communities & Local Government,DCLG,15/06/2015,Current (non AEF) Grants to Local Authorities,Localism,BOLSOVER DC,,,,235516523,5000297078,,Council Tax Freeze,S43 4JY,"3,701.00",Yes
Communities & Local Government,DCLG,15/06/2015,Current (non AEF) Grants to Local Authorities,Localism,BOLTON MBC,,,,,5000296452,,Reoccupation Relief,BL1 1RU,"4,558.00",Yes
Communities & Local Government,DCLG,15/06/2015,Current (non AEF) Grants to Local Authorities,Localism,BOLTON MBC,,,,,5000296453,,Retail Relief,BL1 1RU,"50,548.00",Yes
Communities & Local Government,DCLG,15/06/2015,Current (non AEF) Grants to Local Authorities,Localism,BOLTON MBC,,,,,5000296454,,Business Rates 2% Inflation Cap,BL1 1RU,"75,317.00",Yes
Communities & Local Government,DCLG,15/06/2015,Current (non AEF) Grants to Local Authorities,Localism,BOLTON MBC,,,,,5000296455,,Doubling of Small Business Rates Relief,BL1 1RU,"155,370.00",Yes
Communities & Local Government,DCLG,15/06/2015,Current (non AEF) Grants to Local Authorities,Localism,BOLTON MBC,,,,,5000296456,,Empty New Build Relief,BL1 1RU,415.00,Yes
Communities & Local Government,DCLG,15/06/2015,Current (non AEF) Grants to Local Authorities,Localism,BOLTON MBC,,,,,5000297081,,Council Tax Freeze,BL1 1RU,"109,791.00",Yes
Communities & Local Government,DCLG,15/06/2015,Current (non AEF) Grants to Local Authorities,Localism,BOSTON BC,,,,236417713,5000294837,,Retail Relief,PE21 8QR,"9,301.00",Yes
Communities & Local Government,DCLG,15/06/2015,Current (non AEF) Grants to Local Authorities,Localism,BOSTON BC,,,,236417713,5000294839,,Business Rates 2% Inflation Cap,PE21 8QR,"3,068.00",Yes
Communities & Local Government,DCLG,15/06/2015,Current (non AEF) Grants to Local Authorities,Localism,BOSTON BC,,,,236417713,5000294841,,Empty New Build Relief,PE21 8QR,266.00,Yes
Communities & Local Government,DCLG,15/06/2015,Current (non AEF) Grants to Local Authorities,Localism,BOSTON BC,,,,236417713,5000294843,,Doubling of Small Business Rates Relief,PE21 8QR,"23,958.00",Yes
Communities & Local Government,DCLG,15/06/2015,Current (non AEF) Grants to Local Authorities,Localism,BOSTON BC,,,,236417713,5000296747,,Council Tax Freeze,PE21 8QR,"3,421.00",Yes
Communities & Local Government,DCLG,15/06/2015,Current (non AEF) Grants to Local Authorities,Localism,BOURNEMOUTH DC,,,,,5000296457,,Business Rates 2% Inflation Cap,BH2 6EB,"34,080.00",Yes
Communities & Local Government,DCLG,15/06/2015,Current (non AEF) Grants to Local Authorities,Localism,BOURNEMOUTH DC,,,,,5000296458,,Doubling of Small Business Rates Relief,BH2 6EB,"93,486.00",Yes
Communities & Local Government,DCLG,15/06/2015,Current (non AEF) Grants to Local Authorities,Localism,BOURNEMOUTH DC,,,,,5000296459,,Reoccupation Relief,BH2 6EB,"3,108.00",Yes
Communities & Local Government,DCLG,15/06/2015,Current (non AEF) Grants to Local Authorities,Localism,BOURNEMOUTH DC,,,,,5000296461,,Retail Relief,BH2 6EB,"56,894.00",Yes
Communities & Local Government,DCLG,15/06/2015,Current (non AEF) Grants to Local Authorities,Localism,BOURNEMOUTH DC,,,,,5000297085,,Council Tax Freeze,BH2 6EB,"85,630.00",Yes
Communities & Local Government,DCLG,15/06/2015,Current (non AEF) Grants to Local Authorities,Localism,BRACKNELL FOREST DC,,,,236184867,5000296462,,Doubling of Small Business Rates Relief,RG12 1AQ,"20,076.00",Yes
Communities & Local Government,DCLG,15/06/2015,Current (non AEF) Grants to Local Authorities,Localism,BRACKNELL FOREST DC,,,,236184867,5000296463,,Retail Relief,RG12 1AQ,"14,501.00",Yes
Communities & Local Government,DCLG,15/06/2015,Current (non AEF) Grants to Local Authorities,Localism,BRACKNELL FOREST DC,,,,236184867,5000296464,,Small Business Rates Relief on Second Properties,RG12 1AQ,829.00,Yes
Communities & Local Government,DCLG,15/06/2015,Current (non AEF) Grants to Local Authorities,Localism,BRACKNELL FOREST DC,,,,236184867,5000296465,,Reoccupation Relief,RG12 1AQ,"2,071.00",Yes
Communities & Local Government,DCLG,15/06/2015,Current (non AEF) Grants to Local Authorities,Localism,BRACKNELL FOREST DC,,,,236184867,5000296466,,Business Rates 2% Inflation Cap,RG12 1AQ,"29,288.00",Yes
Communities & Local Government,DCLG,15/06/2015,Current (non AEF) Grants to Local Authorities,Localism,BRACKNELL FOREST DC,,,,236184867,5000297087,,Council Tax Freeze,RG12 1AQ,"50,547.00",Yes
Communities & Local Government,DCLG,15/06/2015,Current (non AEF) Grants to Local Authorities,Localism,BRADFORD MBC,,,,,5000296467,,Business Rates 2% Inflation Cap,BD1 1HX,"152,027.00",Yes
Communities & Local Government,DCLG,15/06/2015,Current (non AEF) Grants to Local Authorities,Localism,BRADFORD MBC,,,,,5000296468,,Empty New Build Relief,BD1 1HX,"1,864.00",Yes
Communities & Local Government,DCLG,15/06/2015,Current (non AEF) Grants to Local Authorities,Localism,BRADFORD MBC,,,,,5000296469,,Retail Relief,BD1 1HX,"134,447.00",Yes
Communities & Local Government,DCLG,15/06/2015,Current (non AEF) Grants to Local Authorities,Localism,BRADFORD MBC,,,,,5000296470,,Doubling of Small Business Rates Relief,BD1 1HX,"327,314.00",Yes
Communities & Local Government,DCLG,15/06/2015,Current (non AEF) Grants to Local Authorities,Localism,BRADFORD MBC,,,,,5000296471,,Reoccupation Relief,BD1 1HX,829.00,Yes
Communities & Local Government,DCLG,15/06/2015,Current (non AEF) Grants to Local Authorities,Localism,BRAINTREE DC,,,,226941730,5000294847,,Retail Relief,CM7 6HB,"18,643.00",Yes
Communities & Local Government,DCLG,15/06/2015,Current (non AEF) Grants to Local Authorities,Localism,BRAINTREE DC,,,,226941730,5000294849,,Business Rates 2% Inflation Cap,CM7 6HB,"4,051.00",Yes
Communities & Local Government,DCLG,15/06/2015,Current (non AEF) Grants to Local Authorities,Localism,BRAINTREE DC,,,,226941730,5000294851,,Doubling of Small Business Rates Relief,CM7 6HB,"53,728.00",Yes
Communities & Local Government,DCLG,15/06/2015,Current (non AEF) Grants to Local Authorities,Localism,BRAINTREE DC,,,,226941730,5000296750,,Council Tax Freeze,CM7 6HB,"8,746.00",Yes
Communities & Local Government,DCLG,15/06/2015,Current (non AEF) Grants to Local Authorities,Localism,BRECKLAND DC,,,,232611384,5000294853,,Business Rates 2% Inflation Cap,NR19 1EE,"5,294.00",Yes
Communities & Local Government,DCLG,15/06/2015,Current (non AEF) Grants to Local Authorities,Localism,BRECKLAND DC,,,,232611384,5000294855,,Doubling of Small Business Rates Relief,NR19 1EE,"49,131.00",Yes
Communities & Local Government,DCLG,15/06/2015,Current (non AEF) Grants to Local Authorities,Localism,BRECKLAND DC,,,,232611384,5000294860,,Retail Relief,NR19 1EE,"21,428.00",Yes
Communities & Local Government,DCLG,15/06/2015,Current (non AEF) Grants to Local Authorities,Localism,BRECKLAND DC,,,,232611384,5000294862,,Small Business Rates Relief on Second Properties,NR19 1EE,423.00,Yes
Communities & Local Government,DCLG,15/06/2015,Current (non AEF) Grants to Local Authorities,Localism,BRECKLAND DC,,,,232611384,5000296753,,Council Tax Freeze,NR19 1EE,"3,166.00",Yes
Communities & Local Government,DCLG,15/06/2015,Current (non AEF) Grants to Local Authorities,Localism,BRENT LB (HSG),,,,,5000294864,,Business Rates 2% Inflation Cap,HA9 9HD,"100,502.00",Yes
Communities & Local Government,DCLG,15/06/2015,Current (non AEF) Grants to Local Authorities,Localism,BRENT LB (HSG),,,,,5000294867,,Doubling of Small Business Rates Relief,HA9 9HD,"55,872.00",Yes
Communities & Local Government,DCLG,15/06/2015,Current (non AEF) Grants to Local Authorities,Localism,BRENT LB (HSG),,,,,5000294870,,Empty New Build Relief,HA9 9HD,"2,537.00",Yes
Communities & Local Government,DCLG,15/06/2015,Current (non AEF) Grants to Local Authorities,Localism,BRENT LB (HSG),,,,,5000294873,,Reoccupation Relief,HA9 9HD,"1,902.00",Yes
Communities & Local Government,DCLG,15/06/2015,Current (non AEF) Grants to Local Authorities,Localism,BRENT LB (HSG),,,,,5000294876,,Retail Relief,HA9 9HD,"55,376.00",Yes
Communities & Local Government,DCLG,15/06/2015,Current (non AEF) Grants to Local Authorities,Localism,BRENT LB (HSG),,,,,5000296755,,Council Tax Freeze,HA9 9HD,"107,813.00",Yes
Communities & Local Government,DCLG,15/06/2015,Current (non AEF) Grants to Local Authorities,Localism,BRENTWOOD BC,,,,227473188,5000296472,,Doubling of Small Business Rates Relief,CM15 8AY,"19,265.00",Yes
Communities & Local Government,DCLG,15/06/2015,Current (non AEF) Grants to Local Authorities,Localism,BRENTWOOD BC,,,,227473188,5000296473,,Business Rates 2% Inflation Cap,CM15 8AY,"1,826.00",Yes
Communities & Local Government,DCLG,15/06/2015,Current (non AEF) Grants to Local Authorities,Localism,BRENTWOOD BC,,,,227473188,5000296475,,Retail Relief,CM15 8AY,"18,050.00",Yes
Communities & Local Government,DCLG,15/06/2015,Current (non AEF) Grants to Local Authorities,Localism,BRENTWOOD BC,,,,227473188,5000297090,,Council Tax Freeze,CM15 8AY,"5,634.00",Yes
Communities & Local Government,DCLG,15/06/2015,Current (non AEF) Grants to Local Authorities,Localism,BRIGHTON & HOVE CITY COUNCIL,,Large,,228455218,5000296476,,Business Rates 2% Inflation Cap,BN3 2LS,"65,657.00",Yes
Communities & Local Government,DCLG,15/06/2015,Current (non AEF) Grants to Local Authorities,Localism,BRIGHTON & HOVE CITY COUNCIL,,Large,,228455218,5000296477,,Doubling of Small Business Rates Relief,BN3 2LS,"130,641.00",Yes
Communities & Local Government,DCLG,15/06/2015,Current (non AEF) Grants to Local Authorities,Localism,BRIGHTON & HOVE CITY COUNCIL,,Large,,228455218,5000296478,,Reoccupation Relief,BN3 2LS,"2,279.00",Yes
Communities & Local Government,DCLG,15/06/2015,Current (non AEF) Grants to Local Authorities,Localism,BRIGHTON & HOVE CITY COUNCIL,,Large,,228455218,5000296479,,Small Business Rates Relief on Second Properties,BN3 2LS,415.00,Yes
Communities & Local Government,DCLG,15/06/2015,Current (non AEF) Grants to Local Authorities,Localism,BRIGHTON & HOVE CITY COUNCIL,,Large,,228455218,5000296480,,Empty New Build Relief,BN3 2LS,"3,315.00",Yes
Communities & Local Government,DCLG,15/06/2015,Current (non AEF) Grants to Local Authorities,Localism,BRIGHTON & HOVE CITY COUNCIL,,Large,,228455218,5000296481,,Retail Relief,BN3 2LS,"146,706.00",Yes
Communities & Local Government,DCLG,15/06/2015,Current (non AEF) Grants to Local Authorities,Localism,BRISTOL CITY CNCL (HSG),,,,211103882,5000294879,,Business Rates 2% Inflation Cap,BS99 7BL,"119,315.00",Yes
Communities & Local Government,DCLG,15/06/2015,Current (non AEF) Grants to Local Authorities,Localism,BRISTOL CITY CNCL (HSG),,,,211103882,5000294882,,Doubling of Small Business Rates Relief,BS99 7BL,"117,873.00",Yes
Communities & Local Government,DCLG,15/06/2015,Current (non AEF) Grants to Local Authorities,Localism,BRISTOL CITY CNCL (HSG),,,,211103882,5000294886,,Reoccupation Relief,BS99 7BL,"52,971.00",Yes
Communities & Local Government,DCLG,15/06/2015,Current (non AEF) Grants to Local Authorities,Localism,BRISTOL CITY CNCL (HSG),,,,211103882,5000294892,,Retail Relief,BS99 7BL,"25,776.00",Yes
Communities & Local Government,DCLG,15/06/2015,Current (non AEF) Grants to Local Authorities,Localism,BROADLAND DC,,Large,,219737785,5000294895,,Doubling of Small Business Rates Relief,NR7 0DU,"43,479.00",Yes
Communities & Local Government,DCLG,15/06/2015,Current (non AEF) Grants to Local Authorities,Localism,BROADLAND DC,,Large,,219737785,5000294898,,Reoccupation Relief,NR7 0DU,507.00,Yes
Communities & Local Government,DCLG,15/06/2015,Current (non AEF) Grants to Local Authorities,Localism,BROADLAND DC,,Large,,219737785,5000294901,,Retail Relief,NR7 0DU,"11,157.00",Yes
Communities & Local Government,DCLG,15/06/2015,Current (non AEF) Grants to Local Authorities,Localism,BROADLAND DC,,Large,,219737785,5000294907,,Business Rates 2% Inflation Cap,NR7 0DU,"4,016.00",Yes
Communities & Local Government,DCLG,15/06/2015,Current (non AEF) Grants to Local Authorities,Localism,BROADLAND DC,,Large,,219737785,5000296759,,Council Tax Freeze,NR7 0DU,"5,289.00",Yes
Communities & Local Government,DCLG,15/06/2015,Current (non AEF) Grants to Local Authorities,Localism,BROMLEY LB,,,,211331954,5000296482,,Retail Relief,BR1 3UH,"53,708.00",Yes
Communities & Local Government,DCLG,15/06/2015,Current (non AEF) Grants to Local Authorities,Localism,BROMLEY LB,,,,211331954,5000296483,,Business Rates 2% Inflation Cap,BR1 3UH,"42,398.00",Yes
Communities & Local Government,DCLG,15/06/2015,Current (non AEF) Grants to Local Authorities,Localism,BROMLEY LB,,,,211331954,5000296484,,Doubling of Small Business Rates Relief,BR1 3UH,"55,282.00",Yes
Communities & Local Government,DCLG,15/06/2015,Current (non AEF) Grants to Local Authorities,Localism,BROMLEY LB,,,,211331954,5000296485,,Reoccupation Relief,BR1 3UH,458.00,Yes
Communities & Local Government,DCLG,15/06/2015,Current (non AEF) Grants to Local Authorities,Localism,BROMSGROVE DC,,,,236654745,5000294913,,Doubling of Small Business Rates Relief,B60 1AA,"35,149.00",Yes
Communities & Local Government,DCLG,15/06/2015,Current (non AEF) Grants to Local Authorities,Localism,BROMSGROVE DC,,,,236654745,5000294916,,Retail Relief,B60 1AA,"19,076.00",Yes
Communities & Local Government,DCLG,15/06/2015,Current (non AEF) Grants to Local Authorities,Localism,BROMSGROVE DC,,,,236654745,5000294919,,Business Rates 2% Inflation Cap,B60 1AA,"2,318.00",Yes
Communities & Local Government,DCLG,15/06/2015,Current (non AEF) Grants to Local Authorities,Localism,BROMSGROVE DC,,,,236654745,5000296761,,Council Tax Freeze,B60 1AA,"7,439.00",Yes
Communities & Local Government,DCLG,15/06/2015,Current (non AEF) Grants to Local Authorities,Localism,BROXBOURNE BC,,Public Bodies,,239931918,5000296486,,Business Rates 2% Inflation Cap,EN8 9XG,"3,569.00",Yes
Communities & Local Government,DCLG,15/06/2015,Current (non AEF) Grants to Local Authorities,Localism,BROXBOURNE BC,,Public Bodies,,239931918,5000296487,,Doubling of Small Business Rates Relief,EN8 9XG,"23,762.00",Yes
Communities & Local Government,DCLG,15/06/2015,Current (non AEF) Grants to Local Authorities,Localism,BROXBOURNE BC,,Public Bodies,,239931918,5000296488,,Reoccupation Relief,EN8 9XG,"8,455.00",Yes
Communities & Local Government,DCLG,15/06/2015,Current (non AEF) Grants to Local Authorities,Localism,BROXBOURNE BC,,Public Bodies,,239931918,5000296489,,Retail Relief,EN8 9XG,"18,956.00",Yes
Communities & Local Government,DCLG,15/06/2015,Current (non AEF) Grants to Local Authorities,Localism,BROXBOURNE BC,,Public Bodies,,239931918,5000297093,,Council Tax Freeze,EN8 9XG,"4,291.00",Yes
Communities & Local Government,DCLG,15/06/2015,Current (non AEF) Grants to Local Authorities,Localism,BROXTOWE BC,,,,239877640,5000296490,,Doubling of Small Business Rates Relief,NG9 1AB,"27,489.00",Yes
Communities & Local Government,DCLG,15/06/2015,Current (non AEF) Grants to Local Authorities,Localism,BROXTOWE BC,,,,239877640,5000296491,,Empty New Build Relief,NG9 1AB,"1,426.00",Yes
Communities & Local Government,DCLG,15/06/2015,Current (non AEF) Grants to Local Authorities,Localism,BROXTOWE BC,,,,239877640,5000296492,,Retail Relief,NG9 1AB,"5,378.00",Yes
Communities & Local Government,DCLG,15/06/2015,Current (non AEF) Grants to Local Authorities,Localism,BROXTOWE BC,,,,239877640,5000296493,,Business Rates 2% Inflation Cap,NG9 1AB,"3,301.00",Yes
Communities & Local Government,DCLG,15/06/2015,Current (non AEF) Grants to Local Authorities,Localism,BROXTOWE BC,,,,239877640,5000297095,,Council Tax Freeze,NG9 1AB,"5,979.00",Yes
Communities & Local Government,DCLG,15/06/2015,Current (non AEF) Grants to Local Authorities,Localism,BUCKINGHAMSHIRE CC,,,,293750923,5000296494,,Doubling of Small Business Rates Relief,HP20 1UD,"30,454.00",Yes
Communities & Local Government,DCLG,15/06/2015,Current (non AEF) Grants to Local Authorities,Localism,BUCKINGHAMSHIRE CC,,,,293750923,5000296496,,Business Rates 2% Inflation Cap,HP20 1UD,"49,672.00",Yes
Communities & Local Government,DCLG,15/06/2015,Current (non AEF) Grants to Local Authorities,Localism,BUCKINGHAMSHIRE CC,,,,293750923,5000296497,,Empty New Build Relief,HP20 1UD,633.00,Yes
Communities & Local Government,DCLG,15/06/2015,Current (non AEF) Grants to Local Authorities,Localism,BUCKINGHAMSHIRE CC,,,,293750923,5000296498,,Retail Relief,HP20 1UD,"13,553.00",Yes
Communities & Local Government,DCLG,15/06/2015,Current (non AEF) Grants to Local Authorities,Localism,BUCKS & MILTON KEYNES FIRE AUTH,,Public Bodies,,423679463,5000295671,,Retail Relief,HP20 1BD,"2,429.00",Yes
Communities & Local Government,DCLG,15/06/2015,Current (non AEF) Grants to Local Authorities,Localism,BUCKS & MILTON KEYNES FIRE AUTH,,Public Bodies,,423679463,5000295677,,Doubling of Small Business Rates Relief,HP20 1BD,"4,928.00",Yes
Communities & Local Government,DCLG,15/06/2015,Current (non AEF) Grants to Local Authorities,Localism,BUCKS & MILTON KEYNES FIRE AUTH,,Public Bodies,,423679463,5000295680,,Business Rates 2% Inflation Cap,HP20 1BD,"5,893.00",Yes
Communities & Local Government,DCLG,15/06/2015,Current (non AEF) Grants to Local Authorities,Localism,BUCKS & MILTON KEYNES FIRE AUTH,,Public Bodies,,423679463,5000297288,,Council Tax Freeze,HP20 1BD,"18,285.00",Yes
Communities & Local Government,DCLG,15/06/2015,Current (non AEF) Grants to Local Authorities,Localism,BURNLEY BC,,,,229413281,5000296499,,Reoccupation Relief,BB11 1JA,650.00,Yes
Communities & Local Government,DCLG,15/06/2015,Current (non AEF) Grants to Local Authorities,Localism,BURNLEY BC,,,,229413281,5000296500,,Retail Relief,BB11 1JA,"16,109.00",Yes
Communities & Local Government,DCLG,15/06/2015,Current (non AEF) Grants to Local Authorities,Localism,BURNLEY BC,,,,229413281,5000296502,,Business Rates 2% Inflation Cap,BB11 1JA,"5,255.00",Yes
Communities & Local Government,DCLG,15/06/2015,Current (non AEF) Grants to Local Authorities,Localism,BURNLEY BC,,,,229413281,5000296503,,Doubling of Small Business Rates Relief,BB11 1JA,"44,057.00",Yes
Communities & Local Government,DCLG,15/06/2015,Current (non AEF) Grants to Local Authorities,Localism,BURY MBC,,,,,5000296504,,Business Rates 2% Inflation Cap,BL9 0SW,"38,606.00",Yes
Communities & Local Government,DCLG,15/06/2015,Current (non AEF) Grants to Local Authorities,Localism,BURY MBC,,,,,5000296505,,Doubling of Small Business Rates Relief,BL9 0SW,"96,615.00",Yes
Communities & Local Government,DCLG,15/06/2015,Current (non AEF) Grants to Local Authorities,Localism,BURY MBC,,,,,5000296507,,Retail Relief,BL9 0SW,"46,919.00",Yes
Communities & Local Government,DCLG,15/06/2015,Current (non AEF) Grants to Local Authorities,Localism,BURY MBC,,,,,5000297099,,Council Tax Freeze,BL9 0SW,"78,496.00",Yes
Communities & Local Government,DCLG,15/06/2015,Current (non AEF) Grants to Local Authorities,Localism,CALDERDALE MBC,,,,,5000296508,,Business Rates 2% Inflation Cap,HX1 1YP,"46,587.00",Yes
Communities & Local Government,DCLG,15/06/2015,Current (non AEF) Grants to Local Authorities,Localism,CALDERDALE MBC,,,,,5000296509,,Doubling of Small Business Rates Relief,HX1 1YP,"128,280.00",Yes
Communities & Local Government,DCLG,15/06/2015,Current (non AEF) Grants to Local Authorities,Localism,CALDERDALE MBC,,,,,5000296510,,Small Business Rates Relief on Second Properties,HX1 1YP,"2,071.00",Yes
Communities & Local Government,DCLG,15/06/2015,Current (non AEF) Grants to Local Authorities,Localism,CALDERDALE MBC,,,,,5000296511,,Retail Relief,HX1 1YP,"34,394.00",Yes
Communities & Local Government,DCLG,15/06/2015,Current (non AEF) Grants to Local Authorities,Localism,CALDERDALE MBC,,,,,5000297101,,Council Tax Freeze,HX1 1YP,"84,049.00",Yes
Communities & Local Government,DCLG,15/06/2015,Current (non AEF) Grants to Local Authorities,Localism,CAMBRIDGE CITY COUNCIL,,,,210357534,5000296512,,Doubling of Small Business Rates Relief,CB2 3NA,"23,610.00",Yes
Communities & Local Government,DCLG,15/06/2015,Current (non AEF) Grants to Local Authorities,Localism,CAMBRIDGE CITY COUNCIL,,,,210357534,5000296513,,Empty New Build Relief,CB2 3NA,"1,691.00",Yes
Communities & Local Government,DCLG,15/06/2015,Current (non AEF) Grants to Local Authorities,Localism,CAMBRIDGE CITY COUNCIL,,,,210357534,5000296515,,Retail Relief,CB2 3NA,"37,427.00",Yes
Communities & Local Government,DCLG,15/06/2015,Current (non AEF) Grants to Local Authorities,Localism,CAMBRIDGE CITY COUNCIL,,,,210357534,5000296516,,Business Rates 2% Inflation Cap,CB2 3NA,"6,222.00",Yes
Communities & Local Government,DCLG,15/06/2015,Current (non AEF) Grants to Local Authorities,Localism,CAMBRIDGESHIRE COUNTY CNCL,,,,219047347,5000296517,,Empty New Build Relief,CB3 0AP,457.00,Yes
Communities & Local Government,DCLG,15/06/2015,Current (non AEF) Grants to Local Authorities,Localism,CAMBRIDGESHIRE COUNTY CNCL,,,,219047347,5000296519,,Retail Relief,CB3 0AP,"22,835.00",Yes
Communities & Local Government,DCLG,15/06/2015,Current (non AEF) Grants to Local Authorities,Localism,CAMBRIDGESHIRE COUNTY CNCL,,,,219047347,5000296520,,Small Business Rates Relief on Second Properties,CB3 0AP,907.00,Yes
Communities & Local Government,DCLG,15/06/2015,Current (non AEF) Grants to Local Authorities,Localism,CAMBRIDGESHIRE COUNTY CNCL,,,,219047347,5000296521,,Business Rates 2% Inflation Cap,CB3 0AP,"73,172.00",Yes
Communities & Local Government,DCLG,15/06/2015,Current (non AEF) Grants to Local Authorities,Localism,CAMBRIDGESHIRE COUNTY CNCL,,,,219047347,5000296522,,Doubling of Small Business Rates Relief,CB3 0AP,"40,112.00",Yes
Communities & Local Government,DCLG,15/06/2015,Current (non AEF) Grants to Local Authorities,Localism,CAMBRIDGESHIRE POLICE AUTHORITY,,,,,5000297300,,Council Tax Freeze,P18 8NP,"52,977.00",Yes
Communities & Local Government,DCLG,15/06/2015,Current (non AEF) Grants to Local Authorities,Localism,CAMBS & PETERBOROUGH FIRE AUTHORITY,,,,235999737,5000295787,,Retail Relief,PE29 2NA,"3,362.00",Yes
Communities & Local Government,DCLG,15/06/2015,Current (non AEF) Grants to Local Authorities,Localism,CAMBS & PETERBOROUGH FIRE AUTHORITY,,,,235999737,5000295793,,Doubling of Small Business Rates Relief,PE29 2NA,"5,749.00",Yes
Communities & Local Government,DCLG,15/06/2015,Current (non AEF) Grants to Local Authorities,Localism,CAMBS & PETERBOROUGH FIRE AUTHORITY,,,,235999737,5000295799,,Business Rates 2% Inflation Cap,PE29 2NA,"6,919.00",Yes
Communities & Local Government,DCLG,15/06/2015,Current (non AEF) Grants to Local Authorities,Localism,CAMBS & PETERBOROUGH FIRE AUTHORITY,,,,235999737,5000297292,,Council Tax Freeze,PE29 2NA,"18,772.00",Yes
Communities & Local Government,DCLG,15/06/2015,Current (non AEF) Grants to Local Authorities,Localism,CAMDEN LB,,,,211651836,5000296523,,Doubling of Small Business Rates Relief,WC1H 8NG,"36,073.00",Yes
Communities & Local Government,DCLG,15/06/2015,Current (non AEF) Grants to Local Authorities,Localism,CAMDEN LB,,,,211651836,5000296524,,Retail Relief,WC1H 8NG,"92,891.00",Yes
Communities & Local Government,DCLG,15/06/2015,Current (non AEF) Grants to Local Authorities,Localism,CAMDEN LB,,,,211651836,5000296525,,Business Rates 2% Inflation Cap,WC1H 8NG,"114,125.00",Yes
Communities & Local Government,DCLG,15/06/2015,Current (non AEF) Grants to Local Authorities,Localism,CANNOCK CHASE DC,,,,215064770,5000296526,,Doubling of Small Business Rates Relief,WS11 1BG,"41,328.00",Yes
Communities & Local Government,DCLG,15/06/2015,Current (non AEF) Grants to Local Authorities,Localism,CANNOCK CHASE DC,,,,215064770,5000296527,,Business Rates 2% Inflation Cap,WS11 1BG,"4,879.00",Yes
Communities & Local Government,DCLG,15/06/2015,Current (non AEF) Grants to Local Authorities,Localism,CANNOCK CHASE DC,,,,215064770,5000296528,,Retail Relief,WS11 1BG,"13,650.00",Yes
Communities & Local Government,DCLG,15/06/2015,Current (non AEF) Grants to Local Authorities,Localism,CANNOCK CHASE DC,,,,215064770,5000297105,,Council Tax Freeze,WS11 1BG,"6,211.00",Yes
Communities & Local Government,DCLG,15/06/2015,Current (non AEF) Grants to Local Authorities,Localism,CANTERBURY CITY CNCL,,,,,5000294922,,Retail Relief,CT1 1YW,"28,410.00",Yes
Communities & Local Government,DCLG,15/06/2015,Current (non AEF) Grants to Local Authorities,Localism,CANTERBURY CITY CNCL,,,,,5000294925,,Business Rates 2% Inflation Cap,CT1 1YW,"5,603.00",Yes
Communities & Local Government,DCLG,15/06/2015,Current (non AEF) Grants to Local Authorities,Localism,CANTERBURY CITY CNCL,,,,,5000294928,,Doubling of Small Business Rates Relief,CT1 1YW,"56,603.00",Yes
Communities & Local Government,DCLG,15/06/2015,Current (non AEF) Grants to Local Authorities,Localism,CARLISLE CITY CNCL,,,,227471059,5000294934,,Doubling of Small Business Rates Relief,CA3 8QG,"42,408.00",Yes
Communities & Local Government,DCLG,15/06/2015,Current (non AEF) Grants to Local Authorities,Localism,CARLISLE CITY CNCL,,,,227471059,5000294937,,Business Rates 2% Inflation Cap,CA3 8QG,"4,302.00",Yes
Communities & Local Government,DCLG,15/06/2015,Current (non AEF) Grants to Local Authorities,Localism,CARLISLE CITY CNCL,,,,227471059,5000294943,,Reoccupation Relief,CA3 8QG,"1,691.00",Yes
Communities & Local Government,DCLG,15/06/2015,Current (non AEF) Grants to Local Authorities,Localism,CARLISLE CITY CNCL,,,,227471059,5000294946,,Retail Relief,CA3 8QG,"24,122.00",Yes
Communities & Local Government,DCLG,15/06/2015,Current (non AEF) Grants to Local Authorities,Localism,CARLISLE CITY CNCL,,,,227471059,5000294949,,Small Business Rates Relief on Second Properties,CA3 8QG,338.00,Yes
Communities & Local Government,DCLG,15/06/2015,Current (non AEF) Grants to Local Authorities,Localism,CARLISLE CITY CNCL,,,,227471059,5000296764,,Council Tax Freeze,CA3 8QG,"6,960.00",Yes
Communities & Local Government,DCLG,15/06/2015,Current (non AEF) Grants to Local Authorities,Localism,CASTLE POINT BC,,Public Bodies,,228217931,5000296531,,Retail Relief,SS7 1TF,"16,510.00",Yes
Communities & Local Government,DCLG,15/06/2015,Current (non AEF) Grants to Local Authorities,Localism,CASTLE POINT BC,,Public Bodies,,228217931,5000296532,,Business Rates 2% Inflation Cap,SS7 1TF,"2,502.00",Yes
Communities & Local Government,DCLG,15/06/2015,Current (non AEF) Grants to Local Authorities,Localism,CASTLE POINT BC,,Public Bodies,,228217931,5000296534,,Doubling of Small Business Rates Relief,SS7 1TF,"29,845.00",Yes
Communities & Local Government,DCLG,15/06/2015,Current (non AEF) Grants to Local Authorities,Localism,CASTLE POINT BC,,Public Bodies,,228217931,5000297107,,Council Tax Freeze,SS7 1TF,"7,630.00",Yes
Communities & Local Government,DCLG,15/06/2015,Current (non AEF) Grants to Local Authorities,Localism,CENTRAL BEDFORDSHIRE COUNCIL,,,,232624882,5000296100,,Business Rates 2% Inflation Cap,SG17 5TQ,"36,989.00",Yes
Communities & Local Government,DCLG,15/06/2015,Current (non AEF) Grants to Local Authorities,Localism,CENTRAL BEDFORDSHIRE COUNCIL,,,,232624882,5000296102,,Empty New Build Relief,SG17 5TQ,428.00,Yes
Communities & Local Government,DCLG,15/06/2015,Current (non AEF) Grants to Local Authorities,Localism,CENTRAL BEDFORDSHIRE COUNCIL,,,,232624882,5000296104,,Retail Relief,SG17 5TQ,"42,683.00",Yes
Communities & Local Government,DCLG,15/06/2015,Current (non AEF) Grants to Local Authorities,Localism,CENTRAL BEDFORDSHIRE COUNCIL,,,,232624882,5000296106,,Small Business Rates Relief on Second Properties,SG17 5TQ,"2,983.00",Yes
Communities & Local Government,DCLG,15/06/2015,Current (non AEF) Grants to Local Authorities,Localism,CENTRAL BEDFORDSHIRE COUNCIL,,,,232624882,5000296108,,Doubling of Small Business Rates Relief,SG17 5TQ,"93,152.00",Yes
Communities & Local Government,DCLG,15/06/2015,Current (non AEF) Grants to Local Authorities,Localism,CENTRAL BEDFORDSHIRE COUNCIL,,,,232624882,5000296110,,Reoccupation Relief,SG17 5TQ,929.00,Yes
Communities & Local Government,DCLG,15/06/2015,Current (non AEF) Grants to Local Authorities,Localism,CENTRAL BEDFORDSHIRE COUNCIL,,,,232624882,5000297295,,Council Tax Freeze,SG17 5TQ,"134,146.00",Yes
Communities & Local Government,DCLG,15/06/2015,Current (non AEF) Grants to Local Authorities,Localism,CHARNWOOD BC,,,,,5000296535,,Business Rates 2% Inflation Cap,LE11 2TU,"4,208.00",Yes
Communities & Local Government,DCLG,15/06/2015,Current (non AEF) Grants to Local Authorities,Localism,CHARNWOOD BC,,,,,5000296536,,Empty New Build Relief,LE11 2TU,"1,638.00",Yes
Communities & Local Government,DCLG,15/06/2015,Current (non AEF) Grants to Local Authorities,Localism,CHARNWOOD BC,,,,,5000296537,,Reoccupation Relief,LE11 2TU,581.00,Yes
Communities & Local Government,DCLG,15/06/2015,Current (non AEF) Grants to Local Authorities,Localism,CHARNWOOD BC,,,,,5000296538,,Retail Relief,LE11 2TU,"23,230.00",Yes
Communities & Local Government,DCLG,15/06/2015,Current (non AEF) Grants to Local Authorities,Localism,CHARNWOOD BC,,,,,5000296540,,Doubling of Small Business Rates Relief,LE11 2TU,"54,047.00",Yes
Communities & Local Government,DCLG,15/06/2015,Current (non AEF) Grants to Local Authorities,Localism,CHARNWOOD BC,,,,,5000297110,,Council Tax Freeze,LE11 2TU,"7,115.00",Yes
Communities & Local Government,DCLG,15/06/2015,Current (non AEF) Grants to Local Authorities,Localism,CHELMSFORD BC,,,,,5000296541,,Retail Relief,CM1 1JE,"32,760.00",Yes
Communities & Local Government,DCLG,15/06/2015,Current (non AEF) Grants to Local Authorities,Localism,CHELMSFORD BC,,,,,5000296542,,Business Rates 2% Inflation Cap,CM1 1JE,"4,080.00",Yes
Communities & Local Government,DCLG,15/06/2015,Current (non AEF) Grants to Local Authorities,Localism,CHELMSFORD BC,,,,,5000296543,,Doubling of Small Business Rates Relief,CM1 1JE,"43,967.00",Yes
Communities & Local Government,DCLG,15/06/2015,Current (non AEF) Grants to Local Authorities,Localism,CHELMSFORD BC,,,,,5000297114,,Council Tax Freeze,CM1 1JE,"11,650.00",Yes
Communities & Local Government,DCLG,15/06/2015,Current (non AEF) Grants to Local Authorities,Localism,CHELTENHAM BC,,,,,5000296544,,Doubling of Small Business Rates Relief,GL50 1PW,"37,911.00",Yes
Communities & Local Government,DCLG,15/06/2015,Current (non AEF) Grants to Local Authorities,Localism,CHELTENHAM BC,,,,,5000296545,,Empty New Build Relief,GL50 1PW,338.00,Yes
Communities & Local Government,DCLG,15/06/2015,Current (non AEF) Grants to Local Authorities,Localism,CHELTENHAM BC,,,,,5000296546,,Reoccupation Relief,GL50 1PW,338.00,Yes
Communities & Local Government,DCLG,15/06/2015,Current (non AEF) Grants to Local Authorities,Localism,CHELTENHAM BC,,,,,5000296547,,Retail Relief,GL50 1PW,"20,189.00",Yes
Communities & Local Government,DCLG,15/06/2015,Current (non AEF) Grants to Local Authorities,Localism,CHELTENHAM BC,,,,,5000296548,,Business Rates 2% Inflation Cap,GL50 1PW,"3,831.00",Yes
Communities & Local Government,DCLG,15/06/2015,Current (non AEF) Grants to Local Authorities,Localism,CHELTENHAM BC,,,,,5000297116,,Council Tax Freeze,GL50 1PW,"8,207.00",Yes
Communities & Local Government,DCLG,15/06/2015,Current (non AEF) Grants to Local Authorities,Localism,CHERWELL DC,,,,,5000294952,,Doubling of Small Business Rates Relief,OX15 4AA,"35,830.00",Yes
Communities & Local Government,DCLG,15/06/2015,Current (non AEF) Grants to Local Authorities,Localism,CHERWELL DC,,,,,5000294955,,Retail Relief,OX15 4AA,"29,106.00",Yes
Communities & Local Government,DCLG,15/06/2015,Current (non AEF) Grants to Local Authorities,Localism,CHERWELL DC,,,,,5000294960,,Business Rates 2% Inflation Cap,OX15 4AA,"6,899.00",Yes
Communities & Local Government,DCLG,15/06/2015,Current (non AEF) Grants to Local Authorities,Localism,CHERWELL DC,,,,,5000296767,,Council Tax Freeze,OX15 4AA,"6,486.00",Yes
Communities & Local Government,DCLG,15/06/2015,Current (non AEF) Grants to Local Authorities,Localism,CHESHIRE EAST COUNCIL,,Large,,,5000296112,,Doubling of Small Business Rates Relief,CW11 1HZ,"182,219.00",Yes
Communities & Local Government,DCLG,15/06/2015,Current (non AEF) Grants to Local Authorities,Localism,CHESHIRE EAST COUNCIL,,Large,,,5000296114,,Reoccupation Relief,CW11 1HZ,"1,005.00",Yes
Communities & Local Government,DCLG,15/06/2015,Current (non AEF) Grants to Local Authorities,Localism,CHESHIRE EAST COUNCIL,,Large,,,5000296116,,Retail Relief,CW11 1HZ,"95,087.00",Yes
Communities & Local Government,DCLG,15/06/2015,Current (non AEF) Grants to Local Authorities,Localism,CHESHIRE EAST COUNCIL,,Large,,,5000296118,,Small Business Rates Relief on Second Properties,CW11 1HZ,800.00,Yes
Communities & Local Government,DCLG,15/06/2015,Current (non AEF) Grants to Local Authorities,Localism,CHESHIRE EAST COUNCIL,,Large,,,5000296120,,Business Rates 2% Inflation Cap,CW11 1HZ,"48,026.00",Yes
Communities & Local Government,DCLG,15/06/2015,Current (non AEF) Grants to Local Authorities,Localism,CHESHIRE EAST COUNCIL,,Large,,,5000297296,,Council Tax Freeze,CW11 1HZ,"183,975.00",Yes
Communities & Local Government,DCLG,15/06/2015,Current (non AEF) Grants to Local Authorities,Localism,CHESHIRE FIRE AUTHORITY,,,,424872737,5000295770,,Doubling of Small Business Rates Relief,CW7 2FQ,"8,400.00",Yes
Communities & Local Government,DCLG,15/06/2015,Current (non AEF) Grants to Local Authorities,Localism,CHESHIRE FIRE AUTHORITY,,,,424872737,5000295772,,Reoccupation Relief,CW7 2FQ,274.00,Yes
Communities & Local Government,DCLG,15/06/2015,Current (non AEF) Grants to Local Authorities,Localism,CHESHIRE FIRE AUTHORITY,,,,424872737,5000295775,,Retail Relief,CW7 2FQ,"4,693.00",Yes
Communities & Local Government,DCLG,15/06/2015,Current (non AEF) Grants to Local Authorities,Localism,CHESHIRE FIRE AUTHORITY,,,,424872737,5000295781,,Business Rates 2% Inflation Cap,CW7 2FQ,"10,574.00",Yes
Communities & Local Government,DCLG,15/06/2015,Current (non AEF) Grants to Local Authorities,Localism,CHESHIRE WEST & CHESTER UA,,Large,,215584383,5000296124,,Retail Relief,CH1 2NP,"82,864.00",Yes
Communities & Local Government,DCLG,15/06/2015,Current (non AEF) Grants to Local Authorities,Localism,CHESHIRE WEST & CHESTER UA,,Large,,215584383,5000296126,,Business Rates 2% Inflation Cap,CH1 2NP,"59,219.00",Yes
Communities & Local Government,DCLG,15/06/2015,Current (non AEF) Grants to Local Authorities,Localism,CHESHIRE WEST & CHESTER UA,,Large,,215584383,5000296128,,Doubling of Small Business Rates Relief,CH1 2NP,"129,371.00",Yes
Communities & Local Government,DCLG,15/06/2015,Current (non AEF) Grants to Local Authorities,Localism,CHESHIRE WEST & CHESTER UA,,Large,,215584383,5000296130,,Empty New Build Relief,CH1 2NP,"1,658.00",Yes
Communities & Local Government,DCLG,15/06/2015,Current (non AEF) Grants to Local Authorities,Localism,CHESHIRE WEST & CHESTER UA,,Large,,215584383,5000296132,,Reoccupation Relief,CH1 2NP,"12,430.00",Yes
Communities & Local Government,DCLG,15/06/2015,Current (non AEF) Grants to Local Authorities,Localism,CHESHIRE WEST & CHESTER UA,,Large,,215584383,5000297297,,Council Tax Freeze,CH1 2NP,"159,834.00",Yes
